Workbook

Sheet Introduction
B2: Informing Interventions to reduce health Inequalities ('Triple I'):
B3: Job Provision
B7: Informing Interventions to reduce health Inequalities ('Triple I') is a collaboration between NHS Health Scotland and the Scottish Public Health Observatory (ScotPHO).
B8: Triple I provides national and local decision makers with practical tools and interpreted results about investing in interventions to reduce health inequalities in Scotland.
B9: It does this by modelling the potential impact of different interventions and policies on overall population health and health inequalities.
B10: This tool is part of a set of 9 spreadsheets and associated documentation, produced as an update and extension of our 2014 Triple I work.
B11: Data and evidence have been updated where applicable, new interventions have been included, and presentation of the results has been improved.
B12: The tool can be used to produce detailed results for different geographies (Scotland, Local Authorities, Health Boards, City Regions, or Integrated Joint Boards).
B13: Results are provided for three health outcomes: premature mortality, years of life lost, and hospital stays.
B15: The interventions:
B16: The interventions were chosen based on the highest quality and most generalisable evidence linking them to changes in all-cause mortality and hospital admissions.
B17: The topics addressed by the interventions span the determinants of health (including ‘upstream’, ‘downstream’, individual-level and population-wide).
B18: There are 9 Triple I spreadsheet tools (corresponding to the topic areas below).
C20: Individual-level interventions: | H20: Population-wide interventions:
C21: (N.B. modelled as being implemented in year 1 only) | H21: (N.B. permanent: modelled as remaining
C22: Topic | D22: Intervention(s) | H22: in place after implementation in year 1)
C23: Mental Health | D23: Interventions for depression | H23: Topic | J23: Intervention(s)
C24: Obesity | D24: Weight management service | H24: Physical Environment | J24: 20 mph speed limits
C25: Physical inactivity | D25: Physical activity interventions | H25: Smoking | J25: Tobacco taxation
C26: Smoking | D26: Smoking cessation | H26: Income | J26: Income-based policies
C27: Alcohol consumption | D27: Alcohol Brief Interventions (ABIs)
C28: Unemployment | D28: Job provision
B30: Pages in this spreadsheet tool:
C31: Introduction | E31: >> | F31: Information about the Triple I project
C32: User guide | E32: >> | F32: How to use this spreadsheet tool
C33: Options | E33: >> | F33: Where users can change the model options, and see high-level results
C34: Results | E34: >> | F34: Full results for the chosen model options
C35: Evidence | E35: >> | F35: Summary of the evidence underpinning the model, and definitions of the policies/interventions
B37: Further information is available on the Triple I website: | G37: Triple I website
C38: Interactive results browser | E38: >> | F38: An online interactive results browser for comparing different interventions (April 2019)
C39: National Overview Report | E39: >> | F39: A summary report of the national-level findings (April 2019)
C40: Technical Report | E40: >> | F40: Details of Triple I's methods and data sources (April 2019)
C41: Frequently Asked Questions | E41: >> | F41: Answers to frequently-asked questions about Triple I (April 2019)
C42: Income-based policies | E42: >> | F42: Report and Supplementary Information about the income-based policies work (October 2018)
C43: nhs.triple.i@nhs.net | E43: >> | F43: Email us for more information.
B45: Abbreviations used
B46: IJB | C46: Integrated Joint Board
B47: LA | C47: Local Authority
B48: RII | C48: Relative Index of Inequality
B49: SII | C49: Slope Index of Inequality
B50: SIMD | C50: Scottish Index of Multiple Deprivation
B51: Q1 - Q5 | C51: Quintiles of the SIMD: Q1 contains the 20% most deprived areas, and Q5 contains the 20% least deprived areas.

Sheet User Guide
B2: User Guide
B4: Please note: Macros need to be enabled for the tools to work properly.
B5: How to do this in a recent version of Excel: File > Options > Trust Center > Trust Center Settings > Macro Settings > "Enable all macros"
B6: How to do this in an older version of Excel: Tools > Options > Security > Macro Security > "Medium"
B8: Changing the intervention details:
B9: You can interact with the Triple I model from the Options tab.
B10: Any changes made to the shaded cells (blue) on this tab will cause Excel to recalculate the model and present new results.
B11: Below are the options available (N.B. not every spreadsheet will have all of these options):
B13: Intervention:
B14: Choose the intervention of interest (only relevant for tools covering more than one intervention: Mental health, Physical activity, and Income-based interventions)
B16: Area:
B17: Choose the area to run the model for. The available geographies are listed below.
C18: 1. Health Boards: | F18: The 14 territorial NHS health boards responsible for delivery of frontline healthcare services in Scotland (2014 boundaries).
C19: 2. Local Authorities: | F19: The 32 elected councils that provide a range of services to local people, including education and care.
F20: The Gaelic name of Eilean Siar is used for the local authority covering the Western Isles.
C21: 3. Integrated Joint Boards: | F21: 31 integration authorities were created by The Public Bodies (Joint Working) Act 2014, in order to integrate the health
F22: and social care functions of health boards and local authorities. These Integrated Joint Boards (IJBs) or Partnerships
F23: correspond to local authority areas, with the exception of Clackmannanshire and Stirling IJB which combines two
F24: local authorities. The Gaelic name of Eilean Siar is used for the IJB covering the Western Isles.
C25: 4. City Region Deals: | F25: City Region Deals are agreements between the Scottish Government, the UK Government and local government.
F26: They have been designed to bring about long-term strategic approaches to improving regional economies.
F27: The following 6 city regions are included:
F29: City Region: | J29: Local Authorities (LAs) included:
F30: Aberdeen City Region Deal | J30: Aberdeen and Aberdeenshire
F31: Edinburgh & Southeast Scotland City Region Deal | J31: Edinburgh, Fife, East Lothian, Midlothian, West Lothian, Borders
F32: Glasgow City Region Deal | J32: East Dunbartonshire, East Renfrewshire, Glasgow City, Inverclyde,
J33: North Lanarkshire, Renfrewshire, South Lanarkshire, West Dunbartonshire
F34: Inverness & Highland City Region Deal | J34: Highland
F35: Stirling and Clackmannanshire City Region Deal | J35: Stirling and Clackmannanshire
F36: Tay Cities Region Deal | J36: Dundee, Perth & Kinross, Angus, Fife
B38: Targeting strategy:
B39: The strategy for delivering the individual-level* interventions can be altered by the user.
B40: *Interventions delivered to individuals: mental health, weight management, physical activity, smoking cessation, alcohol brief interventions, and job provision.
B41: Four options are available:
B42: · Even distribution: treat the same proportion of the eligible population in each subgroup (i.e., age group, sex and SIMD 2016 quintile).
B43: · Proportionate to need: the proportion of each subgroup treated is proportionate to the subgroup's prevalence of the exposure (e.g., smoking or depression).
B44: · Most deprived 20% only**: treat only those in SIMD quintile 1 (even distribution within this quintile).
B45: · Most deprived 40% only: treat only those in SIMD quintiles 1 and 2 (even distribution within these quintiles).
B46: **The Orkney Islands, Shetland Islands and the Western Isles do not have population in SIMD 2016 quintile 1, so targeting to this quintile will produce an error message.
B48: Number to treat:
B49: For individual-level interventions you can choose the number of people to be treated.
B50: · For information the maximum number of people who are eligible to be treated will be calculated in the preceding cell.
B51: · If a higher number is entered an error message will prevent the calculation from occurring.
B52: · Be aware that the model will run and produce results if changes to another cell mean that the number of people then exceeds the new maximum number.
B54: Number of years:
B55: The interventions are delivered in year 1.
B56: Their effects can be modelled from year 2 (the first year of follow-up) to year 20.
B57: N.B. Individual-level interventions are delivered for a single year, while the population-level interventions are modelled as remaining in place after year 1.
B59: Viewing the results:
B60: Options tab | D60: A summary of the results is shown on the Options tab.
B61: Results tab | D61: More detailed results are shown on the Results tab.
B62: Technical Report | D62: Further information about how the results are calculated, and how to interpret them, can be found in the Triple I Technical Report.
B64: For advanced users: How to make more advanced changes to the model
B65: The inner workings of the Triple I tools are described in the Technical Report. We recommend you consult the report before making any advanced changes.
B66: The model data and calculations can be found in a number of 'hidden' tabs.
B67: These are hidden to simplify the spreadsheet for users.
B68: To see the hidden tabs, right-click on any tab, select 'Unhide', then select the tab you want to unhide.
B69: The hidden tabs include population data, prevalence data, targeting calculations, and result calculations.
B70: VBA (Visual Basic for Applications) code has been written to create bespoke functions for the calculations.
B71: The code can be found from the Developer tab > Visual Basic.
B72: If the Developer tab is not shown in your version of Excel go to File > Options > Customize Ribbon and switch on the Developer tab (recent Excel versions only).

Sheet Options
B2: Options for changing the model: | E2: Results summary:
B4: Change the shaded cells (blue) to recalculate. | E4: Check the Results tab for a detailed breakdown of the results
B5: N.B. Results may take a few seconds to change. | E5: Results shown as cumulative difference from baseline over the follow-up period (% difference in brackets).
B7: Intervention: (defined on Evidence tab) | E7: POLICY IMPACT ON HEALTH* | F7: Whole population | G7: SIMD Q1 & Q2 | H7: SIMD Q1
B8: Employment | E8: Hospital stays prevented | F8: =CONCATENATE(FIXED(Results!E16,0)," (",FIXED(Results!F16,2),"%)") -> 1,418 (0.12%) | G8: =CONCATENATE(FIXED(Results!E17,0)," (",FIXED(Results!F17,2),"%)") -> 686 (0.13%) | H8: =IF(OR(Calculations!$E$2="Orkney Health Board",Calculations!$E$2="Orkney Islands Local Authority",Calculations!$E$2="Shetland Health Board",Calculations!$E$2="Western Isles Health Board",Calculations!$E$2="Shetland Islands Local Authority",Calculations!$E$2="Eilean Siar Local Authority"),"N/A", CONCATENATE(FIXED(Results!E18,0)," (",FIXED(Results!F18,2),"%)")) -> 376 (0.13%)
E9: Premature deaths prevented | F9: =CONCATENATE(FIXED(Results!E20,0)," (",FIXED(Results!F20,2),"%)") -> 351 (1.62%) | G9: =CONCATENATE(FIXED(Results!E21,0)," (",FIXED(Results!F21,2),"%)") -> 182 (1.59%) | H9: =IF(OR(Calculations!$E$2="Orkney Health Board",Calculations!$E$2="Orkney Islands Local Authority",Calculations!$E$2="Shetland Health Board",Calculations!$E$2="Western Isles Health Board",Calculations!$E$2="Shetland Islands Local Authority",Calculations!$E$2="Eilean Siar Local Authority"),"N/A", CONCATENATE(FIXED(Results!E22,0)," (",FIXED(Results!F22,2),"%)")) -> 102 (1.59%)
B10: Choose the area to run the model for: | E10: Years of life saved | F10: =CONCATENATE(FIXED(Results!E24,0)," (",FIXED(Results!F24,2),"%)") -> 9,950 (1.67%) | G10: =CONCATENATE(FIXED(Results!E25,0)," (",FIXED(Results!F25,2),"%)") -> 5,203 (1.64%) | H10: =IF(OR(Calculations!$E$2="Orkney Health Board",Calculations!$E$2="Orkney Islands Local Authority",Calculations!$E$2="Shetland Health Board",Calculations!$E$2="Western Isles Health Board",Calculations!$E$2="Shetland Islands Local Authority",Calculations!$E$2="Eilean Siar Local Authority"),"N/A", CONCATENATE(FIXED(Results!E26,0)," (",FIXED(Results!F26,2),"%)")) -> 2,947 (1.64%)
B11: Scotland | E11: *N.B. a positive figure indicates an improvement in health outcomes.
B13: Choose the targeting strategy: | E13: POLICY IMPACT ON HEALTH INEQUALITIES**
B14: Even distribution | E14: Gap between most and least deprived | F14: Absolute | G14: Relative
E15: Hospital stays | F15: =CONCATENATE(FIXED(Results!E29,0)," (",FIXED(Results!F29,3),"%)") -> -16 (-0.117%) | G15: =CONCATENATE(FIXED(Results!E33,4)," (",FIXED(Results!F33,3),"%)") -> 0.0000 (0.000%)
B16: Max no. people available to be treated: | E16: Premature deaths | F16: =CONCATENATE(FIXED(Results!E30,0)," (",FIXED(Results!F30,3),"%)") -> -6 (-1.379%) | G16: =CONCATENATE(FIXED(Results!E34,4)," (",FIXED(Results!F34,3),"%)") -> 0.0055 (0.185%)
B17: =ROUNDDOWN(IF(OR($B$14="Even distribution",$B$14="Proportionate to need"),HLOOKUP(Calculations!$E$2,'Population at Risk'!$C$3:$BC$257,'Population at Risk'!BD255,FALSE),IF($B$14="Targeting to SIMD Q1",HLOOKUP(Calculations!$E$2,'Population at Risk'!$C$3:$BC$257,'Population at Risk'!BD256,FALSE),IF($B$14="Targeting to SIMD Q1 & Q2",HLOOKUP(Calculations!$E$2,'Population at Risk'!$C$3:$BC$257,'Population at Risk'!BD257,FALSE),"error"))),0) -> 236916 | E17: Years of life lost | F17: =CONCATENATE(FIXED(Results!E31,0)," (",FIXED(Results!F31,3),"%)") -> -176 (-1.412%) | G17: =CONCATENATE(FIXED(Results!E35,4)," (",FIXED(Results!F35,3),"%)") -> 0.0056 (0.187%)
E18: Population-wide inequalities slope | F18: Absolute (SII) | G18: Relative (RII)
B19: Choose the number of people to treat: | E19: Hospital stays | F19: =CONCATENATE(FIXED(Results!E37,0)," (",FIXED(Results!F37,3),"%)") -> -19 (-0.117%) | G19: =CONCATENATE(FIXED(Results!E41,4)," (",FIXED(Results!F41,3),"%)") -> 0.0000 (0.001%)
B20: (in addition to current number treated) | E20: Premature deaths | F20: =CONCATENATE(FIXED(Results!E38,0)," (",FIXED(Results!F38,3),"%)") -> -7 (-1.381%) | G20: =CONCATENATE(FIXED(Results!E42,4)," (",FIXED(Results!F42,3),"%)") -> 0.0025 (0.191%)
B21: 236916 | E21: Years of life lost | F21: =CONCATENATE(FIXED(Results!E39,0)," (",FIXED(Results!F39,3),"%)") -> -208 (-1.416%) | G21: =CONCATENATE(FIXED(Results!E43,4)," (",FIXED(Results!F43,3),"%)") -> 0.0025 (0.191%)
B22: =IF(AND(OR(Calculations!$E$2="Orkney Health Board",Calculations!$E$2="Orkney Islands Local Authority",Calculations!$E$2="Shetland Health Board",Calculations!$E$2="Western Isles Health Board",Calculations!$E$2="Shetland Islands Local Authority",Calculations!$E$2="Eilean Siar Local Authority"),B14="Targeting to SIMD Q1"),"Error: No Q1 population for this area", IF(B21>B17,"Too high: please check and re-enter","")) ->  | E22: **N.B. Based on rates per 100,000. A negative figure indicates reduced inequalities / narrowing of the gap.
B23: Calculate health impact after this many years:
B24: 2 | E24: SELECTED COSTS AND SAVINGS*** | G24: £
E25: Direct financial cost of the intervention (£): | G25: =Results!D50 -> 1095973416
E26: Direct financial savings from reduced hospitalisations (£):
F27: Whole population | G27: =CONCATENATE(FIXED(Results!E54,0)," (",FIXED(Results!F54,3),"%)") -> 3,562,073 (0.124%)
F28: SIMD Q1 & Q2 | G28: =CONCATENATE(FIXED(Results!E55,0)," (",FIXED(Results!F55,3),"%)") -> 1,722,579 (0.126%)
F29: SIMD Q1 | G29: =IF(OR(Calculations!$E$2="Orkney Health Board",Calculations!$E$2="Orkney Islands Local Authority",Calculations!$E$2="Shetland Health Board",Calculations!$E$2="Western Isles Health Board",Calculations!$E$2="Shetland Islands Local Authority",Calculations!$E$2="Eilean Siar Local Authority"),"N/A", CONCATENATE(FIXED(Results!E56,0)," (",FIXED(Results!F56,3),"%)")) -> 944,994 (0.130%)
E30: ***Costs/savings from changes to other health outcomes and to health inequalities have not been estimated.

Sheet Results
B2: Detailed results for intervention: | D2: =Options!B8 -> Employment
B4: Area of interest: | C4: =Options!B11 -> Scotland | D4: Targeting strategy: | E4: =Options!B14 -> Even distribution
B5: Age group: | C5: 16+ years | D5: Additional people to be treated: | E5: =Options!B21 -> 236916
B6: Baseline year (prevalence and population data): | C6: 2016 | D6: Health impact calculated after: | E6: =CONCATENATE(Options!B24," years") -> 2 years
B8: Baseline situation (2016): | C8: No. non-employed | D8: No. eligible for intervention | E8: No. all-cause hospital stays | F8: No. all-cause deaths | G8: No. premature all-cause deaths | H8: Years of life lost (all causes)
B9: Whole population | C9: =HLOOKUP(Calculations!$E$2,'Population at Risk'!$C$3:$BC$257,'Population at Risk'!BD251,FALSE) -> 789721.3567 | D9: =ROUNDDOWN(HLOOKUP(Calculations!$E$2,'Population at Risk'!$C$3:$BC$257,'Population at Risk'!BD255,FALSE),0) -> 236916 | E9: =HLOOKUP(Calculations!$E$2,'Health outcome totals 2016'!$C$3:$BC$17,'Health outcome totals 2016'!$BD6,FALSE) -> 1125093 | F9: =HLOOKUP(Calculations!$E$2,'Health outcome totals 2016'!$C$3:$BC$17,'Health outcome totals 2016'!$BD9,FALSE) -> 56725 | G9: =HLOOKUP(Calculations!$E$2,'Health outcome totals 2016'!$C$3:$BC$17,'Health outcome totals 2016'!$BD12,FALSE) -> 21313 | H9: =HLOOKUP(Calculations!$E$2,'Health outcome totals 2016'!$C$3:$BC$17,'Health outcome totals 2016'!$BD15,FALSE) -> 708624.0484
B10: Most deprived 40% (Q1 & Q2) | C10: =HLOOKUP(Calculations!$E$2,'Population at Risk'!$C$3:$BC$257,'Population at Risk'!BD253,FALSE) -> 429217.1347 | D10: =ROUNDDOWN(HLOOKUP(Calculations!$E$2,'Population at Risk'!$C$3:$BC$257,'Population at Risk'!BD257,FALSE),0) -> 128765 | E10: =HLOOKUP(Calculations!$E$2,'Health outcome totals 2016'!$C$3:$BC$17,'Health outcome totals 2016'!$BD8,FALSE) -> 534382 | F10: =HLOOKUP(Calculations!$E$2,'Health outcome totals 2016'!$C$3:$BC$17,'Health outcome totals 2016'!$BD11,FALSE) -> 26567 | G10: =HLOOKUP(Calculations!$E$2,'Health outcome totals 2016'!$C$3:$BC$17,'Health outcome totals 2016'!$BD14,FALSE) -> 11618 | H10: =HLOOKUP(Calculations!$E$2,'Health outcome totals 2016'!$C$3:$BC$17,'Health outcome totals 2016'!$BD17,FALSE) -> 372328.9705
B11: Most deprived 20% (Q1) | C11: =IF(OR(Calculations!$E$2="Orkney Health Board",Calculations!$E$2="Orkney Islands Local Authority",Calculations!$E$2="Shetland Health Board",Calculations!$E$2="Western Isles Health Board",Calculations!$E$2="Shetland Islands Local Authority",Calculations!$E$2="Eilean Siar Local Authority"),"N/A", HLOOKUP(Calculations!$E$2,'Population at Risk'!$C$3:$BC$257,'Population at Risk'!BD252,FALSE)) -> 254449.9421 | D11: =IF(OR(Calculations!$E$2="Orkney Health Board",Calculations!$E$2="Orkney Islands Local Authority",Calculations!$E$2="Shetland Health Board",Calculations!$E$2="Western Isles Health Board",Calculations!$E$2="Shetland Islands Local Authority",Calculations!$E$2="Eilean Siar Local Authority"),"N/A", ROUNDDOWN(HLOOKUP(Calculations!$E$2,'Population at Risk'!$C$3:$BC$257,'Population at Risk'!BD256,FALSE),0)) -> 76334 | E11: =IF(OR(Calculations!$E$2="Orkney Health Board",Calculations!$E$2="Orkney Islands Local Authority",Calculations!$E$2="Shetland Health Board",Calculations!$E$2="Western Isles Health Board",Calculations!$E$2="Shetland Islands Local Authority",Calculations!$E$2="Eilean Siar Local Authority"),"N/A", HLOOKUP(Calculations!$E$2,'Health outcome totals 2016'!$C$3:$BC$17,'Health outcome totals 2016'!$BD7,FALSE)) -> 283718 | F11: =IF(OR(Calculations!$E$2="Orkney Health Board",Calculations!$E$2="Orkney Islands Local Authority",Calculations!$E$2="Shetland Health Board",Calculations!$E$2="Western Isles Health Board",Calculations!$E$2="Shetland Islands Local Authority",Calculations!$E$2="Eilean Siar Local Authority"),"N/A", HLOOKUP(Calculations!$E$2,'Health outcome totals 2016'!$C$3:$BC$17,'Health outcome totals 2016'!$BD10,FALSE)) -> 13665 | G11: =IF(OR(Calculations!$E$2="Orkney Health Board",Calculations!$E$2="Orkney Islands Local Authority",Calculations!$E$2="Shetland Health Board",Calculations!$E$2="Western Isles Health Board",Calculations!$E$2="Shetland Islands Local Authority",Calculations!$E$2="Eilean Siar Local Authority"),"N/A", HLOOKUP(Calculations!$E$2,'Health outcome totals 2016'!$C$3:$BC$17,'Health outcome totals 2016'!$BD13,FALSE)) -> 6443 | H11: =IF(OR(Calculations!$E$2="Orkney Health Board",Calculations!$E$2="Orkney Islands Local Authority",Calculations!$E$2="Shetland Health Board",Calculations!$E$2="Western Isles Health Board",Calculations!$E$2="Shetland Islands Local Authority",Calculations!$E$2="Eilean Siar Local Authority"),"N/A", HLOOKUP(Calculations!$E$2,'Health outcome totals 2016'!$C$3:$BC$17,'Health outcome totals 2016'!$BD16,FALSE)) -> 203545.7107
B13: Health impact | C13: Without intervention | D13: With intervention | E13: Difference | F13: Difference | G13: Interpretation
B14: HEALTH OUTCOMES | C14: n | D14: n | E14: n | F14: %
B15: Hospital stays | F15: % prevented
B16: Whole population | C16: =Calculations!O5 -> 1143855.727 | D16: =Calculations!P5 -> 1142437.705 | E16: =C16-D16 -> 1418.022587 | F16: =E16*100/C16 -> 0.1239686573 | G16: Hospital stays prevented
B17: Q1 & Q2 | C17: =Calculations!O6 -> 542278.7308 | D17: =Calculations!P6 -> 541592.9905 | E17: =C17-D17 -> 685.7402239 | F17: =E17*100/C17 -> 0.1264553052 | G17: (N.B. positive difference =
B18: Q1 | C18: =IF(OR(Calculations!$E$2="Orkney Health Board",Calculations!$E$2="Orkney Islands Local Authority",Calculations!$E$2="Shetland Health Board",Calculations!$E$2="Western Isles Health Board",Calculations!$E$2="Shetland Islands Local Authority",Calculations!$E$2="Eilean Siar Local Authority"),"N/A", Calculations!O7) -> 288715.8401 | D18: =IF(OR(Calculations!$E$2="Orkney Health Board",Calculations!$E$2="Orkney Islands Local Authority",Calculations!$E$2="Shetland Health Board",Calculations!$E$2="Western Isles Health Board",Calculations!$E$2="Shetland Islands Local Authority",Calculations!$E$2="Eilean Siar Local Authority"),"N/A", Calculations!P7) -> 288339.6481 | E18: =IF(OR(Calculations!$E$2="Orkney Health Board",Calculations!$E$2="Orkney Islands Local Authority",Calculations!$E$2="Shetland Health Board",Calculations!$E$2="Western Isles Health Board",Calculations!$E$2="Shetland Islands Local Authority",Calculations!$E$2="Eilean Siar Local Authority"),"N/A", C18-D18) -> 376.1919977 | F18: =IF(OR(Calculations!$E$2="Orkney Health Board",Calculations!$E$2="Orkney Islands Local Authority",Calculations!$E$2="Shetland Health Board",Calculations!$E$2="Western Isles Health Board",Calculations!$E$2="Shetland Islands Local Authority",Calculations!$E$2="Eilean Siar Local Authority"),"N/A", E18*100/C18) -> 0.1302983576 | G18: fewer stays)
B19: Premature deaths (<75 years) | F19: % prevented
B20: Whole population | C20: =Calculations!Q5 -> 21622.63929 | D20: =Calculations!R5 -> 21271.46651 | E20: =C20-D20 -> 351.1727809 | F20: =E20*100/C20 -> 1.62409767 | G20: Premature deaths prevented
B21: Q1 & Q2 | C21: =Calculations!Q6 -> 11404.58469 | D21: =Calculations!R6 -> 11222.93429 | E21: =C21-D21 -> 181.650396 | F21: =E21*100/C21 -> 1.592783963 | G21: (N.B. positive difference =
B22: Q1 | C22: =IF(OR(Calculations!$E$2="Orkney Health Board",Calculations!$E$2="Orkney Islands Local Authority",Calculations!$E$2="Shetland Health Board",Calculations!$E$2="Western Isles Health Board",Calculations!$E$2="Shetland Islands Local Authority",Calculations!$E$2="Eilean Siar Local Authority"),"N/A", Calculations!Q7) -> 6423.555097 | D22: =IF(OR(Calculations!$E$2="Orkney Health Board",Calculations!$E$2="Orkney Islands Local Authority",Calculations!$E$2="Shetland Health Board",Calculations!$E$2="Western Isles Health Board",Calculations!$E$2="Shetland Islands Local Authority",Calculations!$E$2="Eilean Siar Local Authority"),"N/A", Calculations!R7) -> 6321.306341 | E22: =IF(OR(Calculations!$E$2="Orkney Health Board",Calculations!$E$2="Orkney Islands Local Authority",Calculations!$E$2="Shetland Health Board",Calculations!$E$2="Western Isles Health Board",Calculations!$E$2="Shetland Islands Local Authority",Calculations!$E$2="Eilean Siar Local Authority"),"N/A", C22-D22) -> 102.2487567 | F22: =IF(OR(Calculations!$E$2="Orkney Health Board",Calculations!$E$2="Orkney Islands Local Authority",Calculations!$E$2="Shetland Health Board",Calculations!$E$2="Western Isles Health Board",Calculations!$E$2="Shetland Islands Local Authority",Calculations!$E$2="Eilean Siar Local Authority"),"N/A", E22*100/C22) -> 1.591778309 | G22: fewer premature deaths)
B23: Years of life lost | F23: % saved
B24: Whole population | C24: =Calculations!M5 -> 595632.2742 | D24: =Calculations!N5 -> 585681.9355 | E24: =C24-D24 -> 9950.338683 | F24: =E24*100/C24 -> 1.670550626 | G24: Years of life saved
B25: Q1 & Q2 | C25: =Calculations!M6 -> 318036.2601 | D25: =Calculations!N6 -> 312833.1932 | E25: =C25-D25 -> 5203.066991 | F25: =E25*100/C25 -> 1.635998043 | G25: (N.B. positive difference =
B26: Q1 | C26: =IF(OR(Calculations!$E$2="Orkney Health Board",Calculations!$E$2="Orkney Islands Local Authority",Calculations!$E$2="Shetland Health Board",Calculations!$E$2="Western Isles Health Board",Calculations!$E$2="Shetland Islands Local Authority",Calculations!$E$2="Eilean Siar Local Authority"),"N/A", Calculations!M7) -> 179586.1412 | D26: =IF(OR(Calculations!$E$2="Orkney Health Board",Calculations!$E$2="Orkney Islands Local Authority",Calculations!$E$2="Shetland Health Board",Calculations!$E$2="Western Isles Health Board",Calculations!$E$2="Shetland Islands Local Authority",Calculations!$E$2="Eilean Siar Local Authority"),"N/A", Calculations!N7) -> 176639.6072 | E26: =IF(OR(Calculations!$E$2="Orkney Health Board",Calculations!$E$2="Orkney Islands Local Authority",Calculations!$E$2="Shetland Health Board",Calculations!$E$2="Western Isles Health Board",Calculations!$E$2="Shetland Islands Local Authority",Calculations!$E$2="Eilean Siar Local Authority"),"N/A", C26-D26) -> 2946.533988 | F26: =IF(OR(Calculations!$E$2="Orkney Health Board",Calculations!$E$2="Orkney Islands Local Authority",Calculations!$E$2="Shetland Health Board",Calculations!$E$2="Western Isles Health Board",Calculations!$E$2="Shetland Islands Local Authority",Calculations!$E$2="Eilean Siar Local Authority"),"N/A", E26*100/C26) -> 1.640735732 | G26: years of life saved)
B27: HEALTH INEQUALITIES | C27: rate* | D27: rate* | E27: rate* | F27: %
B28: Absolute gap (Q1 minus Q5**) | F28: % increase
B29: Hospital stays | C29: =Inequalities!H17 -> 13347.3262 | D29: =Inequalities!J17 -> 13331.68005 | E29: =D29-C29 -> -15.64614433 | F29: =E29*100/C29 -> -0.117223061 | G29: Change in the absolute gap
B30: Premature deaths | C30: =Inequalities!N17 -> 453.45748 | D30: =Inequalities!P17 -> 447.2053276 | E30: =D30-C30 -> -6.252152445 | F30: =E30*100/C30 -> -1.378773693 | G30: (N.B. negative = narrower gap)
B31: YLL | C31: =Inequalities!T17 -> 12490.3673 | D31: =Inequalities!V17 -> 12314.00872 | E31: =D31-C31 -> -176.3585814 | F31: =E31*100/C31 -> -1.411956727
B32: Relative gap Q1 to Q5** | F32: % increase
B33: Hospital stays | C33: =Inequalities!H18 -> 1.813617171 | D33: =Inequalities!J18 -> 1.813626217 | E33: =D33-C33 -> 9.046501769e-06 | F33: =E33*100/C33 -> 0.0004988098875 | G33: Change in the relative gap
B34: Premature deaths | C34: =Inequalities!N18 -> 3.004516771 | D34: =Inequalities!P18 -> 3.010062857 | E34: =D34-C34 -> 0.005546086823 | F34: =E34*100/C34 -> 0.1845916414 | G34: (N.B. negative = narrower gap)
B35: YLL | C35: =Inequalities!T18 -> 2.992305881 | D35: =Inequalities!V18 -> 2.997895006 | E35: =D35-C35 -> 0.005589125137 | F35: =E35*100/C35 -> 0.1867832153
B36: Slope Index of Inequality (SII) | F36: % increase
B37: Hospital stays | C37: =Inequalities!H15 -> 16090.34056 | D37: =Inequalities!J15 -> 16071.47424 | E37: =D37-C37 -> -18.8663162 | F37: =E37*100/C37 -> -0.1172524356 | G37: Change in absolute inequalities
B38: Premature deaths | C38: =Inequalities!N15 -> 534.1610142 | D38: =Inequalities!P15 -> 526.7835425 | E38: =D38-C38 -> -7.377471683 | F38: =E38*100/C38 -> -1.381132559 | G38: (N.B. negative = decreased inequalities)
B39: YLL | C39: =Inequalities!T15 -> 14716.10356 | D39: =Inequalities!V15 -> 14507.77099 | E39: =D39-C39 -> -208.3325673 | F39: =E39*100/C39 -> -1.415677503
B40: Relative Index of Inequality (RII) | F40: % increase
B41: Hospital stays | C41: =Inequalities!H16 -> 0.7333895263 | D41: =Inequalities!J16 -> 0.7333960076 | E41: =D41-C41 -> 6.48135937e-06 | F41: =E41*100/C41 -> 0.0008837540131 | G41: Change in relative inequalities
B42: Premature deaths | C42: =Inequalities!N16 -> 1.285866676 | D42: =Inequalities!P16 -> 1.288326146 | E42: =D42-C42 -> 0.002459470463 | F42: =E42*100/C42 -> 0.1912694768 | G42: (N.B. negative = decreased inequalities)
B43: YLL | C43: =Inequalities!T16 -> 1.281136278 | D43: =Inequalities!V16 -> 1.283589353 | E43: =D43-C43 -> 0.002453075438 | F43: =E43*100/C43 -> 0.1914765416
B45: * European age-standardised rate per 100,000
B46: ** or the most and least deprived quintiles in the area
B48: Economic impact | C48: Without intervention | D48: With intervention | E48: Difference | F48: Difference | G48: Interpretation
C49: £ | D49: £ | E49: £
B50: Direct financial cost: | C50: 0 | D50: =Evidence!C145*Results!E5 -> 1095973416 | E50: =D50-C50 -> 1095973416 | G50: Positive difference = net cost incurred
B52: Direct financial savings: | C52: £ | D52: £ | E52: £ | F52: % saved
B53: Hospital stays
B54: Whole population | C54: =Evidence!$C$154*Results!C16 -> 2873365587 | D54: =Evidence!$C$154*Results!D16 -> 2869803514 | E54: =C54-D54 -> 3562072.739 | F54: =E54*100/C54 -> 0.1239686573 | G54: Reduction in hospital stay costs
B55: Q1 & Q2 | C55: =Evidence!$C$154*Results!C17 -> 1362204172 | D55: =Evidence!$C$154*Results!D17 -> 1360481592 | E55: =C55-D55 -> 1722579.442 | F55: =E55*100/C55 -> 0.1264553052 | G55: (N.B. positive difference =
B56: Q1 | C56: =IF(OR(Calculations!$E$2="Orkney Health Board",Calculations!$E$2="Orkney Islands Local Authority",Calculations!$E$2="Shetland Health Board",Calculations!$E$2="Western Isles Health Board",Calculations!$E$2="Shetland Islands Local Authority",Calculations!$E$2="Eilean Siar Local Authority"),"N/A", Evidence!$C$154*Results!C18) -> 725254190.2 | D56: =IF(OR(Calculations!$E$2="Orkney Health Board",Calculations!$E$2="Orkney Islands Local Authority",Calculations!$E$2="Shetland Health Board",Calculations!$E$2="Western Isles Health Board",Calculations!$E$2="Shetland Islands Local Authority",Calculations!$E$2="Eilean Siar Local Authority"),"N/A", Evidence!$C$154*Results!D18) -> 724309195.9 | E56: =IF(OR(Calculations!$E$2="Orkney Health Board",Calculations!$E$2="Orkney Islands Local Authority",Calculations!$E$2="Shetland Health Board",Calculations!$E$2="Western Isles Health Board",Calculations!$E$2="Shetland Islands Local Authority",Calculations!$E$2="Eilean Siar Local Authority"),"N/A", C56-D56) -> 944994.2981 | F56: =IF(OR(Calculations!$E$2="Orkney Health Board",Calculations!$E$2="Orkney Islands Local Authority",Calculations!$E$2="Shetland Health Board",Calculations!$E$2="Western Isles Health Board",Calculations!$E$2="Shetland Islands Local Authority",Calculations!$E$2="Eilean Siar Local Authority"),"N/A", E56*100/C56) -> 0.1302983576 | G56: money saved)
B57: Premature deaths (<75 years) | E57: Savings not estimated
B58: Years of life lost | E58: Savings not estimated
B59: Inequalities | E59: Savings not estimated

Sheet Evidence
B2: The intervention: Employment
B4: A user-specified number of adults aged 16-64 not in employment (excluding full-time students aged 16-24) move into sustained employment.
B5: They are assumed to acquire the risk of mortality and hospitalisation of the employed population.
B7: Exposure Rate Ratios (ERR) for non-employment
B10: Outcome | C10: Sex | D10: ERR relative to employed | E10: Source | F10: Quoted/calculated?
B11: All-cause hospitalisation | C11: Men | D11: 1.02 | E11: Browning and Heinesen (2012) | F11: Quoted
B13: All-cause mortality | C13: Men | D13: 1.78 | E13: Roelfs et al. (2011) | F13: Quoted
C14: Women | D14: 1.37 | E14: Roelfs et al. (2011) | F14: Quoted
B16: All-cause hospitalisation
B17: ERR chosen comes from the single study published by Browning and Heinesen (2012).
B18: New searches were conducted, modelled on the Roelfs et al (2011) strategy, to identify if any new evidence useable by the model had been published since 2012.
B19: 78 papers from Medline and 354 papers from ProQuest were initially identified but none yielded new estimates of all-cause hospitalisation linked to employment status.
B20: Browning and Heinesen (2012): Danish, men, industrial employees, n=33,065 lost jobs, 1,161,222 controls. ERR given for the 4 years after plant closure.
B21: In the absence of ERRs for hospitalisation for females we will apply the male value.
B23: All-cause mortality
B24: ERR chosen comes from a meta-analysis (n = 42) (Roelfs et al., 2011).
B25: The studies typically included participants aged 15-64 years and included both sexes.
B26: Papers included in the meta-analysis provided comparisons of the mortality risk of the non-employed (not just the unemployed) vs. the employed.
B27: New searches were conducted, modelled on the Roelfs et al. strategy, to identify if any new evidence useable by the model had been published since 2011.
B28: 215 papers from Medline and 296 papers from Proquest were initially identified but after screening, only a single study (Clemens et al. 2015) provided estimates
B29: pertinent to Triple I. This is a Scotland-specific study, with ERR of 1.85 for men and 1.51 (non-significant) for women: it also focused exclusively on the unemployed.
B30: We decided to use the meta-analysis for effect estimates, and use Clemens et al (2015) in our sensitivity analyses.
B33: Intervention Rate Ratios (IRR) for gaining employment + change over time
B35: We found no robust published evidence quantifying the effect on all-cause hospitalisation and mortality of finding a job.
B36: We therefore used a large Danish study on the health effects of losing a job, and inverted the effect sizes.
B37: We assumed that the reduction in hospitalisation or mortality from gaining employment was the inverse of increased all-cause hospitalisation or mortality from job loss,
B38: which may not be the case. Browning and Heinesen (2012) estimated hazard ratios for all-cause hospitalisation and mortality at 1, 2, 3, 4, 10, 15 and 20 years after the
B39: Danish men in their large study lost their jobs. We used these hazard ratios, and interpolated the intervening values in a linear pattern.
C41: mortality | E41: hospitalisation
B42: Year | C42: untreated v. treated | D42: treated v. untreated | E42: untreated v. treated | F42: treated v. untreated
B43: 1 (intervention) | C43: 1.79 | D43: =1/C43 -> 0.5586592179 | E43: 1.05 | F43: =1/E43 -> 0.9523809524
B44: 2 | C44: 1.44 | D44: =1/C44 -> 0.6944444444 | E44: 1.03 | F44: 0.9708737864
B45: 3 | C45: 1.37 | D45: 0.7299270073 | E45: 1.04 | F45: 0.9615384615
B46: 4 | C46: 1.35 | D46: 0.7407407407 | E46: 1.03 | F46: 0.9708737864
B47: 5 | C47: =C46-(C$46-C$52)/6 -> 1.32 | D47: 0.7575757576 | E47: =E46-(E$46-E$52)/6 -> 1.028333333 | F47: 0.9724473258
B48: 6 | C48: =C47-(C$46-C$52)/6 -> 1.29 | D48: 0.7751937984 | E48: 1.026666667 | F48: 0.974025974
B49: 7 | C49: 1.26 | D49: 0.7936507937 | E49: 1.025 | F49: 0.9756097561
B50: 8 | C50: 1.23 | D50: 0.8130081301 | E50: 1.023333333 | F50: 0.9771986971
B51: 9 | C51: 1.2 | D51: 0.8333333333 | E51: 1.021666667 | F51: 0.9787928222
B52: 10 | C52: 1.17 | D52: 0.8547008547 | E52: 1.02 | F52: 0.9803921569
B53: 11 | C53: =C52-(C$52-C$57)/5 -> 1.16 | D53: 0.8620689655 | E53: =E52-(E$52-E$57)/5 -> 1.022 | F53: 0.9784735812
B54: 12 | C54: =C53-(C$52-C$57)/5 -> 1.15 | D54: 0.8695652174 | E54: 1.024 | F54: 0.9765625
B55: 13 | C55: 1.14 | D55: 0.8771929825 | E55: 1.026 | F55: 0.9746588694
B56: 14 | C56: 1.13 | D56: 0.8849557522 | E56: 1.028 | F56: 0.9727626459
B57: 15 | C57: 1.12 | D57: 0.8928571429 | E57: 1.03 | F57: 0.9708737864
B58: 16 | C58: =C57-(C$57-C$62)/5 -> 1.118 | D58: 0.8944543828 | E58: =E57-(E$57-E$62)/5 -> 1.03 | F58: 0.9708737864
B59: 17 | C59: =C58-(C$57-C$62)/5 -> 1.116 | D59: 0.8960573477 | E59: 1.03 | F59: 0.9708737864
B60: 18 | C60: 1.114 | D60: 0.8976660682 | E60: 1.03 | F60: 0.9708737864
B61: 19 | C61: 1.112 | D61: 0.8992805755 | E61: 1.03 | F61: 0.9708737864
B62: 20 | C62: 1.11 | D62: 0.9009009009 | E62: 1.03 | F62: 0.9708737864
B66: Prevalence of non-employment
B68: The 'population at risk' is assumed to be all those adults aged 16-64 who are unemployed under the International Labour Organisation (ILO) survey based definition
B69: ("out-of-work, available to start work in the next two weeks, and have looked for work in the last four weeks", ILO 2013, p.56) or economically inactive (not working or
B70: ILO unemployed), excluding 16-24 year olds in full-time education (FTE). This was estimated to be 754,200 people in 2016. The estimated proportions of
B71: non-employment were taken from the Annual Population Survey, 2016. Orkney and Shetland were exceptions: due to small sample sizes and unreliable estimates
B72: we used 2011 Census figures here (% of 16-64 year olds who were unemployed or inactive excluding young adults in FTE).
B73: Excluding young adults in FTE can be justified given the high proportion of this age group still in FTE (86% of 16 year olds, falling to 11% among 24%).
B74: Restricting the age bands affected to 16-64 can be justified because studies on the impact of employment have focused on the working-age population (of those in the
B75: Roelfs et al systematic review, 98% were aged <65).
B77: Prevalence by Area (proportion) | F77: Prevalence by deprivation quintile (proportion)
B78: Area | C78: Females | D78: Males | F78: SIMD 2016 quintile | G78: Age group | H78: Females | I78: Males
B79: SCOTLAND | C79: 0.2601600134 | D79: 0.1798011982 | F79: Q1 (most deprived) | G79: 16-24 | H79: 0.2642089094 | I79: 0.2604340568
B80: Ayrshire & Arran Health Board | C80: 0.3366037736 | D80: 0.2490942699 | G80: 25-34 | H80: 0.3894993895 | I80: 0.2406340058
B81: Borders Health Board | C81: 0.2967741935 | D81: 0.1767584098 | G81: 35-44 | H81: 0.360374415 | I81: 0.3566666667
B82: Dumfries & Galloway Health Board | C82: 0.308722467 | D82: 0.1522065728 | G82: 45-54 | H82: 0.4092953523 | I82: 0.3456998314
B83: Fife Health Board | C83: 0.2789675271 | D83: 0.1854181818 | G83: 55-64 | H83: 0.5414551607 | I83: 0.4700704225
B84: Forth Valley Health Board | C84: 0.2559166667 | D84: 0.1637662338
B85: Grampian Health Board | C85: 0.2523784631 | D85: 0.1757796258
B86: Greater Glasgow & Clyde Health Board | C86: 0.2693848134 | D86: 0.1849187552 | F86: Q2 | G86: 16-24 | H86: 0.1543985637 | I86: 0.1704347826
B87: Highland Health Board | C87: 0.2099470899 | D87: 0.1831074035 | G87: 25-34 | H87: 0.2919179735 | I87: 0.1446078431
B88: Lanarkshire Health Board | C88: 0.2490696587 | D88: 0.1810422812 | G88: 35-44 | H88: 0.2598290598 | I88: 0.1851851852
B89: Lothian Health Board | C89: 0.2537169939 | D89: 0.170078853 | G89: 45-54 | H89: 0.2412342216 | I89: 0.2015037594
B90: Orkney Health Board | C90: 0.2171107659 | D90: 0.1591084772 | G90: 55-64 | H90: 0.4969325153 | I90: 0.3551236749
B91: Shetland Health Board | C91: 0.1754263023 | D91: 0.1485182241
B92: Tayside Health Board | C92: 0.2180615385 | D92: 0.2163505976
B93: Western Isles Health Board | C93: 0.2097435897 | D93: 0.1455 | F93: Q3 | G93: 16-24 | H93: 0.11 | I93: 0.1272015656
B94: Aberdeen City Local Authority | C94: 0.2502654867 | D94: 0.21505 | G94: 25-34 | H94: 0.1818181818 | I94: 0.1052631579
B95: Aberdeenshire Local Authority | C95: 0.2475507766 | D95: 0.1427884615 | G95: 35-44 | H95: 0.2003058104 | I95: 0.09797297297
B96: Angus Local Authority | C96: 0.252722063 | D96: 0.138150289 | G96: 45-54 | H96: 0.1804320203 | I96: 0.1532033426
B97: Argyll & Bute Local Authority | C97: 0.2049586777 | D97: 0.1466666667 | G97: 55-64 | H97: 0.4315642458 | I97: 0.2658610272
B98: Clackmannanshire Local Authority | C98: 0.3470807453 | D98: 0.2555414013
B99: Dumfries & Galloway Local Authority | C99: 0.308722467 | D99: 0.1522065728
B100: Dundee City Local Authority | C100: 0.2222132797 | D100: 0.2887553648 | F100: Q4 | G100: 16-24 | H100: 0.15 | I100: 0.1170568562
B101: East Ayrshire Local Authority | C101: 0.3483505155 | D101: 0.278699187 | G101: 25-34 | H101: 0.1538461538 | I101: 0.06286982249
B102: East Dunbartonshire Local Authority | C102: 0.2248071217 | D102: 0.1485534591 | G102: 35-44 | H102: 0.157223796 | I102: 0.06286982249
B103: East Lothian Local Authority | C103: 0.2725301205 | D103: 0.1838410596 | G103: 45-54 | H103: 0.173245614 | I103: 0.08505747126
B104: East Renfrewshire Local Authority | C104: 0.1987837838 | D104: 0.1377617329 | G104: 55-64 | H104: 0.4330708661 | I104: 0.2276214834
B105: Edinburgh, City of Local Authority | C105: 0.24976 | D105: 0.1698086124
B106: Eilean Siar Local Authority | C106: 0.2097435897 | D106: 0.1455
B107: Falkirk Local Authority | C107: 0.2688537549 | D107: 0.1526680244 | F107: Q5 (least deprived) | G107: 16-24 | H107: 0.1552287582 | I107: 0.1398601399
B108: Fife Local Authority | C108: 0.2789675271 | D108: 0.1854181818 | G108: 25-34 | H108: 0.1931034483 | I108: 0.06056236482
B109: Glasgow City Local Authority | C109: 0.3041864802 | D109: 0.183360161 | G109: 35-44 | H109: 0.1419098143 | I109: 0.06056236482
B110: Highland Local Authority | C110: 0.2116642959 | D110: 0.1963068182 | G110: 45-54 | H110: 0.1139112903 | I110: 0.06479481641
B111: Inverclyde Local Authority | C111: 0.2572332016 | D111: 0.2528270042 | G111: 55-64 | H111: 0.4030612245 | I111: 0.2981715893
B112: Midlothian Local Authority | C112: 0.2496797153 | D112: 0.1564750958
B113: Moray Local Authority | C113: 0.2724210526 | D113: 0.1621917808
B114: North Ayrshire Local Authority | C114: 0.3704225352 | D114: 0.2537084399
B115: North Lanarkshire Local Authority | C115: 0.248383659 | D115: 0.1860412758 | F115: N.B. In cases where sample sizes were too small to produce reliable estimates we used the values
B116: Orkney Islands Local Authority | C116: 0.2171107659 | D116: 0.1591084772 | F116: for a larger age group, or applied the male:female ratio found in the 2017 data.
B117: Perth & Kinross Local Authority | C117: 0.1868722467 | D117: 0.2012641084
B118: Renfrewshire Local Authority | C118: 0.2048484848 | D118: 0.191598513
B119: Scottish Borders Local Authority | C119: 0.2967741935 | D119: 0.1767584098
B120: Shetland Islands Local Authority | C120: 0.1754263023 | D120: 0.1485182241
B121: South Ayrshire Local Authority | C121: 0.2827272727 | D121: 0.2095652174
B122: South Lanarkshire Local Authority | C122: 0.2498321816 | D122: 0.1755371901
B123: Stirling Local Authority | C123: 0.1834812287 | D123: 0.1313043478
B124: West Dunbartonshire Local Authority | C124: 0.2712627986 | D124: 0.2143589744
B125: West Lothian Local Authority | C125: 0.25678511 | D125: 0.1698018018
B126: Aberdeen City Region Deal | C126: 0.2488697789 | D126: 0.1782107843
B127: Edinburgh & SE Scotland City Region Deal | C127: 0.263727758 | D127: 0.1745980555
B128: Glasgow City Region Deal | C128: 0.2621713147 | D128: 0.1835269197
B129: Inverness & Highland City Region Deal | C129: 0.2116642959 | D129: 0.1963068182
B130: Tay Cities Region Deal | C130: 0.2473090764 | D130: 0.2019023355
B131: Clackmannanshire & Stirling IJB | C131: 0.2414977974 | D131: 0.1763510393
B134: Eligible population
B136: Not all of the non-employed population would be willing or able to take up a job if offered one. Therefore we needed to identify the 'eligible' proportion: those
B137: able to start work. We used the number of 'real unemployed' as a proportion of the population at risk defined above.
B138: Real unemployment is defined by Beatty et al (2017) as the ILO unemployed plus the 'hidden unemployed' (those on incapacity benefits who might be expected to
B139: work in a full-employed economy, after adjusting for ill-health and disability). Real unemployment in Scotland in 2017 was estimated as 219,000 by Beatty et al (2017).
B140: This equates to 30% of the population at risk: we used this as our eligible population figure.
B143: Intervention costs
B145: Cost of the intervention per person | C145: 4626
B146: The figure is based on the work of Beatty et al (2011) and inflated to financial year 2015/16 using the Hospital and Community Health Service (HCHS) inflation index.
B147: Beatty et al (2011) estimated the annual net cost per job created in a large scale government job creation scheme (wages, National Insurance plus employability
B148: support minus savings in benefits and extra tax revenue).
B150: Hospitalisation costs
B152: The cost of a continuous inpatient stay was estimated to be £2,113 in 2006/07 (Geue et al 2012; based on healthcare resource groups and the English tariff).
B153: This was inflated to £2,512 for 2015/16 using the Hospital and Community Health Service (HCHS) inflation index.
B154: Cost of continuous inpatient stay | C154: 2512
B156: References
B158: Beatty et al 2011 | C158: Beatty, Fothergill, Gore and Powell (2011) Tackling Worklessness in Britain’s Weaker Local Economies. Centre for Regional Economic and Social Research Sheffield Hallam University
B159: Beatty et al 2017 | C159: The real level of unemployment 2017. Centre for Regional Economic and Social Research, Sheffield Hallam University. https://www4.shu.ac.uk/research/cresr/sites/shu.ac.uk/files/real-level-unemployment-2017.pdf
B160: Browning and Heinesen 2012 | C160: Effect of job loss due to plant closure on mortality and hospitalization. Journal of Health Economics Volume 31, Issue 4, July 2012, Pages 599-616
B161: Clemens et al 2015 | C161: What is the effect of unemployment on all-cause mortality? A cohort study using propensity score matching. European Journal of Public Health, 25(1), 115.
B162: Geue et al 2012 | C162: Spoilt for choice: implications of using alternative methods of costing hospital episode statistics. Health Economics 21: 1201-1216. https://onlinelibrary.wiley.com/doi/abs/10.1002/hec.1785
B163: ILO (2013) | C163: 19th International Conference of Labour Statisticians. Geneva 2-11 October 2013. ICLS/19/2013/3. International Labour Organization, Geneva. http://www.ilo.org/wcmsp5/groups/public/---dgreports/---stat/documents/publication/wcms_234124.pdf
B164: Roelfs et al 2011 | C164: Losing life and livelihood: A systematic review and meta-analysis of unemployment and all-cause mortality. Social Science & Medicine Volume 72, Issue 6, March 2011, Pages 840-854

Sheet SHEETS TO BE HIDDEN -> (hidden)

Sheet Calculations (hidden)
A1: Calculating the deaths, years of life lost, hospital stays, and premature deaths for each group | K1: COUNTS | AJ1: EUROPEAN AGE-STANDARDISED RATE (EASR) PER 100000
A2: AREA: | B2: =Options!B11 -> Scotland | C2: EQUIVALENT AREA: | E2: =VLOOKUP(B2,Lists!D2:E85,2) -> Scotland | K2: CUMULATIVE INCIDENCE (DEATHS) | M2: YEARS OF LIFE LOST | O2: HOSPITALISATIONS | Q2: PREMATURE MORTALITY | S2: AGE STANDARDISED RATE (ASR) | AA2: ASR*EUROPEAN STANDARD POPULATION (ESP2013) | AJ2: CUMULATIVE INCIDENCE (DEATHS) | AL2: YEARS OF LIFE LOST | AN2: HOSPITALISATIONS | AP2: PREMATURE MORTALITY
A3: SIMD | B3: group | C3: mean age (2016) | D3: life exp (2014-16) | E3: sex | F3: SIMD | G3: prevalence exposure | H3: population (2016) | I3: no. treated at base | J3: additional no. treated under policy | K3: Baseline | L3: Policy | M3: Baseline | N3: Policy | O3: Baseline | P3: Policy | Q3: Baseline | R3: Policy | S3: CI_BASE | T3: CI_POLICY | U3: YLL_BASE | V3: YLL_POLICY | W3: HOSP_BASE | X3: HOSP_POLICY | Y3: PREM_BASE | Z3: PREM_POLICY | AA3: CI_BASE | AB3: CI_POLICY | AC3: YLL_BASE | AD3: YLL_POLICY | AE3: HOSP_BASE | AF3: HOSP_POLICY | AG3: PREM_BASE | AH3: PREM_POLICY | AI3: ESP2013 | AJ3: Baseline | AK3: Policy | AL3: Baseline | AM3: Policy | AN3: Baseline | AO3: Policy | AP3: Baseline | AQ3: Policy
A5: All quintiles | B5: 16+ Males and Females | C5: N/A | E5: BOTH | F5: ALL | H5: =SUM(H7:H11) -> 4488783 | I5: =SUM(I7:I11) -> 0 | J5: =SUM(J7:J11) -> 236920 | K5: =SUMIF(K7:K11,">0") -> 44525.44357 | L5: 44174.27078 | M5: 595632.2742 | N5: 585681.9355 | O5: 1143855.727 | P5: 1142437.705 | Q5: 21622.63929 | R5: 21271.46651 | AA5: =SUMIF(AA7:AA11,">0") -> 906582583.8 | AB5: =SUMIF(AB7:AB11,">0") -> 900063148.7 | AC5: 1.148675891e+10 | AD5: 1.130250181e+10 | AE5: 2.193969232e+10 | AF5: 2.191377383e+10 | AG5: 415409329.9 | AH5: 408889894.8 | AI5: =SUM(AI7:AI11) -> 1000000 | AJ5: =AA5/$AI5 -> 906.5825838 | AK5: =AB5/$AI5 -> 900.0631487 | AL5: =AC5/$AI5 -> 11486.75891 | AM5: 11302.50181 | AN5: 21939.69232 | AO5: 21913.77383 | AP5: 415.4093299 | AQ5: 408.8898948
A6: Q1 and Q2 | B6: 16+ Males and Females | C6: N/A | E6: BOTH | F6: Q1&2 | H6: =SUM(H7:H8) -> 1769266 | I6: 0 | J6: 94817 | K6: 23418.76279 | L6: 23237.11239 | M6: 318036.2601 | N6: 312833.1932 | O6: 542278.7308 | P6: 541592.9905 | Q6: 11404.58469 | R6: 11222.93429 | AA6: =SUMIF(AA7:AA8,">0") -> 502822584.9 | AB6: =SUMIF(AB7:AB8,">0") -> 499331019 | AC6: 6392196580 | AD6: 6293499978 | AE6: 1.078771081e+10 | AF6: 1.077498621e+10 | AG6: 231421873.4 | AH6: 227930307.5 | AI6: =SUM(AI7:AI8) -> 400000 | AJ6: =AA6/$AI6 -> 1257.056462 | AK6: 1248.327548 | AL6: 15980.49145 | AM6: 15733.74995 | AN6: 26969.27703 | AO6: 26937.46554 | AP6: 578.5546836 | AQ6: 569.8257687
A7: SIMD Q1 (most deprived) | B7: 16+ Males and Females | C7: N/A | E7: BOTH | F7: 1 | H7: =H12+H17 -> 872234 | I7: 0 | J7: 47632 | K7: 12911.12415 | L7: 12808.87539 | M7: =M12+M17 -> 179586.1412 | N7: 176639.6072 | O7: 288715.8401 | P7: 288339.6481 | Q7: 6423.555097 | R7: 6321.306341 | AA7: =AA12+AA17 -> 294467343.7 | AB7: =AB12+AB17 -> 292469993.7 | AC7: 3751933867 | AD7: 3695500028 | AE7: 5950449632 | AF7: 5943437896 | AG7: 135935066.6 | AH7: 133937716.5 | AI7: =AI12+AI17 -> 200000 | AJ7: =AA7/$AI7 -> 1472.336719 | AK7: 1462.349968 | AL7: =AC7/$AI7 -> 18759.66933 | AM7: =AD7/$AI7 -> 18477.50014 | AN7: =AE7/$AI7 -> 29752.24816 | AO7: =AF7/$AI7 -> 29717.18948 | AP7: =AG7/$AI7 -> 679.675333 | AQ7: =AH7/$AI7 -> 669.6885827
A8: SIMD Q2 | C8: N/A | E8: BOTH | F8: 2 | H8: =H13+H18 -> 897032 | I8: 0 | J8: 47185 | K8: =K13+K18 -> 10507.63864 | L8: 10428.237 | M8: 138450.119 | N8: 136193.5859 | O8: 253562.8907 | P8: 253253.3425 | Q8: 4981.029593 | R8: 4901.627954 | AA8: =AA13+AA18 -> 208355241.2 | AB8: =AB13+AB18 -> 206861025.3 | AC8: 2640262713 | AD8: 2597999950 | AE8: 4837261178 | AF8: 4831548319 | AG8: 95486806.84 | AH8: 93992590.95 | AI8: =AI13+AI18 -> 200000 | AJ8: 1041.776206 | AK8: 1034.305127 | AL8: 13201.31356 | AM8: 12989.99975 | AN8: 24186.30589 | AO8: 24157.74159 | AP8: 477.4340342 | AQ8: 469.9629547
A9: SIMD Q3 | C9: N/A | E9: BOTH | F9: 3 | H9: 907978 | I9: 0 | J9: 47063 | K9: 8992.433936 | L9: 8922.43623 | M9: 117522.0324 | N9: 115564.8577 | O9: 227312.9823 | P9: 227040.2703 | Q9: 4322.030557 | R9: 4252.032851 | AA9: =AA14+AA19 -> 169284636.8 | AB9: =AB14+AB19 -> 168026100.5 | AC9: 2139868442 | AD9: 2104331355 | AE9: 4182172525 | AF9: 4177226205 | AG9: 77326593.25 | AH9: 76068056.99 | AI9: =AI14+AI19 -> 200000 | AJ9: 846.4231838 | AK9: 840.1305025 | AL9: 10699.34221 | AM9: 10521.65678 | AN9: 20910.86262 | AO9: 20886.13103 | AP9: 386.6329663 | AQ9: 380.3402849
A10: SIMD Q4 | C10: N/A | E10: BOTH | F10: 4 | H10: 910792 | I10: 0 | J10: 47661 | K10: 7032.969577 | L10: 6974.643711 | M10: 93240.525 | N10: 91612.81955 | O10: 200119.0561 | P10: 199873.6497 | Q10: 3451.974228 | R10: 3393.648363 | AA10: =AA15+AA20 -> 134845499.6 | AB10: =AB15+AB20 -> 133823086.3 | AC10: 1700833486 | AD10: 1671972196 | AE10: 3688824591 | AF10: 3684459526 | AG10: 61417292.61 | AH10: 60394879.3 | AI10: =AI15+AI20 -> 200000 | AJ10: 674.2274979 | AK10: 669.1154314 | AL10: 8504.167431 | AM10: 8359.860979 | AN10: 18444.12295 | AO10: 18422.29763 | AP10: 307.086463 | AQ10: 301.9743965
A11: SIMD Q5 (least deprived) | C11: N/A | E11: BOTH | F11: 5 | H11: 900747 | I11: 0 | J11: 47379 | K11: 5081.277265 | L11: 5040.078452 | M11: 66833.45663 | N11: 65671.06513 | O11: 174144.9582 | P11: 173930.7942 | Q11: 2444.049812 | R11: 2402.850999 | AA11: =AA16+AA21 -> 99629862.5 | AB11: =AB16+AB21 -> 98882942.95 | AC11: 1253860406 | AD11: 1232698283 | AE11: 3280984393 | AF11: 3277101885 | AG11: 45243570.59 | AH11: 44496651.03 | AI11: =AI16+AI21 -> 200000 | AJ11: =AA11/$AI11 -> 498.1493125 | AK11: 494.4147147 | AL11: 6269.30203 | AM11: 6163.491417 | AN11: 16404.92197 | AO11: 16385.50943 | AP11: 226.2178529 | AQ11: 222.4832552
A12: SIMD Q1 (most deprived) | B12: 16+ Females | C12: N/A | E12: female | F12: 1 | H12: =SUM(H60:H78) -> 457633 | I12: =SUM(I60:I78) -> 0 | J12: =SUM(J60:J78) -> 24472 | K12: =SUMIF(K60:K78,">0") -> 6432.682109 | L12: 6396.862821 | M12: 82589.57664 | N12: 81515.71912 | O12: 155037.8909 | P12: 154833.9863 | Q12: 2638.991836 | R12: 2603.172547 | AA12: =SUMIF(AA60:AA78,">0") -> 124144463.5 | AB12: =SUMIF(AB60:AB78,">0") -> 123471953.1 | AC12: =SUMIF(AC60:AC78,">0") -> 1590474839 | AD12: 1570627868 | AE12: 2906076588 | AF12: 2902402715 | AG12: 53084727.85 | AH12: 52412217.42 | AI12: =SUM(AI60:AI78) -> 100000 | AJ12: 1241.444635 | AK12: 1234.719531 | AL12: 15904.74839 | AM12: 15706.27868 | AN12: 29060.76588 | AO12: 29024.02715 | AP12: 530.8472785 | AQ12: 524.1221742
A13: SIMD Q2 | C13: N/A | E13: female | F13: 2 | H13: =SUM(H98:H116) -> 469079 | I13: =SUM(I98:I116) -> 0 | J13: =SUM(J98:J116) -> 24086 | K13: =SUMIF(K98:K116,">0") -> 5243.303146 | L13: 5216.385064 | M13: 64050.96301 | N13: 63255.19928 | O13: 134904.8591 | P13: 134738.4561 | Q13: 2052.816722 | R13: 2025.89864 | AA13: =SUMIF(AA98:AA116,">0") -> 87785381.52 | AB13: =SUMIF(AB98:AB116,">0") -> 87299669.56 | AC13: 1118787893 | AD13: 1104418048 | AE13: 2362418360 | AF13: 2359425779 | AG13: 37263208.41 | AH13: 36777496.46 | AI13: =SUM(AI98:AI116) -> 100000 | AJ13: 877.8538152 | AK13: 872.9966956 | AL13: 11187.87893 | AM13: 11044.18048 | AN13: 23624.1836 | AO13: 23594.25779 | AP13: 372.6320841 | AQ13: 367.7749646
A14: SIMD Q3 | C14: N/A | E14: female | F14: 3 | H14: =SUM(H136:H154) -> 469093 | I14: =SUM(I136:I154) -> 0 | J14: =SUM(J136:J154) -> 23829 | K14: =SUMIF(K136:K154,">0") -> 4357.491075 | L14: 4334.446375 | M14: 53303.54139 | N14: 52629.25612 | O14: 118438.0814 | P14: 118293.1546 | Q14: 1753.333496 | R14: 1730.288797 | AA14: =SUMIF(AA136:AA154,">0") -> 71303471.39 | AB14: =SUMIF(AB136:AB154,">0") -> 70901847.5 | AC14: 906584539.4 | AD14: 894699108.7 | AE14: 2042486604 | AF14: 2039895753 | AG14: 30166690.64 | AH14: 29765066.75 | AI14: =SUM(AI136:AI154) -> 100000 | AJ14: 713.0347139 | AK14: 709.018475 | AL14: 9065.845394 | AM14: 8946.991087 | AN14: 20424.86604 | AO14: 20398.95753 | AP14: 301.6669064 | AQ14: 297.6506675
A15: SIMD Q4 | C15: N/A | E15: female | F15: 4 | H15: =SUM(H174:H192) -> 468792 | I15: =SUM(I174:I192) -> 0 | J15: =SUM(J174:J192) -> 24118 | K15: =SUMIF(K174:K192,">0") -> 3355.038507 | L15: 3336.283562 | M15: 41832.21313 | N15: 41283.22062 | O15: 103630.2706 | P15: 103500.1662 | Q15: 1387.523295 | R15: 1368.76835 | AA15: =SUMIF(AA174:AA192,">0") -> 56783209.31 | AB15: =SUMIF(AB174:AB192,">0") -> 56463576.45 | AC15: 720465780.2 | AD15: 710999597.5 | AE15: 1801545672 | AF15: 1799259936 | AG15: 23953480.3 | AH15: 23633847.44 | AI15: =SUM(AI174:AI192) -> 100000 | AJ15: 567.8320931 | AK15: 564.6357645 | AL15: 7204.657802 | AM15: 7109.995975 | AN15: 18015.45672 | AO15: 17992.59936 | AP15: 239.534803 | AQ15: 236.3384744
A16: SIMD Q5 (least deprived) | C16: N/A | E16: female | F16: 5 | H16: =SUM(H212:H230) -> 465079 | I16: =SUM(I212:I230) -> 0 | J16: =SUM(J212:J230) -> 24007 | K16: =SUMIF(K212:K230,">0") -> 2446.284924 | L16: 2432.703211 | M16: 30220.92449 | N16: 29821.66836 | O16: 90811.93649 | P16: 90697.77808 | Q16: 993.5715021 | R16: 979.989789 | AA16: =SUMIF(AA212:AA230,">0") -> 41943379.36 | AB16: =SUMIF(AB212:AB230,">0") -> 41705419.81 | AC16: 531048599.9 | AD16: 524008893.7 | AE16: 1602364951 | AF16: 1600331159 | AG16: 17640757.59 | AH16: 17402798.05 | AI16: =SUM(AI212:AI230) -> 100000 | AJ16: 419.4337936 | AK16: 417.0541981 | AL16: 5310.485999 | AM16: 5240.088937 | AN16: 16023.64951 | AO16: 16003.31159 | AP16: 176.4075759 | AQ16: 174.0279805
A17: SIMD Q1 (most deprived) | B17: 16+ Males | C17: N/A | E17: male | F17: 1 | H17: =SUM(H79:H97) -> 414601 | I17: =SUM(I79:I97) -> 0 | J17: =SUM(J79:J97) -> 23160 | K17: =SUMIF(K79:K97,">0") -> 6478.442041 | L17: 6412.012573 | M17: 96996.56456 | N17: 95123.88809 | O17: 133677.9492 | P17: 133505.6618 | Q17: 3784.563261 | R17: 3718.133793 | AA17: =SUMIF(AA79:AA97,">0") -> 170322880.2 | AB17: =SUMIF(AB79:AB97,">0") -> 168998040.6 | AC17: 2161459027 | AD17: 2124872160 | AE17: 3044373044 | AF17: 3041035181 | AG17: 82850338.75 | AH17: 81525499.13 | AI17: =SUM(AI79:AI97) -> 100000 | AJ17: 1703.228802 | AK17: 1689.980406 | AL17: 21614.59027 | AM17: 21248.7216 | AN17: 30443.73044 | AO17: 30410.35181 | AP17: 828.5033875 | AQ17: 815.2549913
A18: SIMD Q2 | C18: N/A | E18: male | F18: 2 | H18: =SUM(H117:H135) -> 427953 | I18: =SUM(I117:I135) -> 0 | J18: =SUM(J117:J135) -> 23099 | K18: =SUMIF(K117:K135,">0") -> 5264.335491 | L18: 5211.851934 | M18: 74399.15594 | N18: 72938.38667 | O18: 118658.0316 | P18: 118514.8864 | Q18: 2928.212871 | R18: 2875.729314 | AA18: =SUMIF(AA117:AA135,">0") -> 120569859.7 | AB18: =SUMIF(AB117:AB135,">0") -> 119561355.8 | AC18: 1521474820 | AD18: 1493581903 | AE18: 2474842818 | AF18: 2472122540 | AG18: 58223598.43 | AH18: 57215094.49 | AI18: =SUM(AI117:AI135) -> 100000 | AJ18: 1205.698597 | AK18: 1195.613558 | AL18: 15214.7482 | AM18: 14935.81903 | AN18: 24748.42818 | AO18: 24721.2254 | AP18: 582.2359843 | AQ18: 572.1509449
A19: SIMD Q3 | C19: N/A | E19: male | F19: 3 | H19: =SUM(H155:H173) -> 438885 | I19: =SUM(I155:I173) -> 0 | J19: =SUM(J155:J173) -> 23234 | K19: =SUMIF(K155:K173,">0") -> 4634.942861 | L19: 4587.989854 | M19: 64218.49102 | N19: 62935.60154 | O19: 108874.9009 | P19: 108747.1156 | Q19: 2568.697061 | R19: 2521.744054 | AA19: =SUMIF(AA155:AA173,">0") -> 97981165.38 | AB19: =SUMIF(AB155:AB173,">0") -> 97124253.01 | AC19: 1233283903 | AD19: 1209632247 | AE19: 2139685921 | AF19: 2137330452 | AG19: 47159902.61 | AH19: 46302990.24 | AI19: =SUM(AI155:AI173) -> 100000 | AJ19: =AA19/$AI19 -> 979.8116538 | AK19: =AB19/$AI19 -> 971.2425301 | AL19: =AC19/$AI19 -> 12332.83903 | AM19: =AD19/$AI19 -> 12096.32247 | AN19: 21396.85921 | AO19: 21373.30452 | AP19: 471.5990261 | AQ19: 463.0299024
A20: SIMD Q4 | C20: N/A | E20: male | F20: 4 | H20: =SUM(H193:H211) -> 442000 | I20: =SUM(I193:I211) -> 0 | J20: =SUM(J193:J211) -> 23543 | K20: =SUMIF(K193:K211,">0") -> 3677.931069 | L20: 3638.360148 | M20: 51408.31187 | N20: 50329.59893 | O20: 96488.78552 | P20: 96373.48351 | Q20: 2064.450934 | R20: 2024.880013 | AA20: =SUMIF(AA193:AA211,">0") -> 78062290.28 | AB20: =SUMIF(AB193:AB211,">0") -> 77359509.83 | AC20: 980367706 | AD20: 960972598.3 | AE20: 1887278919 | AF20: 1885199591 | AG20: 37463812.31 | AH20: 36761031.86 | AI20: =SUM(AI193:AI211) -> 100000 | AJ20: 780.6229028 | AK20: 773.5950983 | AL20: 9803.67706 | AM20: 9609.725983 | AN20: 18872.78919 | AO20: 18851.99591 | AP20: 374.6381231 | AQ20: 367.6103186
A21: SIMD Q5 (least deprived) | C21: N/A | E21: male | F21: 5 | H21: =SUM(H231:H249) -> 435668 | I21: =SUM(I231:I249) -> 0 | J21: =SUM(J231:J249) -> 23372 | K21: =SUMIF(K231:K249,">0") -> 2634.992341 | L21: 2607.375241 | M21: 36612.53214 | N21: 35849.39677 | O21: 83333.02172 | P21: 83233.01616 | Q21: 1450.47831 | R21: 1422.86121 | AA21: =SUMIF(AA231:AA249,">0") -> 57686483.15 | AB21: =SUMIF(AB231:AB249,">0") -> 57177523.13 | AC21: 722811806.1 | AD21: 708689389.8 | AE21: 1678619443 | AF21: 1676770726 | AG21: 27602813 | AH21: 27093852.98 | AI21: =SUM(AI231:AI249) -> 100000 | AJ21: =AA21/$AI21 -> 576.8648315 | AK21: 571.7752313 | AL21: 7228.118061 | AM21: 7086.893898 | AN21: 16786.19443 | AO21: 16767.70726 | AP21: 276.02813 | AQ21: 270.9385298
B22: Female 0-4 | C22: 2.0384007 | D22: 81.468401 | E22: female | F22: ALL | H22: =SUM(H60,H98,H136,H174,H212) -> 0 | I22: 0 | J22: 0 | K22: =SUM(K60,K98,K136,K174,K212) ->  | AA22: =SUM(AA60,AA98,AA136,AA174,AA212) ->  | AI22: 25000
B23: Female 5-9 | C23: 6.9792795 | D23: 81.43928 | E23: female | F23: ALL | H23: =SUM(H61,H99,H137,H175,H213) -> 0 | I23: 0 | J23: 0 | K23: =SUM(K61,K99,K137,K175,K213) ->  | M23: =SUM(M61,M99,M137,M175,M213) ->  | AA23: =SUM(AA61,AA99,AA137,AA175,AA213) ->  | AI23: 27500
B24: Female 10-15 | C24: 12.478312 | D24: 81.94831 | E24: female | F24: ALL | H24: =SUM(H62,H100,H138,H176,H214) -> 0 | I24: 0 | J24: 0 | K24: =SUM(K62,K100,K138,K176,K214) ->  | L24: =SUM(L62,L100,L138,L176,L214) ->  | O24: =SUM(O62,O100,O138,O176,O214) ->  | P24: =SUM(P62,P100,P138,P176,P214) ->  | AA24: =SUM(AA62,AA100,AA138,AA176,AA214) ->  | AI24: 33000
A25: All quintiles | B25: Female 16-19 | C25: 17.570053 | D25: 81.10005 | E25: female | F25: ALL | H25: =SUM(H63,H101,H139,H177,H215) -> 118803 | I25: 0 | J25: 8065 | K25: 22.93752856 | L25: 22.26882597 | M25: 1434.283592 | N25: 1392.469621 | O25: 12465.29027 | P25: 12438.2879 | Q25: 22.93752856 | R25: 22.26882597 | AA25: =SUM(AA63,AA101,AA139,AA177,AA215) -> 426138.0551 | AB25: 413710.458 | AC25: 26646411.31 | AD25: 25869313.7 | AE25: 231245008.5 | AF25: 230744074.8 | AG25: 426138.0551 | AH25: 413710.458 | AI25: 22000 | AJ25: 19.36991159 | AK25: 18.80502082 | AL25: 1211.200514 | AM25: 1175.877895 | AN25: 10511.13675 | AO25: 10488.36704 | AP25: 19.36991159 | AQ25: 18.80502082
B26: Female 20-24 | C26: 22.077057 | D26: 81.66706 | E26: female | F26: ALL | H26: =SUM(H64,H102,H140,H178,H216) -> 182279 | I26: 0 | J26: 12375 | K26: 51.98089425 | L26: 50.46579357 | M26: 3045.56075 | N26: 2956.790997 | O26: 21506.62704 | P26: 21460.03817 | Q26: 51.98089425 | R26: 50.46579357 | AA26: =SUM(AA64,AA102,AA140,AA178,AA216) -> 852528.0109 | AB26: 827666.7652 | AC26: 49949618.71 | AD26: 48492998.25 | AE26: 353188002.8 | AF26: 352422886.4 | AG26: 852528.0109 | AH26: 827666.7652 | AI26: 30000 | AJ26: 28.41760036 | AK26: 27.58889217 | AL26: 1664.98729 | AM26: 1616.433275 | AN26: 11772.93343 | AO26: 11747.42955 | AP26: 28.41760036 | AQ26: 27.58889217
B27: Female 25-29 | C27: 26.975187 | D27: 81.64519 | E27: female | F27: ALL | H27: =SUM(H65,H103,H141,H179,H217) -> 187975 | I27: 0 | J27: 12762 | K27: 84.83294087 | L27: 82.44225256 | M27: 4552.984191 | N27: 4424.675942 | O27: 25701.25489 | P27: 25645.68148 | Q27: 84.83294087 | R27: 82.44225256 | AA27: =SUM(AA65,AA103,AA141,AA179,AA217) -> 1293008.039 | AB27: 1256432.157 | AC27: 69395745.32 | AD27: 67432717.62 | AE27: 399497115.4 | AF27: 398633096.2 | AG27: 1293008.039 | AH27: 1256432.157 | AI27: 30000 | AJ27: 43.10026796 | AK27: 41.88107189 | AL27: 2313.191511 | AM27: 2247.757254 | AN27: 13316.57051 | AO27: 13287.76987 | AP27: 43.10026796 | AQ27: 41.88107189
B28: Female 30-34 | C28: 31.999905 | D28: 81.7999 | E28: female | F28: ALL | H28: =SUM(H66,H104,H142,H180,H218) -> 179608 | I28: 0 | J28: 12193 | K28: 122.8544277 | L28: 119.3893853 | M28: 5995.295458 | N28: 5826.201407 | O28: 27681.46121 | P28: 27621.60544 | Q28: 122.8544277 | R28: 119.3893853 | AA28: =SUM(AA66,AA104,AA142,AA180,AA218) -> 2147391.353 | AB28: 2086657.777 | AC28: 104792687.3 | AD28: 101828889.1 | AE28: 491095913.1 | AF28: 490033853.2 | AG28: 2147391.353 | AH28: 2086657.777 | AI28: 32500 | AJ28: 66.07358009 | AK28: 64.20485468 | AL28: 3224.390378 | AM28: 3133.196587 | AN28: 15110.64348 | AO28: 15077.96471 | AP28: 66.07358009 | AQ28: 64.20485468
B29: Female 35-39 | C29: 36.918118 | D29: 81.89812 | E29: female | F29: ALL | H29: =SUM(H67,H105,H143,H181,H219) -> 166485 | I29: 0 | J29: 11302 | K29: 168.2348926 | L29: 163.452621 | M29: 7398.970912 | N29: 7188.646599 | O29: 28578.84599 | P29: 28517.02098 | Q29: 168.2348926 | R29: 163.452621 | AA29: =SUM(AA67,AA105,AA143,AA181,AA219) -> 3513022.017 | AB29: 3413084.681 | AC29: 154502715.3 | AD29: 150107471.1 | AE29: 598519214.2 | AF29: 597224382.3 | AG29: 3513022.017 | AH29: 3413084.681 | AI29: 35000 | AJ29: 100.3720576 | AK29: 97.51670516 | AL29: 4414.363295 | AM29: 4288.784888 | AN29: 17100.54898 | AO29: 17063.55378 | AP29: 100.3720576 | AQ29: 97.51670516
B30: Female 40-44 | C30: 42.077438 | D30: 82.30744 | E30: female | F30: ALL | H30: =SUM(H68,H106,H144,H182,H220) -> 172709 | I30: 0 | J30: 11724 | K30: 265.8492977 | L30: 258.2847241 | M30: 10429.26848 | N30: 10132.51024 | O30: 33419.63756 | P30: 33347.33903 | Q30: 265.8492977 | R30: 258.2847241 | AA30: =SUM(AA68,AA106,AA144,AA182,AA220) -> 5446515.293 | AB30: 5291635.498 | AC30: 213666805.9 | AD30: 207590871.2 | AE30: 681457961.7 | AF30: 679983787.6 | AG30: 5446515.293 | AH30: 5291635.498 | AI30: 35000 | AJ30: 155.6147227 | AK30: 151.1895857 | AL30: 6104.765882 | AM30: 5931.167747 | AN30: 19470.22748 | AO30: 19428.10822 | AP30: 155.6147227 | AQ30: 151.1895857
B31: Female 45-49 | C31: 47.025772 | D31: 82.58577 | E31: female | F31: ALL | H31: =SUM(H69,H107,H145,H183,H221) -> 202829 | I31: 0 | J31: 13770 | K31: 475.6821157 | L31: 462.1753118 | M31: 16439.57297 | N31: 15972.77785 | O31: 44462.66378 | P31: 44366.47208 | Q31: 475.6821157 | R31: 462.1753118 | AA31: =SUM(AA69,AA107,AA145,AA183,AA221) -> 8292716.352 | AB31: 8057447.106 | AC31: 286596260.5 | AD31: 278465355.9 | AE31: 771783001 | AF31: 770113390.9 | AG31: 8292716.352 | AH31: 8057447.106 | AI31: 35000 | AJ31: 236.9347529 | AK31: 230.2127745 | AL31: 8188.464587 | AM31: 7956.153025 | AN31: 22050.94289 | AO31: 22003.23974 | AP31: 236.9347529 | AQ31: 230.2127745
B32: Female 50-54 | C32: 51.990826 | D32: 82.98083 | E32: female | F32: ALL | H32: =SUM(H70,H108,H146,H184,H222) -> 209262 | I32: 0 | J32: 14206 | K32: 746.878664 | L32: 725.6799953 | M32: 22398.89412 | N32: 21763.14596 | O32: 51924.44852 | P32: 51812.1171 | Q32: 746.878664 | R32: 725.6799953 | AA32: =SUM(AA70,AA108,AA146,AA184,AA222) -> 12641048.09 | AB32: 12282688.41 | AC32: 379105082.7 | AD32: 368357874.5 | AE32: 874448019.8 | AF32: 872556400.7 | AG32: 12641048.09 | AH32: 12282688.41 | AI32: 35000 | AJ32: 361.1728025 | AK32: 350.9339545 | AL32: 10831.57379 | AM32: 10524.5107 | AN32: 24984.22914 | AO32: 24930.18288 | AP32: 361.1728025 | AQ32: 350.9339545
B33: Female 55-59 | C33: 56.953041 | D33: 83.47304 | E33: female | F33: ALL | H33: =SUM(H71,H109,H147,H185,H223) -> 190084 | I33: 0 | J33: 12904 | K33: 1032.71423 | L33: 1005.478662 | M33: 26354.86611 | N33: 25659.81445 | O33: 53414.87334 | P33: 53299.84186 | Q33: 1032.71423 | R33: 1005.478662 | AA33: =SUM(AA71,AA109,AA147,AA185,AA223) -> 17881782.76 | AB33: 17410514.68 | AC33: 456343078.1 | AD33: 444316317.3 | AE33: 919934892.6 | AF33: 917953847 | AG33: 17881782.76 | AH33: 17410514.68 | AI33: 32500 | AJ33: 550.2087003 | AK33: 535.7081441 | AL33: 14041.32548 | AM33: 13671.2713 | AN33: 28305.689 | AO33: 28244.73376 | AP33: 550.2087003 | AQ33: 535.7081441
B34: Female 60-64 | C34: 61.947388 | D34: 84.16739 | E34: female | F34: ALL | H34: =SUM(H72,H110,H148,H186,H224) -> 165146 | I34: 0 | J34: 11211 | K34: 1358.511836 | L34: 1322.720527 | M34: 28827.62387 | N34: 28068.13222 | O34: 52377.01197 | P34: 52264.21347 | Q34: 1358.511836 | R34: 1322.720527 | AA34: =SUM(AA72,AA110,AA148,AA186,AA224) -> 25199479.24 | AB34: 24536353 | AC34: 534732999.9 | AD34: 520661459.8 | AE34: 962839226.4 | AF34: 960765803.2 | AG34: 25199479.24 | AH34: 24536353 | AI34: 30000 | AJ34: 839.9826413 | AK34: 817.8784334 | AL34: 17824.43333 | AM34: 17355.38199 | AN34: 32094.64088 | AO34: 32025.52677 | AP34: 839.9826413 | AQ34: 817.8784334
B35: Female 65-69 | C35: 67.063927 | D35: 85.19393 | E35: female | F35: ALL | H35: =SUM(H73,H111,H149,H187,H225) -> 164057 | I35: 0 | J35: 0 | K35: 2067.361981 | L35: 2067.361981 | M35: 35413.91693 | N35: 35413.91693 | O35: 58973.2205 | P35: 58973.2205 | Q35: 2067.361981 | R35: 2067.361981 | AA35: =SUM(AA73,AA111,AA149,AA187,AA225) -> 35605067.58 | AB35: 35605067.58 | AC35: 609914914.4 | AD35: 609914914.4 | AE35: 1003826931 | AF35: 1003826931 | AG35: 35605067.58 | AH35: 35605067.58 | AI35: 27500 | AJ35: 1294.72973 | AK35: 1294.72973 | AL35: 22178.72416 | AM35: 22178.72416 | AN35: 36502.79749 | AO35: 36502.79749 | AP35: 1294.72973 | AQ35: 1294.72973
B36: Female 70-74 | C36: 71.938164 | D36: 86.24816 | E36: female | F36: ALL | H36: =SUM(H74,H112,H150,H188,H226) -> 127150 | I36: 0 | J36: 0 | K36: 2428.398044 | L36: 2428.398044 | M36: 32321.96825 | N36: 32321.96825 | O36: 51815.94224 | P36: 51815.94224 | Q36: 2428.398044 | R36: 2428.398044 | AA36: =SUM(AA74,AA112,AA150,AA188,AA226) -> 48810168 | AB36: 48810168 | AC36: 649663140.8 | AD36: 649663140.8 | AE36: 1031603609 | AF36: 1031603609 | AG36: 48810168 | AH36: 48810168 | AI36: 25000 | AJ36: 1952.40672 | AK36: 1952.40672 | AL36: 25986.52563 | AM36: 25986.52563 | AN36: 41264.14437 | AO36: 41264.14437 | AP36: 1952.40672 | AQ36: 1952.40672
B37: Female 75-79 | C37: 76.942825 | D37: 87.81283 | E37: female | F37: ALL | H37: =SUM(H75,H113,H151,H189,H227) -> 104331 | I37: 0 | J37: 0 | K37: 3079.383076 | L37: 3079.383076 | M37: 30393.52636 | N37: 30393.52636 | O37: 48655.39333 | P37: 48655.39333 | Q37: 0 | R37: 0 | AA37: =SUM(AA75,AA113,AA151,AA189,AA227) -> 59413070.32 | AB37: 59413070.32 | AC37: 586407301.1 | AD37: 586407301.1 | AE37: 935996664.2 | AF37: 935996664.2 | AG37: 0 | AH37: 0 | AI37: 20000 | AJ37: 2970.653516 | AK37: 2970.653516 | AL37: 29320.36506 | AM37: 29320.36506 | AN37: 46799.83321 | AO37: 46799.83321 | AP37: 0 | AQ37: 0
B38: Female 80-84 | C38: 81.856712 | D38: 89.73671 | E38: female | F38: ALL | H38: =SUM(H76,H114,H152,H190,H228) -> 80217 | I38: 0 | J38: 0 | K38: 3572.447119 | L38: 3572.447119 | M38: 24578.42904 | N38: 24578.42904 | O38: 42391.15608 | P38: 42391.15608 | Q38: 0 | R38: 0 | AA38: =SUM(AA76,AA114,AA152,AA190,AA228) -> 55901264.73 | AB38: 55901264.73 | AC38: 384600589.5 | AD38: 384600589.5 | AE38: 661963669 | AF38: 661963669 | AG38: 0 | AH38: 0 | AI38: 12500 | AJ38: 4472.101178 | AK38: 4472.101178 | AL38: 30768.04716 | AM38: 30768.04716 | AN38: 52957.09352 | AO38: 52957.09352 | AP38: 0 | AQ38: 0
B39: Female 85-89 | C39: 86.73082 | D39: 92.22082 | E39: female | F39: ALL | H39: =SUM(H77,H115,H153,H191,H229) -> 49691 | I39: 0 | J39: 0 | K39: 3276.500044 | L39: 3276.500044 | M39: 14711.4852 | N39: 14711.4852 | O39: 29525.06547 | P39: 29525.06547 | Q39: 0 | R39: 0 | AA39: =SUM(AA77,AA115,AA153,AA191,AA229) -> 50101859.86 | AB39: 50101859.86 | AC39: 224957350.8 | AD39: 224957350.8 | AE39: 448983820.1 | AF39: 448983820.1 | AG39: 0 | AH39: 0 | AI39: 7500 | AJ39: 6680.247982 | AK39: 6680.247982 | AL39: 29994.31344 | AM39: 29994.31344 | AN39: 59864.50934 | AO39: 59864.50934 | AP39: 0 | AQ39: 0
B40: Female 90+ | C40: 92.779343 | D40: 96.27934 | E40: female | F40: ALL | H40: =SUM(H78,H116,H154,H192,H230) -> 29050 | I40: 0 | J40: 0 | K40: 3080.232671 | L40: 3080.232671 | M40: 7700.572437 | N40: 7700.572437 | O40: 19930.14616 | P40: 19930.14616 | Q40: 0 | R40: 0 | AA40: =SUM(AA78,AA116,AA154,AA192,AA230) -> 54434845.39 | AB40: 54434845.39 | AC40: 136086950.2 | AD40: 136086950.2 | AE40: 348509125.9 | AF40: 348509125.9 | AG40: 0 | AH40: 0 | AI40: 5000 | AJ40: 10886.96908 | AK40: 10886.96908 | AL40: 27217.39003 | AM40: 27217.39003 | AN40: 69701.82517 | AO40: 69701.82517 | AP40: 0 | AQ40: 0
B41: Male 0-4 | C41: 2.0320823 | D41: 77.402082 | E41: male | F41: ALL | H41: =SUM(H79,H117,H155,H193,H231) -> 0 | I41: 0 | J41: 0 | AA41: =SUM(AA79,AA117,AA155,AA193,AA231) ->  | AI41: 25000
B42: Male 5-9 | C42: 6.9784756 | D42: 77.398476 | E42: male | F42: ALL | H42: =SUM(H80,H118,H156,H194,H232) -> 0 | I42: 0 | J42: 0 | AA42: =SUM(AA80,AA118,AA156,AA194,AA232) ->  | AI42: 27500
B43: Male 10-15 | C43: 12.471144 | D43: 77.92114 | E43: male | F43: ALL | H43: =SUM(H81,H119,H157,H195,H233) -> 0 | I43: 0 | J43: 0 | AA43: =SUM(AA81,AA119,AA157,AA195,AA233) ->  | AI43: 33000
B44: Male 16-19 | C44: 17.556318 | D44: 77.07632 | E44: male | F44: ALL | H44: =SUM(H82,H120,H158,H196,H234) -> 124418 | I44: 0 | J44: 8447 | K44: 56.98355268 | L44: 54.96304252 | M44: 3334.677617 | N44: 3216.437358 | O44: 8826.189231 | P44: 8807.067544 | Q44: 56.98355268 | R44: 54.96304252 | AA44: =SUM(AA82,AA120,AA158,AA196,AA234) -> 1013116.82 | AB44: 977175.7999 | AC44: 59287598.33 | AD44: 57184329.77 | AE44: 156551621.6 | AF44: 156212455.2 | AG44: 1013116.82 | AH44: 977175.7999 | AI44: 22000 | AJ44: 46.05076455 | AK44: 44.41708182 | AL44: 2694.890833 | AM44: 2599.287717 | AN44: 7115.9828 | AO44: 7100.566146 | AP44: 46.05076455 | AQ44: 44.41708182
B45: Male 20-24 | C45: 22.054632 | D45: 77.70463 | E45: male | F45: ALL | H45: =SUM(H83,H121,H159,H197,H235) -> 181688 | I45: 0 | J45: 12333 | K45: 117.5306195 | L45: 113.3652759 | M45: 6423.048121 | N45: 6195.412101 | O45: 15171.57336 | P45: 15138.71036 | Q45: 117.5306195 | R45: 113.3652759 | AA45: =SUM(AA83,AA121,AA159,AA197,AA235) -> 1939994.052 | AB45: 1871193.028 | AC45: 106020671.1 | AD45: 102260695.3 | AE45: 250437460.6 | AF45: 249894981 | AG45: 1939994.052 | AH45: 1871193.028 | AI45: 30000 | AJ45: 64.66646841 | AK45: 62.37310094 | AL45: 3534.022369 | AM45: 3408.689842 | AN45: 8347.915354 | AO45: 8329.832698 | AP45: 64.66646841 | AQ45: 62.37310094
B46: Male 25-29 | C46: 26.959763 | D46: 77.78976 | E46: male | F46: ALL | H46: =SUM(H84,H122,H160,H198,H236) -> 186149 | I46: 0 | J46: 12637 | K46: 180.0706239 | L46: 173.5610983 | M46: 8972.91865 | N46: 8648.549007 | O46: 18844.70775 | P46: 18803.85975 | Q46: 180.0706239 | R46: 173.5610983 | AA46: =SUM(AA84,AA122,AA160,AA198,AA236) -> 2809024.74 | AB46: 2707026.677 | AC46: 139973694.4 | AD46: 134891131.2 | AE46: 298066844.9 | AF46: 297420670.5 | AG46: 2809024.74 | AH46: 2707026.677 | AI46: 30000 | AJ46: 93.63415801 | AK46: 90.23422258 | AL46: 4665.789813 | AM46: 4496.371041 | AN46: 9935.561496 | AO46: 9914.022351 | AP46: 93.63415801 | AQ46: 90.23422258
B47: Male 30-34 | C47: 31.981522 | D47: 78.06152 | E47: male | F47: ALL | H47: =SUM(H85,H123,H161,H199,H237) -> 172305 | I47: 0 | J47: 11698 | K47: 242.7413567 | L47: 233.9602844 | M47: 10942.77987 | N47: 10546.92915 | O47: 20810.11301 | P47: 20765.00108 | Q47: 242.7413567 | R47: 233.9602844 | AA47: =SUM(AA85,AA123,AA161,AA199,AA237) -> 4444862.251 | AB47: 4283517.553 | AC47: 200374381.4 | AD47: 193100962.7 | AE47: 385911765.1 | AF47: 385075102.2 | AG47: 4444862.251 | AH47: 4283517.553 | AI47: 32500 | AJ47: 136.7649923 | AK47: 131.8005401 | AL47: 6165.365581 | AM47: 5941.568084 | AN47: 11874.20816 | AO47: 11848.46468 | AP47: 136.7649923 | AQ47: 131.8005401
B48: Male 35-39 | C48: 36.92601 | D48: 78.33601 | E48: male | F48: ALL | H48: =SUM(H86,H124,H162,H200,H238) -> 161268 | I48: 0 | J48: 10948 | K48: 321.6609567 | L48: 310.3193573 | M48: 12998.31926 | N48: 12540.00523 | O48: 22880.10876 | P48: 22830.54814 | Q48: 321.6609567 | R48: 310.3193573 | AA48: =SUM(AA86,AA124,AA162,AA200,AA238) -> 6950213.91 | AB48: 6704889.672 | AC48: 280858144.1 | AD48: 270944591.7 | AE48: 495329032.5 | AF48: 494256065.8 | AG48: 6950213.91 | AH48: 6704889.672 | AI48: 35000 | AJ48: 198.5775403 | AK48: 191.5682763 | AL48: 8024.518403 | AM48: 7741.274047 | AN48: 14152.25807 | AO48: 14121.60188 | AP48: 198.5775403 | AQ48: 191.5682763
B49: Male 40-44 | C49: 42.067703 | D49: 78.9077 | E49: male | F49: ALL | H49: =SUM(H87,H125,H163,H201,H239) -> 164929 | I49: 0 | J49: 11197 | K49: 475.9416535 | L49: 459.1156648 | M49: 17057.74743 | N49: 16454.70405 | O49: 27796.41123 | P49: 27736.19183 | Q49: 475.9416535 | R49: 459.1156648 | AA49: =SUM(AA87,AA125,AA163,AA201,AA239) -> 10240833.89 | AB49: 9879609.958 | AC49: 367031456 | AD49: 354085191.3 | AE49: 594504097.5 | AF49: 593216228.9 | AG49: 10240833.89 | AH49: 9879609.958 | AI49: 35000 | AJ49: 292.5952541 | AK49: 282.2745702 | AL49: 10486.61303 | AM49: 10116.71975 | AN49: 16985.83136 | AO49: 16949.03511 | AP49: 292.5952541 | AQ49: 282.2745702
B50: Male 45-49 | C50: 47.038155 | D50: 79.41815 | E50: male | F50: ALL | H50: =SUM(H88,H126,H164,H202,H240) -> 189422 | I50: 0 | J50: 12860 | K50: 794.7484385 | L50: 766.9808014 | M50: 24939.20203 | N50: 24067.85371 | O50: 38076.87909 | P50: 37994.40985 | Q50: 794.7484385 | R50: 766.9808014 | AA50: =SUM(AA88,AA126,AA164,AA202,AA240) -> 14891887.41 | AB50: 14372957.39 | AC50: 467307352.5 | AD50: 451023331 | AE50: 709212168.1 | AF50: 707676229.3 | AG50: 14891887.41 | AH50: 14372957.39 | AI50: 35000 | AJ50: 425.4824975 | AK50: 410.6559254 | AL50: 13351.63864 | AM50: 12886.38089 | AN50: 20263.2048 | AO50: 20219.32084 | AP50: 425.4824975 | AQ50: 410.6559254
B51: Male 50-54 | C51: 51.998646 | D51: 79.98865 | E51: male | F51: ALL | H51: =SUM(H89,H127,H165,H203,H241) -> 197429 | I51: 0 | J51: 13402 | K51: 1202.06303 | L51: 1160.113327 | M51: 32443.68598 | N51: 31311.46334 | O51: 47294.71013 | P51: 47192.28994 | Q51: 1202.06303 | R51: 1160.113327 | AA51: =SUM(AA89,AA127,AA165,AA203,AA241) -> 21631193.81 | AB51: 20878696.46 | AC51: 583826007.5 | AD51: 563516101 | AE51: 845753788.7 | AF51: 843922422.2 | AG51: 21631193.81 | AH51: 20878696.46 | AI51: 35000 | AJ51: 618.034109 | AK51: 596.5341846 | AL51: 16680.74307 | AM51: 16100.46003 | AN51: 24164.39396 | AO51: 24112.06921 | AP51: 618.034109 | AQ51: 596.5341846
B52: Male 55-59 | C52: 56.950867 | D52: 80.66087 | E52: male | F52: ALL | H52: =SUM(H90,H128,H166,H204,H242) -> 180737 | I52: 0 | J52: 12269 | K52: 1595.035655 | L52: 1544.412859 | M52: 36223.2645 | N52: 35073.62065 | O52: 51591.13693 | P52: 51479.74002 | Q52: 1595.035655 | R52: 1544.412859 | AA52: =SUM(AA90,AA128,AA166,AA204,AA242) -> 29140835.31 | AB52: 28218888.97 | AC52: 661788457.4 | AD52: 640851053.2 | AE52: 936266656.8 | AF52: 934245243 | AG52: 29140835.31 | AH52: 28218888.97 | AI52: 32500 | AJ52: 896.6410865 | AK52: 868.2735068 | AL52: 20362.72176 | AM52: 19718.49395 | AN52: 28808.20482 | AO52: 28746.00748 | AP52: 896.6410865 | AQ52: 868.2735068
B53: Male 60-64 | C53: 61.942989 | D53: 81.61299 | E53: male | F53: ALL | H53: =SUM(H91,H129,H167,H205,H243) -> 156406 | I53: 0 | J53: 10617 | K53: 1989.40683 | L53: 1926.336953 | M53: 37142.22751 | N53: 35964.71284 | O53: 53033.32073 | P53: 52918.80621 | Q53: 1989.40683 | R53: 1926.336953 | AA53: =SUM(AA91,AA129,AA167,AA205,AA243) -> 39112754.47 | AB53: 37878764.76 | AC53: 730235165 | AD53: 707196576 | AE53: 1031793596 | AF53: 1029565979 | AG53: 39112754.47 | AH53: 37878764.76 | AI53: 30000 | AJ53: 1303.758482 | AK53: 1262.625492 | AL53: 24341.17217 | AM53: 23573.2192 | AN53: 34393.11986 | AO53: 34318.86598 | AP53: 1303.758482 | AQ53: 1262.625492
B54: Male 65-69 | C54: 67.05442 | D54: 82.95442 | E54: male | F54: ALL | H54: =SUM(H92,H130,H168,H206,H244) -> 153467 | I54: 0 | J54: 0 | K54: 2845.43991 | L54: 2845.43991 | M54: 42397.05466 | N54: 42397.05466 | O54: 62174.33177 | P54: 62174.33177 | Q54: 2845.43991 | R54: 2845.43991 | AA54: =SUM(AA92,AA130,AA168,AA206,AA244) -> 52584699.04 | AB54: 52584699.04 | AC54: 783512015.6 | AD54: 783512015.6 | AE54: 1133962873 | AF54: 1133962873 | AG54: 52584699.04 | AH54: 52584699.04 | AI54: 27500 | AJ54: 1912.170874 | AK54: 1912.170874 | AL54: 28491.34602 | AM54: 28491.34602 | AN54: 41235.01357 | AO54: 41235.01357 | AP54: 1912.170874 | AQ54: 1912.170874
B55: Male 70-74 | C55: 71.891098 | D55: 84.3411 | E55: male | F55: ALL | H55: =SUM(H93,H131,H169,H207,H245) -> 111869 | I55: 0 | J55: 0 | K55: 2974.779811 | L55: 2974.779811 | M55: 34061.23479 | N55: 34061.23479 | O55: 53814.8044 | P55: 53814.8044 | Q55: 2974.779811 | R55: 2974.779811 | AA55: =SUM(AA93,AA131,AA169,AA207,AA245) -> 68541049.4 | AB55: 68541049.4 | AC55: 784795152.7 | AD55: 784795152.7 | AE55: 1223954580 | AF55: 1223954580 | AG55: 68541049.4 | AH55: 68541049.4 | AI55: 25000 | AJ55: 2741.641976 | AK55: 2741.641976 | AL55: 31391.80611 | AM55: 31391.80611 | AN55: 48958.18319 | AO55: 48958.18319 | AP55: 2741.641976 | AQ55: 2741.641976
B56: Male 75-79 | C56: 76.9077 | D56: 86.3577 | E56: male | F56: ALL | H56: =SUM(H94,H132,H170,H208,H246) -> 82515 | I56: 0 | J56: 0 | K56: 3204.941532 | L56: 3204.941532 | M56: 27081.75595 | N56: 27081.75595 | O56: 47629.86304 | P56: 47629.86304 | Q56: 0 | R56: 0 | AA56: =SUM(AA94,AA132,AA170,AA208,AA246) -> 79500841.64 | AB56: 79500841.64 | AC56: 671782111.9 | AD56: 671782111.9 | AE56: 1170005852 | AF56: 1170005852 | AG56: 0 | AH56: 0 | AI56: 20000 | AJ56: 3975.042082 | AK56: 3975.042082 | AL56: 33589.10559 | AM56: 33589.10559 | AN56: 58500.29258 | AO56: 58500.29258 | AP56: 0 | AQ56: 0
B57: Male 80-84 | C57: 81.797089 | D57: 88.62709 | E57: male | F57: ALL | H57: =SUM(H95,H133,H171,H209,H247) -> 56201 | I57: 0 | J57: 0 | K57: 3103.948479 | L57: 3103.948479 | M57: 18096.02274 | N57: 18096.02274 | O57: 38436.06303 | P57: 38436.06303 | Q57: 0 | R57: 0 | AA57: =SUM(AA95,AA133,AA171,AA209,AA247) -> 71140704.03 | AB57: 71140704.03 | AC57: 414750375.6 | AD57: 414750375.6 | AE57: 869840774.2 | AF57: 869840774.2 | AG57: 0 | AH57: 0 | AI57: 12500 | AJ57: 5691.256322 | AK57: 5691.256322 | AL57: 33180.03005 | AM57: 33180.03005 | AN57: 69587.26194 | AO57: 69587.26194 | AP57: 0 | AQ57: 0
B58: Male 85-89 | C58: 86.630753 | D58: 91.42075 | E58: male | F58: ALL | H58: =SUM(H96,H134,H172,H210,H248) -> 28287 | I58: 0 | J58: 0 | K58: 2197.859553 | L58: 2197.859553 | M58: 8329.881111 | N58: 8329.881111 | O58: 22836.6917 | P58: 22836.6917 | Q58: 0 | R58: 0 | AA58: =SUM(AA96,AA134,AA172,AA210,AA248) -> 60596740.92 | AB58: 60596740.92 | AC58: 229661466.3 | AD58: 229661466.3 | AE58: 619589003.4 | AF58: 619589003.4 | AG58: 0 | AH58: 0 | AI58: 7500 | AJ58: 8079.565456 | AK58: 8079.565456 | AL58: 30621.52884 | AM58: 30621.52884 | AN58: 82611.86713 | AO58: 82611.86713 | AP58: 0 | AQ58: 0
B59: Male 90+ | C59: 92.215477 | D59: 95.51548 | E59: male | F59: ALL | H59: =SUM(H97,H135,H173,H211,H249) -> 12017 | I59: 0 | J59: 0 | K59: 1387.491802 | L59: 1387.491802 | M59: 3191.235308 | N59: 3191.235308 | O59: 11815.7848 | P59: 11815.7848 | Q59: 0 | R59: 0 | AA59: =SUM(AA97,AA135,AA173,AA211,AA249) -> 60083927.03 | AB59: 60083927.03 | AC59: 138193212.4 | AD59: 138193212.4 | AE59: 503620030.1 | AF59: 503620030.1 | AG59: 0 | AH59: 0 | AI59: 5000 | AJ59: =AA59/$AI59 -> 12016.78541 | AK59: 12016.78541 | AL59: =AC59/$AI59 -> 27638.64248 | AM59: 27638.64248 | AN59: 100724.006 | AO59: 100724.006 | AP59: 0 | AQ59: 0
B60: Female 0-4 | C60: 2.0384007 | D60: 81.468401 | E60: female | F60: 1 | G60: =HLOOKUP(Calculations!$E$2,'Prevalence Rates'!$C$3:$BC$249,'Prevalence Rates'!$BD60,FALSE) -> 0 | H60: =HLOOKUP(Calculations!$E$2,'Population 2016'!$C$3:$BC$249,'Population 2016'!BD60,FALSE) -> 0 | I60: 0 | J60: =HLOOKUP(Results!E$4,Targeting!$C$3:$F$249,Targeting!$G60,FALSE) -> 0 | K60: =IF(AND(OR(Calculations!$E$2="Orkney Health Board",Calculations!$E$2="Orkney Islands Local Authority"),$F60=1),0,IF(AND(OR(Calculations!$E$2="Shetland Health Board",Calculations!$E$2="Western Isles Health Board",Calculations!$E$2="Shetland Islands Local Authority",Calculations!$E$2="Eilean Siar Local Authority"),OR($F60=1,$F60=5)),0,new_ci(VALUE(LEFT(Options!$B$24,2)),$C60,$E60,$F60,2016,$I60,1,$H60,$G60*$H60,Options!$B$8))) ->  | L60: =IF(AND(OR(Calculations!$E$2="Orkney Health Board",Calculations!$E$2="Orkney Islands Local Authority"),$F60=1),0,IF(AND(OR(Calculations!$E$2="Shetland Health Board",Calculations!$E$2="Western Isles Health Board",Calculations!$E$2="Shetland Islands Local Authority",Calculations!$E$2="Eilean Siar Local Authority"),OR($F60=1,$F60=5)),0,new_ci(VALUE(LEFT(Options!$B$24,2)),$C60,$E60,$F60,2016,$I60+$J60,1,$H60,$G60*$H60,Options!$B$8))) ->  | M60: =IF(AND(OR(Calculations!$E$2="Orkney Health Board",Calculations!$E$2="Orkney Islands Local Authority"),$F60=1),0,IF(AND(OR(Calculations!$E$2="Shetland Health Board",Calculations!$E$2="Western Isles Health Board",Calculations!$E$2="Shetland Islands Local Authority",Calculations!$E$2="Eilean Siar Local Authority"),OR($F60=1,$F60=5)),0,new_yllv2(VALUE(LEFT(Options!$B$24,2)),$C60,$D60,$E60,$F60,2016,$I60,1,$H60,$G60*$H60,Options!$B$8))) ->  | N60: =IF(AND(OR(Calculations!$E$2="Orkney Health Board",Calculations!$E$2="Orkney Islands Local Authority"),$F60=1),0,IF(AND(OR(Calculations!$E$2="Shetland Health Board",Calculations!$E$2="Western Isles Health Board",Calculations!$E$2="Shetland Islands Local Authority",Calculations!$E$2="Eilean Siar Local Authority"),OR($F60=1,$F60=5)),0,new_yllv2(VALUE(LEFT(Options!$B$24,2)),$C60,$D60,$E60,$F60,2016,$I60+$J60,1,$H60,$G60*$H60,Options!$B$8))) ->  | O60: =IF(AND(OR(Calculations!$E$2="Orkney Health Board",Calculations!$E$2="Orkney Islands Local Authority"),$F60=1),0,IF(AND(OR(Calculations!$E$2="Shetland Health Board",Calculations!$E$2="Western Isles Health Board",Calculations!$E$2="Shetland Islands Local Authority",Calculations!$E$2="Eilean Siar Local Authority"),OR($F60=1,$F60=5)),0,hosp_count(VALUE(LEFT(Options!$B$24,2)),$C60,$E60,$F60,2016,$I60,1,$H60,$G60*$H60, Options!$B$8))) ->  | P60: =IF(AND(OR(Calculations!$E$2="Orkney Health Board",Calculations!$E$2="Orkney Islands Local Authority"),$F60=1),0,IF(AND(OR(Calculations!$E$2="Shetland Health Board",Calculations!$E$2="Western Isles Health Board",Calculations!$E$2="Shetland Islands Local Authority",Calculations!$E$2="Eilean Siar Local Authority"),OR($F60=1,$F60=5)),0,hosp_count(VALUE(LEFT(Options!$B$24,2)),$C60,$E60,$F60,2016,$I60+$J60,1,$H60,$G60*$H60, Options!$B$8))) ->  | Q60: =IF(AND(OR(Calculations!$E$2="Orkney Health Board",Calculations!$E$2="Orkney Islands Local Authority"),$F60=1),0,IF(AND(OR(Calculations!$E$2="Shetland Health Board",Calculations!$E$2="Western Isles Health Board",Calculations!$E$2="Shetland Islands Local Authority",Calculations!$E$2="Eilean Siar Local Authority"),OR($F60=1,$F60=5)),0,prem_mort(VALUE(LEFT(Options!$B$24,2)),$C60,$E60,$F60,2016,$I60,1,$H60,$G60*$H60,Options!$B$8))) ->  | R60: =IF(AND(OR(Calculations!$E$2="Orkney Health Board",Calculations!$E$2="Orkney Islands Local Authority"),$F60=1),0,IF(AND(OR(Calculations!$E$2="Shetland Health Board",Calculations!$E$2="Western Isles Health Board",Calculations!$E$2="Shetland Islands Local Authority",Calculations!$E$2="Eilean Siar Local Authority"),OR($F60=1,$F60=5)),0,prem_mort(VALUE(LEFT(Options!$B$24,2)),$C60,$E60,$F60,2016,$I60+$J60,1,$H60,$G60*$H60,Options!$B$8))) ->  | S60: =K60*100000/$H60 ->  | AA60: =S60*$AI60 ->  | AB60: =T60*$AI60 ->  | AC60: =U60*$AI60 ->  | AD60: =V60*$AI60 ->  | AE60: =W60*$AI60 ->  | AF60: =X60*$AI60 ->  | AG60: =Y60*$AI60 ->  | AH60: =Z60*$AI60 ->  | AI60: 5000
B61: Female 5-9 | C61: 6.9792795 | D61: 81.43928 | E61: female | F61: 1 | G61: =HLOOKUP(Calculations!$E$2,'Prevalence Rates'!$C$3:$BC$249,'Prevalence Rates'!$BD61,FALSE) -> 0 | H61: =HLOOKUP(Calculations!$E$2,'Population 2016'!$C$3:$BC$249,'Population 2016'!BD61,FALSE) -> 0 | I61: 0 | J61: =HLOOKUP(Results!E$4,Targeting!$C$3:$F$249,Targeting!$G61,FALSE) -> 0 | K61: =IF(AND(OR(Calculations!$E$2="Orkney Health Board",Calculations!$E$2="Orkney Islands Local Authority"),$F61=1),0,IF(AND(OR(Calculations!$E$2="Shetland Health Board",Calculations!$E$2="Western Isles Health Board",Calculations!$E$2="Shetland Islands Local Authority",Calculations!$E$2="Eilean Siar Local Authority"),OR($F61=1,$F61=5)),0,new_ci(VALUE(LEFT(Options!$B$24,2)),$C61,$E61,$F61,2016,$I61,1,$H61,$G61*$H61,Options!$B$8))) ->  | L61: =IF(AND(OR(Calculations!$E$2="Orkney Health Board",Calculations!$E$2="Orkney Islands Local Authority"),$F61=1),0,IF(AND(OR(Calculations!$E$2="Shetland Health Board",Calculations!$E$2="Western Isles Health Board",Calculations!$E$2="Shetland Islands Local Authority",Calculations!$E$2="Eilean Siar Local Authority"),OR($F61=1,$F61=5)),0,new_ci(VALUE(LEFT(Options!$B$24,2)),$C61,$E61,$F61,2016,$I61+$J61,1,$H61,$G61*$H61,Options!$B$8))) ->  | M61: =IF(AND(OR(Calculations!$E$2="Orkney Health Board",Calculations!$E$2="Orkney Islands Local Authority"),$F61=1),0,IF(AND(OR(Calculations!$E$2="Shetland Health Board",Calculations!$E$2="Western Isles Health Board",Calculations!$E$2="Shetland Islands Local Authority",Calculations!$E$2="Eilean Siar Local Authority"),OR($F61=1,$F61=5)),0,new_yllv2(VALUE(LEFT(Options!$B$24,2)),$C61,$D61,$E61,$F61,2016,$I61,1,$H61,$G61*$H61,Options!$B$8))) ->  | N61: =IF(AND(OR(Calculations!$E$2="Orkney Health Board",Calculations!$E$2="Orkney Islands Local Authority"),$F61=1),0,IF(AND(OR(Calculations!$E$2="Shetland Health Board",Calculations!$E$2="Western Isles Health Board",Calculations!$E$2="Shetland Islands Local Authority",Calculations!$E$2="Eilean Siar Local Authority"),OR($F61=1,$F61=5)),0,new_yllv2(VALUE(LEFT(Options!$B$24,2)),$C61,$D61,$E61,$F61,2016,$I61+$J61,1,$H61,$G61*$H61,Options!$B$8))) ->  | O61: =IF(AND(OR(Calculations!$E$2="Orkney Health Board",Calculations!$E$2="Orkney Islands Local Authority"),$F61=1),0,IF(AND(OR(Calculations!$E$2="Shetland Health Board",Calculations!$E$2="Western Isles Health Board",Calculations!$E$2="Shetland Islands Local Authority",Calculations!$E$2="Eilean Siar Local Authority"),OR($F61=1,$F61=5)),0,hosp_count(VALUE(LEFT(Options!$B$24,2)),$C61,$E61,$F61,2016,$I61,1,$H61,$G61*$H61, Options!$B$8))) ->  | P61: =IF(AND(OR(Calculations!$E$2="Orkney Health Board",Calculations!$E$2="Orkney Islands Local Authority"),$F61=1),0,IF(AND(OR(Calculations!$E$2="Shetland Health Board",Calculations!$E$2="Western Isles Health Board",Calculations!$E$2="Shetland Islands Local Authority",Calculations!$E$2="Eilean Siar Local Authority"),OR($F61=1,$F61=5)),0,hosp_count(VALUE(LEFT(Options!$B$24,2)),$C61,$E61,$F61,2016,$I61+$J61,1,$H61,$G61*$H61, Options!$B$8))) ->  | Q61: =IF(AND(OR(Calculations!$E$2="Orkney Health Board",Calculations!$E$2="Orkney Islands Local Authority"),$F61=1),0,IF(AND(OR(Calculations!$E$2="Shetland Health Board",Calculations!$E$2="Western Isles Health Board",Calculations!$E$2="Shetland Islands Local Authority",Calculations!$E$2="Eilean Siar Local Authority"),OR($F61=1,$F61=5)),0,prem_mort(VALUE(LEFT(Options!$B$24,2)),$C61,$E61,$F61,2016,$I61,1,$H61,$G61*$H61,Options!$B$8))) ->  | R61: =IF(AND(OR(Calculations!$E$2="Orkney Health Board",Calculations!$E$2="Orkney Islands Local Authority"),$F61=1),0,IF(AND(OR(Calculations!$E$2="Shetland Health Board",Calculations!$E$2="Western Isles Health Board",Calculations!$E$2="Shetland Islands Local Authority",Calculations!$E$2="Eilean Siar Local Authority"),OR($F61=1,$F61=5)),0,prem_mort(VALUE(LEFT(Options!$B$24,2)),$C61,$E61,$F61,2016,$I61+$J61,1,$H61,$G61*$H61,Options!$B$8))) ->  | S61: =K61*100000/$H61 ->  | T61: =L61*100000/$H61 ->  | U61: =M61*100000/$H61 ->  | V61: =N61*100000/$H61 ->  | W61: =O61*100000/$H61 ->  | X61: =P61*100000/$H61 ->  | Y61: =Q61*100000/$H61 ->  | Z61: =R61*100000/$H61 ->  | AA61: =S61*$AI61 ->  | AB61: =T61*$AI61 ->  | AC61: =U61*$AI61 ->  | AI61: 5500
B62: Female 10-15 | C62: 12.478312 | D62: 81.94831 | E62: female | F62: 1 | G62: =HLOOKUP(Calculations!$E$2,'Prevalence Rates'!$C$3:$BC$249,'Prevalence Rates'!$BD62,FALSE) -> 0 | H62: =HLOOKUP(Calculations!$E$2,'Population 2016'!$C$3:$BC$249,'Population 2016'!BD62,FALSE) -> 0 | I62: 0 | J62: =HLOOKUP(Results!E$4,Targeting!$C$3:$F$249,Targeting!$G62,FALSE) -> 0 | K62: =IF(AND(OR(Calculations!$E$2="Orkney Health Board",Calculations!$E$2="Orkney Islands Local Authority"),$F62=1),0,IF(AND(OR(Calculations!$E$2="Shetland Health Board",Calculations!$E$2="Western Isles Health Board",Calculations!$E$2="Shetland Islands Local Authority",Calculations!$E$2="Eilean Siar Local Authority"),OR($F62=1,$F62=5)),0,new_ci(VALUE(LEFT(Options!$B$24,2)),$C62,$E62,$F62,2016,$I62,1,$H62,$G62*$H62,Options!$B$8))) ->  | L62: =IF(AND(OR(Calculations!$E$2="Orkney Health Board",Calculations!$E$2="Orkney Islands Local Authority"),$F62=1),0,IF(AND(OR(Calculations!$E$2="Shetland Health Board",Calculations!$E$2="Western Isles Health Board",Calculations!$E$2="Shetland Islands Local Authority",Calculations!$E$2="Eilean Siar Local Authority"),OR($F62=1,$F62=5)),0,new_ci(VALUE(LEFT(Options!$B$24,2)),$C62,$E62,$F62,2016,$I62+$J62,1,$H62,$G62*$H62,Options!$B$8))) ->  | M62: =IF(AND(OR(Calculations!$E$2="Orkney Health Board",Calculations!$E$2="Orkney Islands Local Authority"),$F62=1),0,IF(AND(OR(Calculations!$E$2="Shetland Health Board",Calculations!$E$2="Western Isles Health Board",Calculations!$E$2="Shetland Islands Local Authority",Calculations!$E$2="Eilean Siar Local Authority"),OR($F62=1,$F62=5)),0,new_yllv2(VALUE(LEFT(Options!$B$24,2)),$C62,$D62,$E62,$F62,2016,$I62,1,$H62,$G62*$H62,Options!$B$8))) ->  | N62: =IF(AND(OR(Calculations!$E$2="Orkney Health Board",Calculations!$E$2="Orkney Islands Local Authority"),$F62=1),0,IF(AND(OR(Calculations!$E$2="Shetland Health Board",Calculations!$E$2="Western Isles Health Board",Calculations!$E$2="Shetland Islands Local Authority",Calculations!$E$2="Eilean Siar Local Authority"),OR($F62=1,$F62=5)),0,new_yllv2(VALUE(LEFT(Options!$B$24,2)),$C62,$D62,$E62,$F62,2016,$I62+$J62,1,$H62,$G62*$H62,Options!$B$8))) ->  | O62: =IF(AND(OR(Calculations!$E$2="Orkney Health Board",Calculations!$E$2="Orkney Islands Local Authority"),$F62=1),0,IF(AND(OR(Calculations!$E$2="Shetland Health Board",Calculations!$E$2="Western Isles Health Board",Calculations!$E$2="Shetland Islands Local Authority",Calculations!$E$2="Eilean Siar Local Authority"),OR($F62=1,$F62=5)),0,hosp_count(VALUE(LEFT(Options!$B$24,2)),$C62,$E62,$F62,2016,$I62,1,$H62,$G62*$H62, Options!$B$8))) ->  | P62: =IF(AND(OR(Calculations!$E$2="Orkney Health Board",Calculations!$E$2="Orkney Islands Local Authority"),$F62=1),0,IF(AND(OR(Calculations!$E$2="Shetland Health Board",Calculations!$E$2="Western Isles Health Board",Calculations!$E$2="Shetland Islands Local Authority",Calculations!$E$2="Eilean Siar Local Authority"),OR($F62=1,$F62=5)),0,hosp_count(VALUE(LEFT(Options!$B$24,2)),$C62,$E62,$F62,2016,$I62+$J62,1,$H62,$G62*$H62, Options!$B$8))) ->  | Q62: =IF(AND(OR(Calculations!$E$2="Orkney Health Board",Calculations!$E$2="Orkney Islands Local Authority"),$F62=1),0,IF(AND(OR(Calculations!$E$2="Shetland Health Board",Calculations!$E$2="Western Isles Health Board",Calculations!$E$2="Shetland Islands Local Authority",Calculations!$E$2="Eilean Siar Local Authority"),OR($F62=1,$F62=5)),0,prem_mort(VALUE(LEFT(Options!$B$24,2)),$C62,$E62,$F62,2016,$I62,1,$H62,$G62*$H62,Options!$B$8))) ->  | R62: =IF(AND(OR(Calculations!$E$2="Orkney Health Board",Calculations!$E$2="Orkney Islands Local Authority"),$F62=1),0,IF(AND(OR(Calculations!$E$2="Shetland Health Board",Calculations!$E$2="Western Isles Health Board",Calculations!$E$2="Shetland Islands Local Authority",Calculations!$E$2="Eilean Siar Local Authority"),OR($F62=1,$F62=5)),0,prem_mort(VALUE(LEFT(Options!$B$24,2)),$C62,$E62,$F62,2016,$I62+$J62,1,$H62,$G62*$H62,Options!$B$8))) ->  | AI62: 6600
A63: SIMD Q1 (most deprived) | B63: Female 16-19 | C63: 17.570053 | D63: 81.10005 | E63: female | F63: 1 | G63: =HLOOKUP(Calculations!$E$2,'Prevalence Rates'!$C$3:$BC$249,'Prevalence Rates'!$BD63,FALSE) -> 0.2642089094 | H63: =HLOOKUP(Calculations!$E$2,'Population 2016'!$C$3:$BC$249,'Population 2016'!BD63,FALSE) -> 24142 | I63: 0 | J63: =HLOOKUP(Results!E$4,Targeting!$C$3:$F$249,Targeting!$G63,FALSE) -> 1639 | K63: =IF(AND(OR(Calculations!$E$2="Orkney Health Board",Calculations!$E$2="Orkney Islands Local Authority"),$F63=1),0,IF(AND(OR(Calculations!$E$2="Shetland Health Board",Calculations!$E$2="Western Isles Health Board",Calculations!$E$2="Shetland Islands Local Authority",Calculations!$E$2="Eilean Siar Local Authority"),OR($F63=1,$F63=5)),0,new_ci(VALUE(LEFT(Options!$B$24,2)),$C63,$E63,$F63,2016,$I63,1,$H63,$G63*$H63,Options!$B$8))) -> 7.677677352 | L63: =IF(AND(OR(Calculations!$E$2="Orkney Health Board",Calculations!$E$2="Orkney Islands Local Authority"),$F63=1),0,IF(AND(OR(Calculations!$E$2="Shetland Health Board",Calculations!$E$2="Western Isles Health Board",Calculations!$E$2="Shetland Islands Local Authority",Calculations!$E$2="Eilean Siar Local Authority"),OR($F63=1,$F63=5)),0,new_ci(VALUE(LEFT(Options!$B$24,2)),$C63,$E63,$F63,2016,$I63+$J63,1,$H63,$G63*$H63,Options!$B$8))) -> 7.460098791 | M63: =IF(AND(OR(Calculations!$E$2="Orkney Health Board",Calculations!$E$2="Orkney Islands Local Authority"),$F63=1),0,IF(AND(OR(Calculations!$E$2="Shetland Health Board",Calculations!$E$2="Western Isles Health Board",Calculations!$E$2="Shetland Islands Local Authority",Calculations!$E$2="Eilean Siar Local Authority"),OR($F63=1,$F63=5)),0,new_yllv2(VALUE(LEFT(Options!$B$24,2)),$C63,$D63,$E63,$F63,2016,$I63,1,$H63,$G63*$H63,Options!$B$8))) -> 480.0851418 | N63: =IF(AND(OR(Calculations!$E$2="Orkney Health Board",Calculations!$E$2="Orkney Islands Local Authority"),$F63=1),0,IF(AND(OR(Calculations!$E$2="Shetland Health Board",Calculations!$E$2="Western Isles Health Board",Calculations!$E$2="Shetland Islands Local Authority",Calculations!$E$2="Eilean Siar Local Authority"),OR($F63=1,$F63=5)),0,new_yllv2(VALUE(LEFT(Options!$B$24,2)),$C63,$D63,$E63,$F63,2016,$I63+$J63,1,$H63,$G63*$H63,Options!$B$8))) -> 466.479955 | O63: =IF(AND(OR(Calculations!$E$2="Orkney Health Board",Calculations!$E$2="Orkney Islands Local Authority"),$F63=1),0,IF(AND(OR(Calculations!$E$2="Shetland Health Board",Calculations!$E$2="Western Isles Health Board",Calculations!$E$2="Shetland Islands Local Authority",Calculations!$E$2="Eilean Siar Local Authority"),OR($F63=1,$F63=5)),0,hosp_count(VALUE(LEFT(Options!$B$24,2)),$C63,$E63,$F63,2016,$I63,1,$H63,$G63*$H63, Options!$B$8))) -> 3441.218007 | P63: =IF(AND(OR(Calculations!$E$2="Orkney Health Board",Calculations!$E$2="Orkney Islands Local Authority"),$F63=1),0,IF(AND(OR(Calculations!$E$2="Shetland Health Board",Calculations!$E$2="Western Isles Health Board",Calculations!$E$2="Shetland Islands Local Authority",Calculations!$E$2="Eilean Siar Local Authority"),OR($F63=1,$F63=5)),0,hosp_count(VALUE(LEFT(Options!$B$24,2)),$C63,$E63,$F63,2016,$I63+$J63,1,$H63,$G63*$H63, Options!$B$8))) -> 3433.776397 | Q63: =IF(AND(OR(Calculations!$E$2="Orkney Health Board",Calculations!$E$2="Orkney Islands Local Authority"),$F63=1),0,IF(AND(OR(Calculations!$E$2="Shetland Health Board",Calculations!$E$2="Western Isles Health Board",Calculations!$E$2="Shetland Islands Local Authority",Calculations!$E$2="Eilean Siar Local Authority"),OR($F63=1,$F63=5)),0,prem_mort(VALUE(LEFT(Options!$B$24,2)),$C63,$E63,$F63,2016,$I63,1,$H63,$G63*$H63,Options!$B$8))) -> 7.677677352 | R63: =IF(AND(OR(Calculations!$E$2="Orkney Health Board",Calculations!$E$2="Orkney Islands Local Authority"),$F63=1),0,IF(AND(OR(Calculations!$E$2="Shetland Health Board",Calculations!$E$2="Western Isles Health Board",Calculations!$E$2="Shetland Islands Local Authority",Calculations!$E$2="Eilean Siar Local Authority"),OR($F63=1,$F63=5)),0,prem_mort(VALUE(LEFT(Options!$B$24,2)),$C63,$E63,$F63,2016,$I63+$J63,1,$H63,$G63*$H63,Options!$B$8))) -> 7.460098791 | S63: 31.80215952 | T63: 30.90091455 | U63: 1988.58894 | V63: 1932.234094 | W63: 14254.07177 | X63: 14223.24744 | Y63: 31.80215952 | Z63: 30.90091455 | AA63: =S63*$AI63 -> 139929.5019 | AB63: 135964.024 | AC63: 8749791.334 | AD63: 8501830.014 | AE63: 62717915.79 | AF63: 62582288.74 | AG63: 139929.5019 | AH63: =Z63*$AI63 -> 135964.024 | AI63: 4400
B64: Female 20-24 | C64: 22.077057 | D64: 81.66706 | E64: female | F64: 1 | G64: =HLOOKUP(Calculations!$E$2,'Prevalence Rates'!$C$3:$BC$249,'Prevalence Rates'!$BD64,FALSE) -> 0.2642089094 | H64: =HLOOKUP(Calculations!$E$2,'Population 2016'!$C$3:$BC$249,'Population 2016'!BD64,FALSE) -> 37624 | I64: 0 | J64: =HLOOKUP(Results!E$4,Targeting!$C$3:$F$249,Targeting!$G64,FALSE) -> 2554 | K64: =IF(AND(OR(Calculations!$E$2="Orkney Health Board",Calculations!$E$2="Orkney Islands Local Authority"),$F64=1),0,IF(AND(OR(Calculations!$E$2="Shetland Health Board",Calculations!$E$2="Western Isles Health Board",Calculations!$E$2="Shetland Islands Local Authority",Calculations!$E$2="Eilean Siar Local Authority"),OR($F64=1,$F64=5)),0,new_ci(VALUE(LEFT(Options!$B$24,2)),$C64,$E64,$F64,2016,$I64,1,$H64,$G64*$H64,Options!$B$8))) -> 17.55380317 | L64: =IF(AND(OR(Calculations!$E$2="Orkney Health Board",Calculations!$E$2="Orkney Islands Local Authority"),$F64=1),0,IF(AND(OR(Calculations!$E$2="Shetland Health Board",Calculations!$E$2="Western Isles Health Board",Calculations!$E$2="Shetland Islands Local Authority",Calculations!$E$2="Eilean Siar Local Authority"),OR($F64=1,$F64=5)),0,new_ci(VALUE(LEFT(Options!$B$24,2)),$C64,$E64,$F64,2016,$I64+$J64,1,$H64,$G64*$H64,Options!$B$8))) -> 17.05644028 | M64: =IF(AND(OR(Calculations!$E$2="Orkney Health Board",Calculations!$E$2="Orkney Islands Local Authority"),$F64=1),0,IF(AND(OR(Calculations!$E$2="Shetland Health Board",Calculations!$E$2="Western Isles Health Board",Calculations!$E$2="Shetland Islands Local Authority",Calculations!$E$2="Eilean Siar Local Authority"),OR($F64=1,$F64=5)),0,new_yllv2(VALUE(LEFT(Options!$B$24,2)),$C64,$D64,$E64,$F64,2016,$I64,1,$H64,$G64*$H64,Options!$B$8))) -> 1028.47738 | N64: =IF(AND(OR(Calculations!$E$2="Orkney Health Board",Calculations!$E$2="Orkney Islands Local Authority"),$F64=1),0,IF(AND(OR(Calculations!$E$2="Shetland Health Board",Calculations!$E$2="Western Isles Health Board",Calculations!$E$2="Shetland Islands Local Authority",Calculations!$E$2="Eilean Siar Local Authority"),OR($F64=1,$F64=5)),0,new_yllv2(VALUE(LEFT(Options!$B$24,2)),$C64,$D64,$E64,$F64,2016,$I64+$J64,1,$H64,$G64*$H64,Options!$B$8))) -> 999.3368869 | O64: =IF(AND(OR(Calculations!$E$2="Orkney Health Board",Calculations!$E$2="Orkney Islands Local Authority"),$F64=1),0,IF(AND(OR(Calculations!$E$2="Shetland Health Board",Calculations!$E$2="Western Isles Health Board",Calculations!$E$2="Shetland Islands Local Authority",Calculations!$E$2="Eilean Siar Local Authority"),OR($F64=1,$F64=5)),0,hosp_count(VALUE(LEFT(Options!$B$24,2)),$C64,$E64,$F64,2016,$I64,1,$H64,$G64*$H64, Options!$B$8))) -> 6006.741035 | P64: =IF(AND(OR(Calculations!$E$2="Orkney Health Board",Calculations!$E$2="Orkney Islands Local Authority"),$F64=1),0,IF(AND(OR(Calculations!$E$2="Shetland Health Board",Calculations!$E$2="Western Isles Health Board",Calculations!$E$2="Shetland Islands Local Authority",Calculations!$E$2="Eilean Siar Local Authority"),OR($F64=1,$F64=5)),0,hosp_count(VALUE(LEFT(Options!$B$24,2)),$C64,$E64,$F64,2016,$I64+$J64,1,$H64,$G64*$H64, Options!$B$8))) -> 5993.752989 | Q64: =IF(AND(OR(Calculations!$E$2="Orkney Health Board",Calculations!$E$2="Orkney Islands Local Authority"),$F64=1),0,IF(AND(OR(Calculations!$E$2="Shetland Health Board",Calculations!$E$2="Western Isles Health Board",Calculations!$E$2="Shetland Islands Local Authority",Calculations!$E$2="Eilean Siar Local Authority"),OR($F64=1,$F64=5)),0,prem_mort(VALUE(LEFT(Options!$B$24,2)),$C64,$E64,$F64,2016,$I64,1,$H64,$G64*$H64,Options!$B$8))) -> 17.55380317 | R64: =IF(AND(OR(Calculations!$E$2="Orkney Health Board",Calculations!$E$2="Orkney Islands Local Authority"),$F64=1),0,IF(AND(OR(Calculations!$E$2="Shetland Health Board",Calculations!$E$2="Western Isles Health Board",Calculations!$E$2="Shetland Islands Local Authority",Calculations!$E$2="Eilean Siar Local Authority"),OR($F64=1,$F64=5)),0,prem_mort(VALUE(LEFT(Options!$B$24,2)),$C64,$E64,$F64,2016,$I64+$J64,1,$H64,$G64*$H64,Options!$B$8))) -> 17.05644028 | S64: 46.65586639 | T64: 45.33393652 | U64: 2733.567352 | V64: 2656.115477 | W64: 15965.18455 | X64: 15930.66391 | Y64: 46.65586639 | Z64: 45.33393652 | AA64: 279935.1983 | AB64: 272003.6191 | AC64: 16401404.11 | AD64: 15936692.86 | AE64: 95791107.3 | AF64: 95583983.45 | AG64: 279935.1983 | AH64: 272003.6191 | AI64: 6000
B65: Female 25-29 | C65: 26.975187 | D65: 81.64519 | E65: female | F65: 1 | G65: =HLOOKUP(Calculations!$E$2,'Prevalence Rates'!$C$3:$BC$249,'Prevalence Rates'!$BD65,FALSE) -> 0.3894993895 | H65: =HLOOKUP(Calculations!$E$2,'Population 2016'!$C$3:$BC$249,'Population 2016'!BD65,FALSE) -> 45129 | I65: 0 | J65: =HLOOKUP(Results!E$4,Targeting!$C$3:$F$249,Targeting!$G65,FALSE) -> 3064 | K65: =IF(AND(OR(Calculations!$E$2="Orkney Health Board",Calculations!$E$2="Orkney Islands Local Authority"),$F65=1),0,IF(AND(OR(Calculations!$E$2="Shetland Health Board",Calculations!$E$2="Western Isles Health Board",Calculations!$E$2="Shetland Islands Local Authority",Calculations!$E$2="Eilean Siar Local Authority"),OR($F65=1,$F65=5)),0,new_ci(VALUE(LEFT(Options!$B$24,2)),$C65,$E65,$F65,2016,$I65,1,$H65,$G65*$H65,Options!$B$8))) -> 31.93288626 | L65: =IF(AND(OR(Calculations!$E$2="Orkney Health Board",Calculations!$E$2="Orkney Islands Local Authority"),$F65=1),0,IF(AND(OR(Calculations!$E$2="Shetland Health Board",Calculations!$E$2="Western Isles Health Board",Calculations!$E$2="Shetland Islands Local Authority",Calculations!$E$2="Eilean Siar Local Authority"),OR($F65=1,$F65=5)),0,new_ci(VALUE(LEFT(Options!$B$24,2)),$C65,$E65,$F65,2016,$I65+$J65,1,$H65,$G65*$H65,Options!$B$8))) -> 31.06470124 | M65: =IF(AND(OR(Calculations!$E$2="Orkney Health Board",Calculations!$E$2="Orkney Islands Local Authority"),$F65=1),0,IF(AND(OR(Calculations!$E$2="Shetland Health Board",Calculations!$E$2="Western Isles Health Board",Calculations!$E$2="Shetland Islands Local Authority",Calculations!$E$2="Eilean Siar Local Authority"),OR($F65=1,$F65=5)),0,new_yllv2(VALUE(LEFT(Options!$B$24,2)),$C65,$D65,$E65,$F65,2016,$I65,1,$H65,$G65*$H65,Options!$B$8))) -> 1713.838101 | N65: =IF(AND(OR(Calculations!$E$2="Orkney Health Board",Calculations!$E$2="Orkney Islands Local Authority"),$F65=1),0,IF(AND(OR(Calculations!$E$2="Shetland Health Board",Calculations!$E$2="Western Isles Health Board",Calculations!$E$2="Shetland Islands Local Authority",Calculations!$E$2="Eilean Siar Local Authority"),OR($F65=1,$F65=5)),0,new_yllv2(VALUE(LEFT(Options!$B$24,2)),$C65,$D65,$E65,$F65,2016,$I65+$J65,1,$H65,$G65*$H65,Options!$B$8))) -> 1667.242609 | O65: =IF(AND(OR(Calculations!$E$2="Orkney Health Board",Calculations!$E$2="Orkney Islands Local Authority"),$F65=1),0,IF(AND(OR(Calculations!$E$2="Shetland Health Board",Calculations!$E$2="Western Isles Health Board",Calculations!$E$2="Shetland Islands Local Authority",Calculations!$E$2="Eilean Siar Local Authority"),OR($F65=1,$F65=5)),0,hosp_count(VALUE(LEFT(Options!$B$24,2)),$C65,$E65,$F65,2016,$I65,1,$H65,$G65*$H65, Options!$B$8))) -> 8149.619987 | P65: =IF(AND(OR(Calculations!$E$2="Orkney Health Board",Calculations!$E$2="Orkney Islands Local Authority"),$F65=1),0,IF(AND(OR(Calculations!$E$2="Shetland Health Board",Calculations!$E$2="Western Isles Health Board",Calculations!$E$2="Shetland Islands Local Authority",Calculations!$E$2="Eilean Siar Local Authority"),OR($F65=1,$F65=5)),0,hosp_count(VALUE(LEFT(Options!$B$24,2)),$C65,$E65,$F65,2016,$I65+$J65,1,$H65,$G65*$H65, Options!$B$8))) -> 8132.039204 | Q65: =IF(AND(OR(Calculations!$E$2="Orkney Health Board",Calculations!$E$2="Orkney Islands Local Authority"),$F65=1),0,IF(AND(OR(Calculations!$E$2="Shetland Health Board",Calculations!$E$2="Western Isles Health Board",Calculations!$E$2="Shetland Islands Local Authority",Calculations!$E$2="Eilean Siar Local Authority"),OR($F65=1,$F65=5)),0,prem_mort(VALUE(LEFT(Options!$B$24,2)),$C65,$E65,$F65,2016,$I65,1,$H65,$G65*$H65,Options!$B$8))) -> 31.93288626 | R65: =IF(AND(OR(Calculations!$E$2="Orkney Health Board",Calculations!$E$2="Orkney Islands Local Authority"),$F65=1),0,IF(AND(OR(Calculations!$E$2="Shetland Health Board",Calculations!$E$2="Western Isles Health Board",Calculations!$E$2="Shetland Islands Local Authority",Calculations!$E$2="Eilean Siar Local Authority"),OR($F65=1,$F65=5)),0,prem_mort(VALUE(LEFT(Options!$B$24,2)),$C65,$E65,$F65,2016,$I65+$J65,1,$H65,$G65*$H65,Options!$B$8))) -> 31.06470124 | S65: 70.75912663 | T65: 68.83534145 | U65: 3797.642539 | V65: 3694.392982 | W65: 18058.49894 | X65: 18019.54221 | Y65: 70.75912663 | Z65: 68.83534145 | AA65: 424554.7598 | AB65: 413012.0487 | AC65: 22785855.23 | AD65: 22166357.89 | AE65: 108350993.6 | AF65: 108117253.3 | AG65: 424554.7598 | AH65: 413012.0487 | AI65: 6000
B66: Female 30-34 | C66: 31.999905 | D66: 81.7999 | E66: female | F66: 1 | G66: =HLOOKUP(Calculations!$E$2,'Prevalence Rates'!$C$3:$BC$249,'Prevalence Rates'!$BD66,FALSE) -> 0.3894993895 | H66: =HLOOKUP(Calculations!$E$2,'Population 2016'!$C$3:$BC$249,'Population 2016'!BD66,FALSE) -> 41240 | I66: 0 | J66: =HLOOKUP(Results!E$4,Targeting!$C$3:$F$249,Targeting!$G66,FALSE) -> 2800 | K66: =IF(AND(OR(Calculations!$E$2="Orkney Health Board",Calculations!$E$2="Orkney Islands Local Authority"),$F66=1),0,IF(AND(OR(Calculations!$E$2="Shetland Health Board",Calculations!$E$2="Western Isles Health Board",Calculations!$E$2="Shetland Islands Local Authority",Calculations!$E$2="Eilean Siar Local Authority"),OR($F66=1,$F66=5)),0,new_ci(VALUE(LEFT(Options!$B$24,2)),$C66,$E66,$F66,2016,$I66,1,$H66,$G66*$H66,Options!$B$8))) -> 44.73251377 | L66: =IF(AND(OR(Calculations!$E$2="Orkney Health Board",Calculations!$E$2="Orkney Islands Local Authority"),$F66=1),0,IF(AND(OR(Calculations!$E$2="Shetland Health Board",Calculations!$E$2="Western Isles Health Board",Calculations!$E$2="Shetland Islands Local Authority",Calculations!$E$2="Eilean Siar Local Authority"),OR($F66=1,$F66=5)),0,new_ci(VALUE(LEFT(Options!$B$24,2)),$C66,$E66,$F66,2016,$I66+$J66,1,$H66,$G66*$H66,Options!$B$8))) -> 43.51653985 | M66: =IF(AND(OR(Calculations!$E$2="Orkney Health Board",Calculations!$E$2="Orkney Islands Local Authority"),$F66=1),0,IF(AND(OR(Calculations!$E$2="Shetland Health Board",Calculations!$E$2="Western Isles Health Board",Calculations!$E$2="Shetland Islands Local Authority",Calculations!$E$2="Eilean Siar Local Authority"),OR($F66=1,$F66=5)),0,new_yllv2(VALUE(LEFT(Options!$B$24,2)),$C66,$D66,$E66,$F66,2016,$I66,1,$H66,$G66*$H66,Options!$B$8))) -> 2182.946448 | N66: =IF(AND(OR(Calculations!$E$2="Orkney Health Board",Calculations!$E$2="Orkney Islands Local Authority"),$F66=1),0,IF(AND(OR(Calculations!$E$2="Shetland Health Board",Calculations!$E$2="Western Isles Health Board",Calculations!$E$2="Shetland Islands Local Authority",Calculations!$E$2="Eilean Siar Local Authority"),OR($F66=1,$F66=5)),0,new_yllv2(VALUE(LEFT(Options!$B$24,2)),$C66,$D66,$E66,$F66,2016,$I66+$J66,1,$H66,$G66*$H66,Options!$B$8))) -> 2123.606927 | O66: =IF(AND(OR(Calculations!$E$2="Orkney Health Board",Calculations!$E$2="Orkney Islands Local Authority"),$F66=1),0,IF(AND(OR(Calculations!$E$2="Shetland Health Board",Calculations!$E$2="Western Isles Health Board",Calculations!$E$2="Shetland Islands Local Authority",Calculations!$E$2="Eilean Siar Local Authority"),OR($F66=1,$F66=5)),0,hosp_count(VALUE(LEFT(Options!$B$24,2)),$C66,$E66,$F66,2016,$I66,1,$H66,$G66*$H66, Options!$B$8))) -> 8450.664705 | P66: =IF(AND(OR(Calculations!$E$2="Orkney Health Board",Calculations!$E$2="Orkney Islands Local Authority"),$F66=1),0,IF(AND(OR(Calculations!$E$2="Shetland Health Board",Calculations!$E$2="Western Isles Health Board",Calculations!$E$2="Shetland Islands Local Authority",Calculations!$E$2="Eilean Siar Local Authority"),OR($F66=1,$F66=5)),0,hosp_count(VALUE(LEFT(Options!$B$24,2)),$C66,$E66,$F66,2016,$I66+$J66,1,$H66,$G66*$H66, Options!$B$8))) -> 8432.434227 | Q66: =IF(AND(OR(Calculations!$E$2="Orkney Health Board",Calculations!$E$2="Orkney Islands Local Authority"),$F66=1),0,IF(AND(OR(Calculations!$E$2="Shetland Health Board",Calculations!$E$2="Western Isles Health Board",Calculations!$E$2="Shetland Islands Local Authority",Calculations!$E$2="Eilean Siar Local Authority"),OR($F66=1,$F66=5)),0,prem_mort(VALUE(LEFT(Options!$B$24,2)),$C66,$E66,$F66,2016,$I66,1,$H66,$G66*$H66,Options!$B$8))) -> 44.73251377 | R66: =IF(AND(OR(Calculations!$E$2="Orkney Health Board",Calculations!$E$2="Orkney Islands Local Authority"),$F66=1),0,IF(AND(OR(Calculations!$E$2="Shetland Health Board",Calculations!$E$2="Western Isles Health Board",Calculations!$E$2="Shetland Islands Local Authority",Calculations!$E$2="Eilean Siar Local Authority"),OR($F66=1,$F66=5)),0,prem_mort(VALUE(LEFT(Options!$B$24,2)),$C66,$E66,$F66,2016,$I66+$J66,1,$H66,$G66*$H66,Options!$B$8))) -> 43.51653985 | S66: 108.4687531 | T66: 105.5202227 | U66: 5293.274608 | V66: 5149.386341 | W66: 20491.42751 | X66: 20447.2217 | Y66: 108.4687531 | Z66: 105.5202227 | AA66: 705046.895 | AB66: 685881.4477 | AC66: 34406284.95 | AD66: 33471011.22 | AE66: 133194278.8 | AF66: 132906941 | AG66: 705046.895 | AH66: 685881.4477 | AI66: 6500
B67: Female 35-39 | C67: 36.918118 | D67: 81.89812 | E67: female | F67: 1 | G67: =HLOOKUP(Calculations!$E$2,'Prevalence Rates'!$C$3:$BC$249,'Prevalence Rates'!$BD67,FALSE) -> 0.360374415 | H67: =HLOOKUP(Calculations!$E$2,'Population 2016'!$C$3:$BC$249,'Population 2016'!BD67,FALSE) -> 35038 | I67: 0 | J67: =HLOOKUP(Results!E$4,Targeting!$C$3:$F$249,Targeting!$G67,FALSE) -> 2379 | K67: =IF(AND(OR(Calculations!$E$2="Orkney Health Board",Calculations!$E$2="Orkney Islands Local Authority"),$F67=1),0,IF(AND(OR(Calculations!$E$2="Shetland Health Board",Calculations!$E$2="Western Isles Health Board",Calculations!$E$2="Shetland Islands Local Authority",Calculations!$E$2="Eilean Siar Local Authority"),OR($F67=1,$F67=5)),0,new_ci(VALUE(LEFT(Options!$B$24,2)),$C67,$E67,$F67,2016,$I67,1,$H67,$G67*$H67,Options!$B$8))) -> 57.7285553 | L67: =IF(AND(OR(Calculations!$E$2="Orkney Health Board",Calculations!$E$2="Orkney Islands Local Authority"),$F67=1),0,IF(AND(OR(Calculations!$E$2="Shetland Health Board",Calculations!$E$2="Western Isles Health Board",Calculations!$E$2="Shetland Islands Local Authority",Calculations!$E$2="Eilean Siar Local Authority"),OR($F67=1,$F67=5)),0,new_ci(VALUE(LEFT(Options!$B$24,2)),$C67,$E67,$F67,2016,$I67+$J67,1,$H67,$G67*$H67,Options!$B$8))) -> 56.14478624 | M67: =IF(AND(OR(Calculations!$E$2="Orkney Health Board",Calculations!$E$2="Orkney Islands Local Authority"),$F67=1),0,IF(AND(OR(Calculations!$E$2="Shetland Health Board",Calculations!$E$2="Western Isles Health Board",Calculations!$E$2="Shetland Islands Local Authority",Calculations!$E$2="Eilean Siar Local Authority"),OR($F67=1,$F67=5)),0,new_yllv2(VALUE(LEFT(Options!$B$24,2)),$C67,$D67,$E67,$F67,2016,$I67,1,$H67,$G67*$H67,Options!$B$8))) -> 2538.901977 | N67: =IF(AND(OR(Calculations!$E$2="Orkney Health Board",Calculations!$E$2="Orkney Islands Local Authority"),$F67=1),0,IF(AND(OR(Calculations!$E$2="Shetland Health Board",Calculations!$E$2="Western Isles Health Board",Calculations!$E$2="Shetland Islands Local Authority",Calculations!$E$2="Eilean Siar Local Authority"),OR($F67=1,$F67=5)),0,new_yllv2(VALUE(LEFT(Options!$B$24,2)),$C67,$D67,$E67,$F67,2016,$I67+$J67,1,$H67,$G67*$H67,Options!$B$8))) -> 2469.247811 | O67: =IF(AND(OR(Calculations!$E$2="Orkney Health Board",Calculations!$E$2="Orkney Islands Local Authority"),$F67=1),0,IF(AND(OR(Calculations!$E$2="Shetland Health Board",Calculations!$E$2="Western Isles Health Board",Calculations!$E$2="Shetland Islands Local Authority",Calculations!$E$2="Eilean Siar Local Authority"),OR($F67=1,$F67=5)),0,hosp_count(VALUE(LEFT(Options!$B$24,2)),$C67,$E67,$F67,2016,$I67,1,$H67,$G67*$H67, Options!$B$8))) -> 8125.285242 | P67: =IF(AND(OR(Calculations!$E$2="Orkney Health Board",Calculations!$E$2="Orkney Islands Local Authority"),$F67=1),0,IF(AND(OR(Calculations!$E$2="Shetland Health Board",Calculations!$E$2="Western Isles Health Board",Calculations!$E$2="Shetland Islands Local Authority",Calculations!$E$2="Eilean Siar Local Authority"),OR($F67=1,$F67=5)),0,hosp_count(VALUE(LEFT(Options!$B$24,2)),$C67,$E67,$F67,2016,$I67+$J67,1,$H67,$G67*$H67, Options!$B$8))) -> 8107.745926 | Q67: =IF(AND(OR(Calculations!$E$2="Orkney Health Board",Calculations!$E$2="Orkney Islands Local Authority"),$F67=1),0,IF(AND(OR(Calculations!$E$2="Shetland Health Board",Calculations!$E$2="Western Isles Health Board",Calculations!$E$2="Shetland Islands Local Authority",Calculations!$E$2="Eilean Siar Local Authority"),OR($F67=1,$F67=5)),0,prem_mort(VALUE(LEFT(Options!$B$24,2)),$C67,$E67,$F67,2016,$I67,1,$H67,$G67*$H67,Options!$B$8))) -> 57.7285553 | R67: =IF(AND(OR(Calculations!$E$2="Orkney Health Board",Calculations!$E$2="Orkney Islands Local Authority"),$F67=1),0,IF(AND(OR(Calculations!$E$2="Shetland Health Board",Calculations!$E$2="Western Isles Health Board",Calculations!$E$2="Shetland Islands Local Authority",Calculations!$E$2="Eilean Siar Local Authority"),OR($F67=1,$F67=5)),0,prem_mort(VALUE(LEFT(Options!$B$24,2)),$C67,$E67,$F67,2016,$I67+$J67,1,$H67,$G67*$H67,Options!$B$8))) -> 56.14478624 | S67: 164.7598473 | T67: 160.2397005 | U67: 7246.138414 | V67: 7047.342346 | W67: 23189.92306 | X67: 23139.86508 | Y67: 164.7598473 | Z67: 160.2397005 | AA67: 1153318.931 | AB67: 1121677.903 | AC67: 50722968.9 | AD67: 49331396.42 | AE67: 162329461.4 | AF67: 161979055.5 | AG67: 1153318.931 | AH67: 1121677.903 | AI67: 7000
B68: Female 40-44 | C68: 42.077438 | D68: 82.30744 | E68: female | F68: 1 | G68: =HLOOKUP(Calculations!$E$2,'Prevalence Rates'!$C$3:$BC$249,'Prevalence Rates'!$BD68,FALSE) -> 0.360374415 | H68: =HLOOKUP(Calculations!$E$2,'Population 2016'!$C$3:$BC$249,'Population 2016'!BD68,FALSE) -> 33663 | I68: 0 | J68: =HLOOKUP(Results!E$4,Targeting!$C$3:$F$249,Targeting!$G68,FALSE) -> 2285 | K68: =IF(AND(OR(Calculations!$E$2="Orkney Health Board",Calculations!$E$2="Orkney Islands Local Authority"),$F68=1),0,IF(AND(OR(Calculations!$E$2="Shetland Health Board",Calculations!$E$2="Western Isles Health Board",Calculations!$E$2="Shetland Islands Local Authority",Calculations!$E$2="Eilean Siar Local Authority"),OR($F68=1,$F68=5)),0,new_ci(VALUE(LEFT(Options!$B$24,2)),$C68,$E68,$F68,2016,$I68,1,$H68,$G68*$H68,Options!$B$8))) -> 85.97662224 | L68: =IF(AND(OR(Calculations!$E$2="Orkney Health Board",Calculations!$E$2="Orkney Islands Local Authority"),$F68=1),0,IF(AND(OR(Calculations!$E$2="Shetland Health Board",Calculations!$E$2="Western Isles Health Board",Calculations!$E$2="Shetland Islands Local Authority",Calculations!$E$2="Eilean Siar Local Authority"),OR($F68=1,$F68=5)),0,new_ci(VALUE(LEFT(Options!$B$24,2)),$C68,$E68,$F68,2016,$I68+$J68,1,$H68,$G68*$H68,Options!$B$8))) -> 83.61959447 | M68: =IF(AND(OR(Calculations!$E$2="Orkney Health Board",Calculations!$E$2="Orkney Islands Local Authority"),$F68=1),0,IF(AND(OR(Calculations!$E$2="Shetland Health Board",Calculations!$E$2="Western Isles Health Board",Calculations!$E$2="Shetland Islands Local Authority",Calculations!$E$2="Eilean Siar Local Authority"),OR($F68=1,$F68=5)),0,new_yllv2(VALUE(LEFT(Options!$B$24,2)),$C68,$D68,$E68,$F68,2016,$I68,1,$H68,$G68*$H68,Options!$B$8))) -> 3372.863062 | N68: =IF(AND(OR(Calculations!$E$2="Orkney Health Board",Calculations!$E$2="Orkney Islands Local Authority"),$F68=1),0,IF(AND(OR(Calculations!$E$2="Shetland Health Board",Calculations!$E$2="Western Isles Health Board",Calculations!$E$2="Shetland Islands Local Authority",Calculations!$E$2="Eilean Siar Local Authority"),OR($F68=1,$F68=5)),0,new_yllv2(VALUE(LEFT(Options!$B$24,2)),$C68,$D68,$E68,$F68,2016,$I68+$J68,1,$H68,$G68*$H68,Options!$B$8))) -> 3280.396858 | O68: =IF(AND(OR(Calculations!$E$2="Orkney Health Board",Calculations!$E$2="Orkney Islands Local Authority"),$F68=1),0,IF(AND(OR(Calculations!$E$2="Shetland Health Board",Calculations!$E$2="Western Isles Health Board",Calculations!$E$2="Shetland Islands Local Authority",Calculations!$E$2="Eilean Siar Local Authority"),OR($F68=1,$F68=5)),0,hosp_count(VALUE(LEFT(Options!$B$24,2)),$C68,$E68,$F68,2016,$I68,1,$H68,$G68*$H68, Options!$B$8))) -> 8888.185251 | P68: =IF(AND(OR(Calculations!$E$2="Orkney Health Board",Calculations!$E$2="Orkney Islands Local Authority"),$F68=1),0,IF(AND(OR(Calculations!$E$2="Shetland Health Board",Calculations!$E$2="Western Isles Health Board",Calculations!$E$2="Shetland Islands Local Authority",Calculations!$E$2="Eilean Siar Local Authority"),OR($F68=1,$F68=5)),0,hosp_count(VALUE(LEFT(Options!$B$24,2)),$C68,$E68,$F68,2016,$I68+$J68,1,$H68,$G68*$H68, Options!$B$8))) -> 8869.00451 | Q68: =IF(AND(OR(Calculations!$E$2="Orkney Health Board",Calculations!$E$2="Orkney Islands Local Authority"),$F68=1),0,IF(AND(OR(Calculations!$E$2="Shetland Health Board",Calculations!$E$2="Western Isles Health Board",Calculations!$E$2="Shetland Islands Local Authority",Calculations!$E$2="Eilean Siar Local Authority"),OR($F68=1,$F68=5)),0,prem_mort(VALUE(LEFT(Options!$B$24,2)),$C68,$E68,$F68,2016,$I68,1,$H68,$G68*$H68,Options!$B$8))) -> 85.97662224 | R68: =IF(AND(OR(Calculations!$E$2="Orkney Health Board",Calculations!$E$2="Orkney Islands Local Authority"),$F68=1),0,IF(AND(OR(Calculations!$E$2="Shetland Health Board",Calculations!$E$2="Western Isles Health Board",Calculations!$E$2="Shetland Islands Local Authority",Calculations!$E$2="Eilean Siar Local Authority"),OR($F68=1,$F68=5)),0,prem_mort(VALUE(LEFT(Options!$B$24,2)),$C68,$E68,$F68,2016,$I68+$J68,1,$H68,$G68*$H68,Options!$B$8))) -> 83.61959447 | S68: 255.4039219 | T68: 248.4020868 | U68: 10019.49637 | V68: 9744.81436 | W68: 26403.42587 | X68: 26346.44717 | Y68: 255.4039219 | Z68: 248.4020868 | AA68: 1787827.453 | AB68: 1738814.607 | AC68: 70136474.57 | AD68: 68213700.52 | AE68: 184823981.1 | AF68: 184425130.2 | AG68: 1787827.453 | AH68: 1738814.607 | AI68: 7000
B69: Female 45-49 | C69: 47.025772 | D69: 82.58577 | E69: female | F69: 1 | G69: =HLOOKUP(Calculations!$E$2,'Prevalence Rates'!$C$3:$BC$249,'Prevalence Rates'!$BD69,FALSE) -> 0.4092953523 | H69: =HLOOKUP(Calculations!$E$2,'Population 2016'!$C$3:$BC$249,'Population 2016'!BD69,FALSE) -> 39197 | I69: 0 | J69: =HLOOKUP(Results!E$4,Targeting!$C$3:$F$249,Targeting!$G69,FALSE) -> 2661 | K69: =IF(AND(OR(Calculations!$E$2="Orkney Health Board",Calculations!$E$2="Orkney Islands Local Authority"),$F69=1),0,IF(AND(OR(Calculations!$E$2="Shetland Health Board",Calculations!$E$2="Western Isles Health Board",Calculations!$E$2="Shetland Islands Local Authority",Calculations!$E$2="Eilean Siar Local Authority"),OR($F69=1,$F69=5)),0,new_ci(VALUE(LEFT(Options!$B$24,2)),$C69,$E69,$F69,2016,$I69,1,$H69,$G69*$H69,Options!$B$8))) -> 152.39375 | L69: =IF(AND(OR(Calculations!$E$2="Orkney Health Board",Calculations!$E$2="Orkney Islands Local Authority"),$F69=1),0,IF(AND(OR(Calculations!$E$2="Shetland Health Board",Calculations!$E$2="Western Isles Health Board",Calculations!$E$2="Shetland Islands Local Authority",Calculations!$E$2="Eilean Siar Local Authority"),OR($F69=1,$F69=5)),0,new_ci(VALUE(LEFT(Options!$B$24,2)),$C69,$E69,$F69,2016,$I69+$J69,1,$H69,$G69*$H69,Options!$B$8))) -> 148.2834989 | M69: =IF(AND(OR(Calculations!$E$2="Orkney Health Board",Calculations!$E$2="Orkney Islands Local Authority"),$F69=1),0,IF(AND(OR(Calculations!$E$2="Shetland Health Board",Calculations!$E$2="Western Isles Health Board",Calculations!$E$2="Shetland Islands Local Authority",Calculations!$E$2="Eilean Siar Local Authority"),OR($F69=1,$F69=5)),0,new_yllv2(VALUE(LEFT(Options!$B$24,2)),$C69,$D69,$E69,$F69,2016,$I69,1,$H69,$G69*$H69,Options!$B$8))) -> 5266.727696 | N69: =IF(AND(OR(Calculations!$E$2="Orkney Health Board",Calculations!$E$2="Orkney Islands Local Authority"),$F69=1),0,IF(AND(OR(Calculations!$E$2="Shetland Health Board",Calculations!$E$2="Western Isles Health Board",Calculations!$E$2="Shetland Islands Local Authority",Calculations!$E$2="Eilean Siar Local Authority"),OR($F69=1,$F69=5)),0,new_yllv2(VALUE(LEFT(Options!$B$24,2)),$C69,$D69,$E69,$F69,2016,$I69+$J69,1,$H69,$G69*$H69,Options!$B$8))) -> 5124.677426 | O69: =IF(AND(OR(Calculations!$E$2="Orkney Health Board",Calculations!$E$2="Orkney Islands Local Authority"),$F69=1),0,IF(AND(OR(Calculations!$E$2="Shetland Health Board",Calculations!$E$2="Western Isles Health Board",Calculations!$E$2="Shetland Islands Local Authority",Calculations!$E$2="Eilean Siar Local Authority"),OR($F69=1,$F69=5)),0,hosp_count(VALUE(LEFT(Options!$B$24,2)),$C69,$E69,$F69,2016,$I69,1,$H69,$G69*$H69, Options!$B$8))) -> 11721.12367 | P69: =IF(AND(OR(Calculations!$E$2="Orkney Health Board",Calculations!$E$2="Orkney Islands Local Authority"),$F69=1),0,IF(AND(OR(Calculations!$E$2="Shetland Health Board",Calculations!$E$2="Western Isles Health Board",Calculations!$E$2="Shetland Islands Local Authority",Calculations!$E$2="Eilean Siar Local Authority"),OR($F69=1,$F69=5)),0,hosp_count(VALUE(LEFT(Options!$B$24,2)),$C69,$E69,$F69,2016,$I69+$J69,1,$H69,$G69*$H69, Options!$B$8))) -> 11695.85057 | Q69: =IF(AND(OR(Calculations!$E$2="Orkney Health Board",Calculations!$E$2="Orkney Islands Local Authority"),$F69=1),0,IF(AND(OR(Calculations!$E$2="Shetland Health Board",Calculations!$E$2="Western Isles Health Board",Calculations!$E$2="Shetland Islands Local Authority",Calculations!$E$2="Eilean Siar Local Authority"),OR($F69=1,$F69=5)),0,prem_mort(VALUE(LEFT(Options!$B$24,2)),$C69,$E69,$F69,2016,$I69,1,$H69,$G69*$H69,Options!$B$8))) -> 152.39375 | R69: =IF(AND(OR(Calculations!$E$2="Orkney Health Board",Calculations!$E$2="Orkney Islands Local Authority"),$F69=1),0,IF(AND(OR(Calculations!$E$2="Shetland Health Board",Calculations!$E$2="Western Isles Health Board",Calculations!$E$2="Shetland Islands Local Authority",Calculations!$E$2="Eilean Siar Local Authority"),OR($F69=1,$F69=5)),0,prem_mort(VALUE(LEFT(Options!$B$24,2)),$C69,$E69,$F69,2016,$I69+$J69,1,$H69,$G69*$H69,Options!$B$8))) -> 148.2834989 | S69: 388.7893207 | T69: 378.3031837 | U69: 13436.55814 | V69: 13074.15727 | W69: 29903.1142 | X69: 29838.63707 | Y69: 388.7893207 | Z69: 378.3031837 | AA69: 2721525.245 | AB69: 2648122.286 | AC69: 94055907.01 | AD69: 91519100.9 | AE69: 209321799.4 | AF69: 208870459.5 | AG69: 2721525.245 | AH69: 2648122.286 | AI69: 7000
B70: Female 50-54 | C70: 51.990826 | D70: 82.98083 | E70: female | F70: 1 | G70: =HLOOKUP(Calculations!$E$2,'Prevalence Rates'!$C$3:$BC$249,'Prevalence Rates'!$BD70,FALSE) -> 0.4092953523 | H70: =HLOOKUP(Calculations!$E$2,'Population 2016'!$C$3:$BC$249,'Population 2016'!BD70,FALSE) -> 39704 | I70: 0 | J70: =HLOOKUP(Results!E$4,Targeting!$C$3:$F$249,Targeting!$G70,FALSE) -> 2695 | K70: =IF(AND(OR(Calculations!$E$2="Orkney Health Board",Calculations!$E$2="Orkney Islands Local Authority"),$F70=1),0,IF(AND(OR(Calculations!$E$2="Shetland Health Board",Calculations!$E$2="Western Isles Health Board",Calculations!$E$2="Shetland Islands Local Authority",Calculations!$E$2="Eilean Siar Local Authority"),OR($F70=1,$F70=5)),0,new_ci(VALUE(LEFT(Options!$B$24,2)),$C70,$E70,$F70,2016,$I70,1,$H70,$G70*$H70,Options!$B$8))) -> 235.2316122 | L70: =IF(AND(OR(Calculations!$E$2="Orkney Health Board",Calculations!$E$2="Orkney Islands Local Authority"),$F70=1),0,IF(AND(OR(Calculations!$E$2="Shetland Health Board",Calculations!$E$2="Western Isles Health Board",Calculations!$E$2="Shetland Islands Local Authority",Calculations!$E$2="Eilean Siar Local Authority"),OR($F70=1,$F70=5)),0,new_ci(VALUE(LEFT(Options!$B$24,2)),$C70,$E70,$F70,2016,$I70+$J70,1,$H70,$G70*$H70,Options!$B$8))) -> 228.8943191 | M70: =IF(AND(OR(Calculations!$E$2="Orkney Health Board",Calculations!$E$2="Orkney Islands Local Authority"),$F70=1),0,IF(AND(OR(Calculations!$E$2="Shetland Health Board",Calculations!$E$2="Western Isles Health Board",Calculations!$E$2="Shetland Islands Local Authority",Calculations!$E$2="Eilean Siar Local Authority"),OR($F70=1,$F70=5)),0,new_yllv2(VALUE(LEFT(Options!$B$24,2)),$C70,$D70,$E70,$F70,2016,$I70,1,$H70,$G70*$H70,Options!$B$8))) -> 7054.596989 | N70: =IF(AND(OR(Calculations!$E$2="Orkney Health Board",Calculations!$E$2="Orkney Islands Local Authority"),$F70=1),0,IF(AND(OR(Calculations!$E$2="Shetland Health Board",Calculations!$E$2="Western Isles Health Board",Calculations!$E$2="Shetland Islands Local Authority",Calculations!$E$2="Eilean Siar Local Authority"),OR($F70=1,$F70=5)),0,new_yllv2(VALUE(LEFT(Options!$B$24,2)),$C70,$D70,$E70,$F70,2016,$I70+$J70,1,$H70,$G70*$H70,Options!$B$8))) -> 6864.541546 | O70: =IF(AND(OR(Calculations!$E$2="Orkney Health Board",Calculations!$E$2="Orkney Islands Local Authority"),$F70=1),0,IF(AND(OR(Calculations!$E$2="Shetland Health Board",Calculations!$E$2="Western Isles Health Board",Calculations!$E$2="Shetland Islands Local Authority",Calculations!$E$2="Eilean Siar Local Authority"),OR($F70=1,$F70=5)),0,hosp_count(VALUE(LEFT(Options!$B$24,2)),$C70,$E70,$F70,2016,$I70,1,$H70,$G70*$H70, Options!$B$8))) -> 13452.08093 | P70: =IF(AND(OR(Calculations!$E$2="Orkney Health Board",Calculations!$E$2="Orkney Islands Local Authority"),$F70=1),0,IF(AND(OR(Calculations!$E$2="Shetland Health Board",Calculations!$E$2="Western Isles Health Board",Calculations!$E$2="Shetland Islands Local Authority",Calculations!$E$2="Eilean Siar Local Authority"),OR($F70=1,$F70=5)),0,hosp_count(VALUE(LEFT(Options!$B$24,2)),$C70,$E70,$F70,2016,$I70+$J70,1,$H70,$G70*$H70, Options!$B$8))) -> 13423.08005 | Q70: =IF(AND(OR(Calculations!$E$2="Orkney Health Board",Calculations!$E$2="Orkney Islands Local Authority"),$F70=1),0,IF(AND(OR(Calculations!$E$2="Shetland Health Board",Calculations!$E$2="Western Isles Health Board",Calculations!$E$2="Shetland Islands Local Authority",Calculations!$E$2="Eilean Siar Local Authority"),OR($F70=1,$F70=5)),0,prem_mort(VALUE(LEFT(Options!$B$24,2)),$C70,$E70,$F70,2016,$I70,1,$H70,$G70*$H70,Options!$B$8))) -> 235.2316122 | R70: =IF(AND(OR(Calculations!$E$2="Orkney Health Board",Calculations!$E$2="Orkney Islands Local Authority"),$F70=1),0,IF(AND(OR(Calculations!$E$2="Shetland Health Board",Calculations!$E$2="Western Isles Health Board",Calculations!$E$2="Shetland Islands Local Authority",Calculations!$E$2="Eilean Siar Local Authority"),OR($F70=1,$F70=5)),0,prem_mort(VALUE(LEFT(Options!$B$24,2)),$C70,$E70,$F70,2016,$I70+$J70,1,$H70,$G70*$H70,Options!$B$8))) -> 228.8943191 | S70: 592.4632585 | T70: 576.5019119 | U70: 17767.97549 | V70: 17289.29465 | W70: 33880.92115 | X70: 33807.87843 | Y70: 592.4632585 | Z70: 576.5019119 | AA70: 4147242.81 | AB70: 4035513.384 | AC70: 124375828.4 | AD70: 121025062.5 | AE70: 237166448.1 | AF70: 236655149 | AG70: 4147242.81 | AH70: 4035513.384 | AI70: 7000
B71: Female 55-59 | C71: 56.953041 | D71: 83.47304 | E71: female | F71: 1 | G71: =HLOOKUP(Calculations!$E$2,'Prevalence Rates'!$C$3:$BC$249,'Prevalence Rates'!$BD71,FALSE) -> 0.5414551607 | H71: =HLOOKUP(Calculations!$E$2,'Population 2016'!$C$3:$BC$249,'Population 2016'!BD71,FALSE) -> 35528 | I71: 0 | J71: =HLOOKUP(Results!E$4,Targeting!$C$3:$F$249,Targeting!$G71,FALSE) -> 2412 | K71: =IF(AND(OR(Calculations!$E$2="Orkney Health Board",Calculations!$E$2="Orkney Islands Local Authority"),$F71=1),0,IF(AND(OR(Calculations!$E$2="Shetland Health Board",Calculations!$E$2="Western Isles Health Board",Calculations!$E$2="Shetland Islands Local Authority",Calculations!$E$2="Eilean Siar Local Authority"),OR($F71=1,$F71=5)),0,new_ci(VALUE(LEFT(Options!$B$24,2)),$C71,$E71,$F71,2016,$I71,1,$H71,$G71*$H71,Options!$B$8))) -> 320.5078921 | L71: =IF(AND(OR(Calculations!$E$2="Orkney Health Board",Calculations!$E$2="Orkney Islands Local Authority"),$F71=1),0,IF(AND(OR(Calculations!$E$2="Shetland Health Board",Calculations!$E$2="Western Isles Health Board",Calculations!$E$2="Shetland Islands Local Authority",Calculations!$E$2="Eilean Siar Local Authority"),OR($F71=1,$F71=5)),0,new_ci(VALUE(LEFT(Options!$B$24,2)),$C71,$E71,$F71,2016,$I71+$J71,1,$H71,$G71*$H71,Options!$B$8))) -> 312.232791 | M71: =IF(AND(OR(Calculations!$E$2="Orkney Health Board",Calculations!$E$2="Orkney Islands Local Authority"),$F71=1),0,IF(AND(OR(Calculations!$E$2="Shetland Health Board",Calculations!$E$2="Western Isles Health Board",Calculations!$E$2="Shetland Islands Local Authority",Calculations!$E$2="Eilean Siar Local Authority"),OR($F71=1,$F71=5)),0,new_yllv2(VALUE(LEFT(Options!$B$24,2)),$C71,$D71,$E71,$F71,2016,$I71,1,$H71,$G71*$H71,Options!$B$8))) -> 8179.361087 | N71: =IF(AND(OR(Calculations!$E$2="Orkney Health Board",Calculations!$E$2="Orkney Islands Local Authority"),$F71=1),0,IF(AND(OR(Calculations!$E$2="Shetland Health Board",Calculations!$E$2="Western Isles Health Board",Calculations!$E$2="Shetland Islands Local Authority",Calculations!$E$2="Eilean Siar Local Authority"),OR($F71=1,$F71=5)),0,new_yllv2(VALUE(LEFT(Options!$B$24,2)),$C71,$D71,$E71,$F71,2016,$I71+$J71,1,$H71,$G71*$H71,Options!$B$8))) -> 7968.180513 | O71: =IF(AND(OR(Calculations!$E$2="Orkney Health Board",Calculations!$E$2="Orkney Islands Local Authority"),$F71=1),0,IF(AND(OR(Calculations!$E$2="Shetland Health Board",Calculations!$E$2="Western Isles Health Board",Calculations!$E$2="Shetland Islands Local Authority",Calculations!$E$2="Eilean Siar Local Authority"),OR($F71=1,$F71=5)),0,hosp_count(VALUE(LEFT(Options!$B$24,2)),$C71,$E71,$F71,2016,$I71,1,$H71,$G71*$H71, Options!$B$8))) -> 13637.46804 | P71: =IF(AND(OR(Calculations!$E$2="Orkney Health Board",Calculations!$E$2="Orkney Islands Local Authority"),$F71=1),0,IF(AND(OR(Calculations!$E$2="Shetland Health Board",Calculations!$E$2="Western Isles Health Board",Calculations!$E$2="Shetland Islands Local Authority",Calculations!$E$2="Eilean Siar Local Authority"),OR($F71=1,$F71=5)),0,hosp_count(VALUE(LEFT(Options!$B$24,2)),$C71,$E71,$F71,2016,$I71+$J71,1,$H71,$G71*$H71, Options!$B$8))) -> 13608.13883 | Q71: =IF(AND(OR(Calculations!$E$2="Orkney Health Board",Calculations!$E$2="Orkney Islands Local Authority"),$F71=1),0,IF(AND(OR(Calculations!$E$2="Shetland Health Board",Calculations!$E$2="Western Isles Health Board",Calculations!$E$2="Shetland Islands Local Authority",Calculations!$E$2="Eilean Siar Local Authority"),OR($F71=1,$F71=5)),0,prem_mort(VALUE(LEFT(Options!$B$24,2)),$C71,$E71,$F71,2016,$I71,1,$H71,$G71*$H71,Options!$B$8))) -> 320.5078921 | R71: =IF(AND(OR(Calculations!$E$2="Orkney Health Board",Calculations!$E$2="Orkney Islands Local Authority"),$F71=1),0,IF(AND(OR(Calculations!$E$2="Shetland Health Board",Calculations!$E$2="Western Isles Health Board",Calculations!$E$2="Shetland Islands Local Authority",Calculations!$E$2="Eilean Siar Local Authority"),OR($F71=1,$F71=5)),0,prem_mort(VALUE(LEFT(Options!$B$24,2)),$C71,$E71,$F71,2016,$I71+$J71,1,$H71,$G71*$H71,Options!$B$8))) -> 312.232791 | S71: 902.1275955 | T71: 878.8358223 | U71: 23022.29534 | V71: 22427.88931 | W71: 38385.12735 | X71: 38302.57496 | Y71: 902.1275955 | Z71: 878.8358223 | AA71: 5863829.371 | AB71: 5712432.845 | AC71: 149644919.7 | AD71: 145781280.5 | AE71: 249503327.8 | AF71: 248966737.3 | AG71: 5863829.371 | AH71: 5712432.845 | AI71: 6500
B72: Female 60-64 | C72: 61.947388 | D72: 84.16739 | E72: female | F72: 1 | G72: =HLOOKUP(Calculations!$E$2,'Prevalence Rates'!$C$3:$BC$249,'Prevalence Rates'!$BD72,FALSE) -> 0.5414551607 | H72: =HLOOKUP(Calculations!$E$2,'Population 2016'!$C$3:$BC$249,'Population 2016'!BD72,FALSE) -> 29212 | I72: 0 | J72: =HLOOKUP(Results!E$4,Targeting!$C$3:$F$249,Targeting!$G72,FALSE) -> 1983 | K72: =IF(AND(OR(Calculations!$E$2="Orkney Health Board",Calculations!$E$2="Orkney Islands Local Authority"),$F72=1),0,IF(AND(OR(Calculations!$E$2="Shetland Health Board",Calculations!$E$2="Western Isles Health Board",Calculations!$E$2="Shetland Islands Local Authority",Calculations!$E$2="Eilean Siar Local Authority"),OR($F72=1,$F72=5)),0,new_ci(VALUE(LEFT(Options!$B$24,2)),$C72,$E72,$F72,2016,$I72,1,$H72,$G72*$H72,Options!$B$8))) -> 402.0218331 | L72: =IF(AND(OR(Calculations!$E$2="Orkney Health Board",Calculations!$E$2="Orkney Islands Local Authority"),$F72=1),0,IF(AND(OR(Calculations!$E$2="Shetland Health Board",Calculations!$E$2="Western Isles Health Board",Calculations!$E$2="Shetland Islands Local Authority",Calculations!$E$2="Eilean Siar Local Authority"),OR($F72=1,$F72=5)),0,new_ci(VALUE(LEFT(Options!$B$24,2)),$C72,$E72,$F72,2016,$I72+$J72,1,$H72,$G72*$H72,Options!$B$8))) -> 391.6650874 | M72: =IF(AND(OR(Calculations!$E$2="Orkney Health Board",Calculations!$E$2="Orkney Islands Local Authority"),$F72=1),0,IF(AND(OR(Calculations!$E$2="Shetland Health Board",Calculations!$E$2="Western Isles Health Board",Calculations!$E$2="Shetland Islands Local Authority",Calculations!$E$2="Eilean Siar Local Authority"),OR($F72=1,$F72=5)),0,new_yllv2(VALUE(LEFT(Options!$B$24,2)),$C72,$D72,$E72,$F72,2016,$I72,1,$H72,$G72*$H72,Options!$B$8))) -> 8530.904103 | N72: =IF(AND(OR(Calculations!$E$2="Orkney Health Board",Calculations!$E$2="Orkney Islands Local Authority"),$F72=1),0,IF(AND(OR(Calculations!$E$2="Shetland Health Board",Calculations!$E$2="Western Isles Health Board",Calculations!$E$2="Shetland Islands Local Authority",Calculations!$E$2="Eilean Siar Local Authority"),OR($F72=1,$F72=5)),0,new_yllv2(VALUE(LEFT(Options!$B$24,2)),$C72,$D72,$E72,$F72,2016,$I72+$J72,1,$H72,$G72*$H72,Options!$B$8))) -> 8311.133937 | O72: =IF(AND(OR(Calculations!$E$2="Orkney Health Board",Calculations!$E$2="Orkney Islands Local Authority"),$F72=1),0,IF(AND(OR(Calculations!$E$2="Shetland Health Board",Calculations!$E$2="Western Isles Health Board",Calculations!$E$2="Shetland Islands Local Authority",Calculations!$E$2="Eilean Siar Local Authority"),OR($F72=1,$F72=5)),0,hosp_count(VALUE(LEFT(Options!$B$24,2)),$C72,$E72,$F72,2016,$I72,1,$H72,$G72*$H72, Options!$B$8))) -> 12714.02519 | P72: =IF(AND(OR(Calculations!$E$2="Orkney Health Board",Calculations!$E$2="Orkney Islands Local Authority"),$F72=1),0,IF(AND(OR(Calculations!$E$2="Shetland Health Board",Calculations!$E$2="Western Isles Health Board",Calculations!$E$2="Shetland Islands Local Authority",Calculations!$E$2="Eilean Siar Local Authority"),OR($F72=1,$F72=5)),0,hosp_count(VALUE(LEFT(Options!$B$24,2)),$C72,$E72,$F72,2016,$I72+$J72,1,$H72,$G72*$H72, Options!$B$8))) -> 12686.68481 | Q72: =IF(AND(OR(Calculations!$E$2="Orkney Health Board",Calculations!$E$2="Orkney Islands Local Authority"),$F72=1),0,IF(AND(OR(Calculations!$E$2="Shetland Health Board",Calculations!$E$2="Western Isles Health Board",Calculations!$E$2="Shetland Islands Local Authority",Calculations!$E$2="Eilean Siar Local Authority"),OR($F72=1,$F72=5)),0,prem_mort(VALUE(LEFT(Options!$B$24,2)),$C72,$E72,$F72,2016,$I72,1,$H72,$G72*$H72,Options!$B$8))) -> 402.0218331 | R72: =IF(AND(OR(Calculations!$E$2="Orkney Health Board",Calculations!$E$2="Orkney Islands Local Authority"),$F72=1),0,IF(AND(OR(Calculations!$E$2="Shetland Health Board",Calculations!$E$2="Western Isles Health Board",Calculations!$E$2="Shetland Islands Local Authority",Calculations!$E$2="Eilean Siar Local Authority"),OR($F72=1,$F72=5)),0,prem_mort(VALUE(LEFT(Options!$B$24,2)),$C72,$E72,$F72,2016,$I72+$J72,1,$H72,$G72*$H72,Options!$B$8))) -> 391.6650874 | S72: 1376.221529 | T72: 1340.767792 | U72: 29203.4236 | V72: 28451.09523 | W72: 43523.29587 | X72: 43429.70288 | Y72: 1376.221529 | Z72: 1340.767792 | AA72: 8257329.176 | AB72: 8044606.751 | AC72: 175220541.6 | AD72: 170706571.4 | AE72: 261139775.2 | AF72: 260578217.3 | AG72: 8257329.176 | AH72: 8044606.751 | AI72: 6000
B73: Female 65-69 | C73: 67.063927 | D73: 85.19393 | E73: female | F73: 1 | G73: =HLOOKUP(Calculations!$E$2,'Prevalence Rates'!$C$3:$BC$249,'Prevalence Rates'!$BD73,FALSE) -> 0 | H73: =HLOOKUP(Calculations!$E$2,'Population 2016'!$C$3:$BC$249,'Population 2016'!BD73,FALSE) -> 27762 | I73: 0 | J73: =HLOOKUP(Results!E$4,Targeting!$C$3:$F$249,Targeting!$G73,FALSE) -> 0 | K73: =IF(AND(OR(Calculations!$E$2="Orkney Health Board",Calculations!$E$2="Orkney Islands Local Authority"),$F73=1),0,IF(AND(OR(Calculations!$E$2="Shetland Health Board",Calculations!$E$2="Western Isles Health Board",Calculations!$E$2="Shetland Islands Local Authority",Calculations!$E$2="Eilean Siar Local Authority"),OR($F73=1,$F73=5)),0,new_ci(VALUE(LEFT(Options!$B$24,2)),$C73,$E73,$F73,2016,$I73,1,$H73,$G73*$H73,Options!$B$8))) -> 588.262763 | L73: =IF(AND(OR(Calculations!$E$2="Orkney Health Board",Calculations!$E$2="Orkney Islands Local Authority"),$F73=1),0,IF(AND(OR(Calculations!$E$2="Shetland Health Board",Calculations!$E$2="Western Isles Health Board",Calculations!$E$2="Shetland Islands Local Authority",Calculations!$E$2="Eilean Siar Local Authority"),OR($F73=1,$F73=5)),0,new_ci(VALUE(LEFT(Options!$B$24,2)),$C73,$E73,$F73,2016,$I73+$J73,1,$H73,$G73*$H73,Options!$B$8))) -> 588.262763 | M73: =IF(AND(OR(Calculations!$E$2="Orkney Health Board",Calculations!$E$2="Orkney Islands Local Authority"),$F73=1),0,IF(AND(OR(Calculations!$E$2="Shetland Health Board",Calculations!$E$2="Western Isles Health Board",Calculations!$E$2="Shetland Islands Local Authority",Calculations!$E$2="Eilean Siar Local Authority"),OR($F73=1,$F73=5)),0,new_yllv2(VALUE(LEFT(Options!$B$24,2)),$C73,$D73,$E73,$F73,2016,$I73,1,$H73,$G73*$H73,Options!$B$8))) -> 10076.94289 | N73: =IF(AND(OR(Calculations!$E$2="Orkney Health Board",Calculations!$E$2="Orkney Islands Local Authority"),$F73=1),0,IF(AND(OR(Calculations!$E$2="Shetland Health Board",Calculations!$E$2="Western Isles Health Board",Calculations!$E$2="Shetland Islands Local Authority",Calculations!$E$2="Eilean Siar Local Authority"),OR($F73=1,$F73=5)),0,new_yllv2(VALUE(LEFT(Options!$B$24,2)),$C73,$D73,$E73,$F73,2016,$I73+$J73,1,$H73,$G73*$H73,Options!$B$8))) -> 10076.94289 | O73: =IF(AND(OR(Calculations!$E$2="Orkney Health Board",Calculations!$E$2="Orkney Islands Local Authority"),$F73=1),0,IF(AND(OR(Calculations!$E$2="Shetland Health Board",Calculations!$E$2="Western Isles Health Board",Calculations!$E$2="Shetland Islands Local Authority",Calculations!$E$2="Eilean Siar Local Authority"),OR($F73=1,$F73=5)),0,hosp_count(VALUE(LEFT(Options!$B$24,2)),$C73,$E73,$F73,2016,$I73,1,$H73,$G73*$H73, Options!$B$8))) -> 13742.51292 | P73: =IF(AND(OR(Calculations!$E$2="Orkney Health Board",Calculations!$E$2="Orkney Islands Local Authority"),$F73=1),0,IF(AND(OR(Calculations!$E$2="Shetland Health Board",Calculations!$E$2="Western Isles Health Board",Calculations!$E$2="Shetland Islands Local Authority",Calculations!$E$2="Eilean Siar Local Authority"),OR($F73=1,$F73=5)),0,hosp_count(VALUE(LEFT(Options!$B$24,2)),$C73,$E73,$F73,2016,$I73+$J73,1,$H73,$G73*$H73, Options!$B$8))) -> 13742.51292 | Q73: =IF(AND(OR(Calculations!$E$2="Orkney Health Board",Calculations!$E$2="Orkney Islands Local Authority"),$F73=1),0,IF(AND(OR(Calculations!$E$2="Shetland Health Board",Calculations!$E$2="Western Isles Health Board",Calculations!$E$2="Shetland Islands Local Authority",Calculations!$E$2="Eilean Siar Local Authority"),OR($F73=1,$F73=5)),0,prem_mort(VALUE(LEFT(Options!$B$24,2)),$C73,$E73,$F73,2016,$I73,1,$H73,$G73*$H73,Options!$B$8))) -> 588.262763 | R73: =IF(AND(OR(Calculations!$E$2="Orkney Health Board",Calculations!$E$2="Orkney Islands Local Authority"),$F73=1),0,IF(AND(OR(Calculations!$E$2="Shetland Health Board",Calculations!$E$2="Western Isles Health Board",Calculations!$E$2="Shetland Islands Local Authority",Calculations!$E$2="Eilean Siar Local Authority"),OR($F73=1,$F73=5)),0,prem_mort(VALUE(LEFT(Options!$B$24,2)),$C73,$E73,$F73,2016,$I73+$J73,1,$H73,$G73*$H73,Options!$B$8))) -> 588.262763 | S73: 2118.94951 | T73: 2118.94951 | U73: 36297.61146 | V73: 36297.61146 | W73: 49501.16318 | X73: 49501.16318 | Y73: 2118.94951 | Z73: 2118.94951 | AA73: 11654222.3 | AB73: 11654222.3 | AC73: 199636863 | AD73: 199636863 | AE73: 272256397.5 | AF73: 272256397.5 | AG73: 11654222.3 | AH73: 11654222.3 | AI73: 5500
B74: Female 70-74 | C74: 71.938164 | D74: 86.24816 | E74: female | F74: 1 | G74: =HLOOKUP(Calculations!$E$2,'Prevalence Rates'!$C$3:$BC$249,'Prevalence Rates'!$BD74,FALSE) -> 0 | H74: =HLOOKUP(Calculations!$E$2,'Population 2016'!$C$3:$BC$249,'Population 2016'!BD74,FALSE) -> 21786 | I74: 0 | J74: =HLOOKUP(Results!E$4,Targeting!$C$3:$F$249,Targeting!$G74,FALSE) -> 0 | K74: =IF(AND(OR(Calculations!$E$2="Orkney Health Board",Calculations!$E$2="Orkney Islands Local Authority"),$F74=1),0,IF(AND(OR(Calculations!$E$2="Shetland Health Board",Calculations!$E$2="Western Isles Health Board",Calculations!$E$2="Shetland Islands Local Authority",Calculations!$E$2="Eilean Siar Local Authority"),OR($F74=1,$F74=5)),0,new_ci(VALUE(LEFT(Options!$B$24,2)),$C74,$E74,$F74,2016,$I74,1,$H74,$G74*$H74,Options!$B$8))) -> 694.9719273 | L74: =IF(AND(OR(Calculations!$E$2="Orkney Health Board",Calculations!$E$2="Orkney Islands Local Authority"),$F74=1),0,IF(AND(OR(Calculations!$E$2="Shetland Health Board",Calculations!$E$2="Western Isles Health Board",Calculations!$E$2="Shetland Islands Local Authority",Calculations!$E$2="Eilean Siar Local Authority"),OR($F74=1,$F74=5)),0,new_ci(VALUE(LEFT(Options!$B$24,2)),$C74,$E74,$F74,2016,$I74+$J74,1,$H74,$G74*$H74,Options!$B$8))) -> 694.9719273 | M74: =IF(AND(OR(Calculations!$E$2="Orkney Health Board",Calculations!$E$2="Orkney Islands Local Authority"),$F74=1),0,IF(AND(OR(Calculations!$E$2="Shetland Health Board",Calculations!$E$2="Western Isles Health Board",Calculations!$E$2="Shetland Islands Local Authority",Calculations!$E$2="Eilean Siar Local Authority"),OR($F74=1,$F74=5)),0,new_yllv2(VALUE(LEFT(Options!$B$24,2)),$C74,$D74,$E74,$F74,2016,$I74,1,$H74,$G74*$H74,Options!$B$8))) -> 9250.073572 | N74: =IF(AND(OR(Calculations!$E$2="Orkney Health Board",Calculations!$E$2="Orkney Islands Local Authority"),$F74=1),0,IF(AND(OR(Calculations!$E$2="Shetland Health Board",Calculations!$E$2="Western Isles Health Board",Calculations!$E$2="Shetland Islands Local Authority",Calculations!$E$2="Eilean Siar Local Authority"),OR($F74=1,$F74=5)),0,new_yllv2(VALUE(LEFT(Options!$B$24,2)),$C74,$D74,$E74,$F74,2016,$I74+$J74,1,$H74,$G74*$H74,Options!$B$8))) -> 9250.073572 | O74: =IF(AND(OR(Calculations!$E$2="Orkney Health Board",Calculations!$E$2="Orkney Islands Local Authority"),$F74=1),0,IF(AND(OR(Calculations!$E$2="Shetland Health Board",Calculations!$E$2="Western Isles Health Board",Calculations!$E$2="Shetland Islands Local Authority",Calculations!$E$2="Eilean Siar Local Authority"),OR($F74=1,$F74=5)),0,hosp_count(VALUE(LEFT(Options!$B$24,2)),$C74,$E74,$F74,2016,$I74,1,$H74,$G74*$H74, Options!$B$8))) -> 12191.0075 | P74: =IF(AND(OR(Calculations!$E$2="Orkney Health Board",Calculations!$E$2="Orkney Islands Local Authority"),$F74=1),0,IF(AND(OR(Calculations!$E$2="Shetland Health Board",Calculations!$E$2="Western Isles Health Board",Calculations!$E$2="Shetland Islands Local Authority",Calculations!$E$2="Eilean Siar Local Authority"),OR($F74=1,$F74=5)),0,hosp_count(VALUE(LEFT(Options!$B$24,2)),$C74,$E74,$F74,2016,$I74+$J74,1,$H74,$G74*$H74, Options!$B$8))) -> 12191.0075 | Q74: =IF(AND(OR(Calculations!$E$2="Orkney Health Board",Calculations!$E$2="Orkney Islands Local Authority"),$F74=1),0,IF(AND(OR(Calculations!$E$2="Shetland Health Board",Calculations!$E$2="Western Isles Health Board",Calculations!$E$2="Shetland Islands Local Authority",Calculations!$E$2="Eilean Siar Local Authority"),OR($F74=1,$F74=5)),0,prem_mort(VALUE(LEFT(Options!$B$24,2)),$C74,$E74,$F74,2016,$I74,1,$H74,$G74*$H74,Options!$B$8))) -> 694.9719273 | R74: =IF(AND(OR(Calculations!$E$2="Orkney Health Board",Calculations!$E$2="Orkney Islands Local Authority"),$F74=1),0,IF(AND(OR(Calculations!$E$2="Shetland Health Board",Calculations!$E$2="Western Isles Health Board",Calculations!$E$2="Shetland Islands Local Authority",Calculations!$E$2="Eilean Siar Local Authority"),OR($F74=1,$F74=5)),0,prem_mort(VALUE(LEFT(Options!$B$24,2)),$C74,$E74,$F74,2016,$I74+$J74,1,$H74,$G74*$H74,Options!$B$8))) -> 694.9719273 | S74: 3189.99324 | T74: 3189.99324 | U74: 42458.79726 | V74: 42458.79726 | W74: 55957.98909 | X74: 55957.98909 | Y74: 3189.99324 | Z74: 3189.99324 | AA74: 15949966.2 | AB74: 15949966.2 | AC74: 212293986.3 | AD74: 212293986.3 | AE74: 279789945.5 | AF74: 279789945.5 | AG74: 15949966.2 | AH74: 15949966.2 | AI74: 5000
B75: Female 75-79 | C75: 76.942825 | D75: 87.81283 | E75: female | F75: 1 | G75: =HLOOKUP(Calculations!$E$2,'Prevalence Rates'!$C$3:$BC$249,'Prevalence Rates'!$BD75,FALSE) -> 0 | H75: =HLOOKUP(Calculations!$E$2,'Population 2016'!$C$3:$BC$249,'Population 2016'!BD75,FALSE) -> 19138 | I75: 0 | J75: =HLOOKUP(Results!E$4,Targeting!$C$3:$F$249,Targeting!$G75,FALSE) -> 0 | K75: =IF(AND(OR(Calculations!$E$2="Orkney Health Board",Calculations!$E$2="Orkney Islands Local Authority"),$F75=1),0,IF(AND(OR(Calculations!$E$2="Shetland Health Board",Calculations!$E$2="Western Isles Health Board",Calculations!$E$2="Shetland Islands Local Authority",Calculations!$E$2="Eilean Siar Local Authority"),OR($F75=1,$F75=5)),0,new_ci(VALUE(LEFT(Options!$B$24,2)),$C75,$E75,$F75,2016,$I75,1,$H75,$G75*$H75,Options!$B$8))) -> 926.4920777 | L75: =IF(AND(OR(Calculations!$E$2="Orkney Health Board",Calculations!$E$2="Orkney Islands Local Authority"),$F75=1),0,IF(AND(OR(Calculations!$E$2="Shetland Health Board",Calculations!$E$2="Western Isles Health Board",Calculations!$E$2="Shetland Islands Local Authority",Calculations!$E$2="Eilean Siar Local Authority"),OR($F75=1,$F75=5)),0,new_ci(VALUE(LEFT(Options!$B$24,2)),$C75,$E75,$F75,2016,$I75+$J75,1,$H75,$G75*$H75,Options!$B$8))) -> 926.4920777 | M75: =IF(AND(OR(Calculations!$E$2="Orkney Health Board",Calculations!$E$2="Orkney Islands Local Authority"),$F75=1),0,IF(AND(OR(Calculations!$E$2="Shetland Health Board",Calculations!$E$2="Western Isles Health Board",Calculations!$E$2="Shetland Islands Local Authority",Calculations!$E$2="Eilean Siar Local Authority"),OR($F75=1,$F75=5)),0,new_yllv2(VALUE(LEFT(Options!$B$24,2)),$C75,$D75,$E75,$F75,2016,$I75,1,$H75,$G75*$H75,Options!$B$8))) -> 9144.48144 | N75: =IF(AND(OR(Calculations!$E$2="Orkney Health Board",Calculations!$E$2="Orkney Islands Local Authority"),$F75=1),0,IF(AND(OR(Calculations!$E$2="Shetland Health Board",Calculations!$E$2="Western Isles Health Board",Calculations!$E$2="Shetland Islands Local Authority",Calculations!$E$2="Eilean Siar Local Authority"),OR($F75=1,$F75=5)),0,new_yllv2(VALUE(LEFT(Options!$B$24,2)),$C75,$D75,$E75,$F75,2016,$I75+$J75,1,$H75,$G75*$H75,Options!$B$8))) -> 9144.48144 | O75: =IF(AND(OR(Calculations!$E$2="Orkney Health Board",Calculations!$E$2="Orkney Islands Local Authority"),$F75=1),0,IF(AND(OR(Calculations!$E$2="Shetland Health Board",Calculations!$E$2="Western Isles Health Board",Calculations!$E$2="Shetland Islands Local Authority",Calculations!$E$2="Eilean Siar Local Authority"),OR($F75=1,$F75=5)),0,hosp_count(VALUE(LEFT(Options!$B$24,2)),$C75,$E75,$F75,2016,$I75,1,$H75,$G75*$H75, Options!$B$8))) -> 12145.91145 | P75: =IF(AND(OR(Calculations!$E$2="Orkney Health Board",Calculations!$E$2="Orkney Islands Local Authority"),$F75=1),0,IF(AND(OR(Calculations!$E$2="Shetland Health Board",Calculations!$E$2="Western Isles Health Board",Calculations!$E$2="Shetland Islands Local Authority",Calculations!$E$2="Eilean Siar Local Authority"),OR($F75=1,$F75=5)),0,hosp_count(VALUE(LEFT(Options!$B$24,2)),$C75,$E75,$F75,2016,$I75+$J75,1,$H75,$G75*$H75, Options!$B$8))) -> 12145.91145 | Q75: =IF(AND(OR(Calculations!$E$2="Orkney Health Board",Calculations!$E$2="Orkney Islands Local Authority"),$F75=1),0,IF(AND(OR(Calculations!$E$2="Shetland Health Board",Calculations!$E$2="Western Isles Health Board",Calculations!$E$2="Shetland Islands Local Authority",Calculations!$E$2="Eilean Siar Local Authority"),OR($F75=1,$F75=5)),0,prem_mort(VALUE(LEFT(Options!$B$24,2)),$C75,$E75,$F75,2016,$I75,1,$H75,$G75*$H75,Options!$B$8))) -> 0 | R75: =IF(AND(OR(Calculations!$E$2="Orkney Health Board",Calculations!$E$2="Orkney Islands Local Authority"),$F75=1),0,IF(AND(OR(Calculations!$E$2="Shetland Health Board",Calculations!$E$2="Western Isles Health Board",Calculations!$E$2="Shetland Islands Local Authority",Calculations!$E$2="Eilean Siar Local Authority"),OR($F75=1,$F75=5)),0,prem_mort(VALUE(LEFT(Options!$B$24,2)),$C75,$E75,$F75,2016,$I75+$J75,1,$H75,$G75*$H75,Options!$B$8))) -> 0 | S75: 4841.11233 | T75: 4841.11233 | U75: 47781.8029 | V75: 47781.8029 | W75: 63464.8942 | X75: 63464.8942 | Y75: 0 | Z75: 0 | AA75: 19364449.32 | AB75: 19364449.32 | AC75: 191127211.6 | AD75: 191127211.6 | AE75: 253859576.8 | AF75: 253859576.8 | AG75: 0 | AH75: 0 | AI75: 4000
B76: Female 80-84 | C76: 81.856712 | D76: 89.73671 | E76: female | F76: 1 | G76: =HLOOKUP(Calculations!$E$2,'Prevalence Rates'!$C$3:$BC$249,'Prevalence Rates'!$BD76,FALSE) -> 0 | H76: =HLOOKUP(Calculations!$E$2,'Population 2016'!$C$3:$BC$249,'Population 2016'!BD76,FALSE) -> 14776 | I76: 0 | J76: =HLOOKUP(Results!E$4,Targeting!$C$3:$F$249,Targeting!$G76,FALSE) -> 0 | K76: =IF(AND(OR(Calculations!$E$2="Orkney Health Board",Calculations!$E$2="Orkney Islands Local Authority"),$F76=1),0,IF(AND(OR(Calculations!$E$2="Shetland Health Board",Calculations!$E$2="Western Isles Health Board",Calculations!$E$2="Shetland Islands Local Authority",Calculations!$E$2="Eilean Siar Local Authority"),OR($F76=1,$F76=5)),0,new_ci(VALUE(LEFT(Options!$B$24,2)),$C76,$E76,$F76,2016,$I76,1,$H76,$G76*$H76,Options!$B$8))) -> 1072.708776 | L76: =IF(AND(OR(Calculations!$E$2="Orkney Health Board",Calculations!$E$2="Orkney Islands Local Authority"),$F76=1),0,IF(AND(OR(Calculations!$E$2="Shetland Health Board",Calculations!$E$2="Western Isles Health Board",Calculations!$E$2="Shetland Islands Local Authority",Calculations!$E$2="Eilean Siar Local Authority"),OR($F76=1,$F76=5)),0,new_ci(VALUE(LEFT(Options!$B$24,2)),$C76,$E76,$F76,2016,$I76+$J76,1,$H76,$G76*$H76,Options!$B$8))) -> 1072.708776 | M76: =IF(AND(OR(Calculations!$E$2="Orkney Health Board",Calculations!$E$2="Orkney Islands Local Authority"),$F76=1),0,IF(AND(OR(Calculations!$E$2="Shetland Health Board",Calculations!$E$2="Western Isles Health Board",Calculations!$E$2="Shetland Islands Local Authority",Calculations!$E$2="Eilean Siar Local Authority"),OR($F76=1,$F76=5)),0,new_yllv2(VALUE(LEFT(Options!$B$24,2)),$C76,$D76,$E76,$F76,2016,$I76,1,$H76,$G76*$H76,Options!$B$8))) -> 7380.234237 | N76: =IF(AND(OR(Calculations!$E$2="Orkney Health Board",Calculations!$E$2="Orkney Islands Local Authority"),$F76=1),0,IF(AND(OR(Calculations!$E$2="Shetland Health Board",Calculations!$E$2="Western Isles Health Board",Calculations!$E$2="Shetland Islands Local Authority",Calculations!$E$2="Eilean Siar Local Authority"),OR($F76=1,$F76=5)),0,new_yllv2(VALUE(LEFT(Options!$B$24,2)),$C76,$D76,$E76,$F76,2016,$I76+$J76,1,$H76,$G76*$H76,Options!$B$8))) -> 7380.234237 | O76: =IF(AND(OR(Calculations!$E$2="Orkney Health Board",Calculations!$E$2="Orkney Islands Local Authority"),$F76=1),0,IF(AND(OR(Calculations!$E$2="Shetland Health Board",Calculations!$E$2="Western Isles Health Board",Calculations!$E$2="Shetland Islands Local Authority",Calculations!$E$2="Eilean Siar Local Authority"),OR($F76=1,$F76=5)),0,hosp_count(VALUE(LEFT(Options!$B$24,2)),$C76,$E76,$F76,2016,$I76,1,$H76,$G76*$H76, Options!$B$8))) -> 10611.34119 | P76: =IF(AND(OR(Calculations!$E$2="Orkney Health Board",Calculations!$E$2="Orkney Islands Local Authority"),$F76=1),0,IF(AND(OR(Calculations!$E$2="Shetland Health Board",Calculations!$E$2="Western Isles Health Board",Calculations!$E$2="Shetland Islands Local Authority",Calculations!$E$2="Eilean Siar Local Authority"),OR($F76=1,$F76=5)),0,hosp_count(VALUE(LEFT(Options!$B$24,2)),$C76,$E76,$F76,2016,$I76+$J76,1,$H76,$G76*$H76, Options!$B$8))) -> 10611.34119 | Q76: =IF(AND(OR(Calculations!$E$2="Orkney Health Board",Calculations!$E$2="Orkney Islands Local Authority"),$F76=1),0,IF(AND(OR(Calculations!$E$2="Shetland Health Board",Calculations!$E$2="Western Isles Health Board",Calculations!$E$2="Shetland Islands Local Authority",Calculations!$E$2="Eilean Siar Local Authority"),OR($F76=1,$F76=5)),0,prem_mort(VALUE(LEFT(Options!$B$24,2)),$C76,$E76,$F76,2016,$I76,1,$H76,$G76*$H76,Options!$B$8))) -> 0 | R76: =IF(AND(OR(Calculations!$E$2="Orkney Health Board",Calculations!$E$2="Orkney Islands Local Authority"),$F76=1),0,IF(AND(OR(Calculations!$E$2="Shetland Health Board",Calculations!$E$2="Western Isles Health Board",Calculations!$E$2="Shetland Islands Local Authority",Calculations!$E$2="Eilean Siar Local Authority"),OR($F76=1,$F76=5)),0,prem_mort(VALUE(LEFT(Options!$B$24,2)),$C76,$E76,$F76,2016,$I76+$J76,1,$H76,$G76*$H76,Options!$B$8))) -> 0 | S76: 7259.80493 | T76: 7259.80493 | U76: 49947.4434 | V76: 49947.4434 | W76: 71814.70758 | X76: 71814.70758 | Y76: 0 | Z76: 0 | AA76: 18149512.32 | AB76: 18149512.32 | AC76: 124868608.5 | AD76: 124868608.5 | AE76: 179536769 | AF76: 179536769 | AG76: 0 | AH76: 0 | AI76: 2500
B77: Female 85-89 | C77: 86.73082 | D77: 92.22082 | E77: female | F77: 1 | G77: =HLOOKUP(Calculations!$E$2,'Prevalence Rates'!$C$3:$BC$249,'Prevalence Rates'!$BD77,FALSE) -> 0 | H77: =HLOOKUP(Calculations!$E$2,'Population 2016'!$C$3:$BC$249,'Population 2016'!BD77,FALSE) -> 8869 | I77: 0 | J77: =HLOOKUP(Results!E$4,Targeting!$C$3:$F$249,Targeting!$G77,FALSE) -> 0 | K77: =IF(AND(OR(Calculations!$E$2="Orkney Health Board",Calculations!$E$2="Orkney Islands Local Authority"),$F77=1),0,IF(AND(OR(Calculations!$E$2="Shetland Health Board",Calculations!$E$2="Western Isles Health Board",Calculations!$E$2="Shetland Islands Local Authority",Calculations!$E$2="Eilean Siar Local Authority"),OR($F77=1,$F77=5)),0,new_ci(VALUE(LEFT(Options!$B$24,2)),$C77,$E77,$F77,2016,$I77,1,$H77,$G77*$H77,Options!$B$8))) -> 956.2419475 | L77: =IF(AND(OR(Calculations!$E$2="Orkney Health Board",Calculations!$E$2="Orkney Islands Local Authority"),$F77=1),0,IF(AND(OR(Calculations!$E$2="Shetland Health Board",Calculations!$E$2="Western Isles Health Board",Calculations!$E$2="Shetland Islands Local Authority",Calculations!$E$2="Eilean Siar Local Authority"),OR($F77=1,$F77=5)),0,new_ci(VALUE(LEFT(Options!$B$24,2)),$C77,$E77,$F77,2016,$I77+$J77,1,$H77,$G77*$H77,Options!$B$8))) -> 956.2419475 | M77: =IF(AND(OR(Calculations!$E$2="Orkney Health Board",Calculations!$E$2="Orkney Islands Local Authority"),$F77=1),0,IF(AND(OR(Calculations!$E$2="Shetland Health Board",Calculations!$E$2="Western Isles Health Board",Calculations!$E$2="Shetland Islands Local Authority",Calculations!$E$2="Eilean Siar Local Authority"),OR($F77=1,$F77=5)),0,new_yllv2(VALUE(LEFT(Options!$B$24,2)),$C77,$D77,$E77,$F77,2016,$I77,1,$H77,$G77*$H77,Options!$B$8))) -> 4293.526344 | N77: =IF(AND(OR(Calculations!$E$2="Orkney Health Board",Calculations!$E$2="Orkney Islands Local Authority"),$F77=1),0,IF(AND(OR(Calculations!$E$2="Shetland Health Board",Calculations!$E$2="Western Isles Health Board",Calculations!$E$2="Shetland Islands Local Authority",Calculations!$E$2="Eilean Siar Local Authority"),OR($F77=1,$F77=5)),0,new_yllv2(VALUE(LEFT(Options!$B$24,2)),$C77,$D77,$E77,$F77,2016,$I77+$J77,1,$H77,$G77*$H77,Options!$B$8))) -> 4293.526344 | O77: =IF(AND(OR(Calculations!$E$2="Orkney Health Board",Calculations!$E$2="Orkney Islands Local Authority"),$F77=1),0,IF(AND(OR(Calculations!$E$2="Shetland Health Board",Calculations!$E$2="Western Isles Health Board",Calculations!$E$2="Shetland Islands Local Authority",Calculations!$E$2="Eilean Siar Local Authority"),OR($F77=1,$F77=5)),0,hosp_count(VALUE(LEFT(Options!$B$24,2)),$C77,$E77,$F77,2016,$I77,1,$H77,$G77*$H77, Options!$B$8))) -> 7200.01394 | P77: =IF(AND(OR(Calculations!$E$2="Orkney Health Board",Calculations!$E$2="Orkney Islands Local Authority"),$F77=1),0,IF(AND(OR(Calculations!$E$2="Shetland Health Board",Calculations!$E$2="Western Isles Health Board",Calculations!$E$2="Shetland Islands Local Authority",Calculations!$E$2="Eilean Siar Local Authority"),OR($F77=1,$F77=5)),0,hosp_count(VALUE(LEFT(Options!$B$24,2)),$C77,$E77,$F77,2016,$I77+$J77,1,$H77,$G77*$H77, Options!$B$8))) -> 7200.01394 | Q77: =IF(AND(OR(Calculations!$E$2="Orkney Health Board",Calculations!$E$2="Orkney Islands Local Authority"),$F77=1),0,IF(AND(OR(Calculations!$E$2="Shetland Health Board",Calculations!$E$2="Western Isles Health Board",Calculations!$E$2="Shetland Islands Local Authority",Calculations!$E$2="Eilean Siar Local Authority"),OR($F77=1,$F77=5)),0,prem_mort(VALUE(LEFT(Options!$B$24,2)),$C77,$E77,$F77,2016,$I77,1,$H77,$G77*$H77,Options!$B$8))) -> 0 | R77: =IF(AND(OR(Calculations!$E$2="Orkney Health Board",Calculations!$E$2="Orkney Islands Local Authority"),$F77=1),0,IF(AND(OR(Calculations!$E$2="Shetland Health Board",Calculations!$E$2="Western Isles Health Board",Calculations!$E$2="Shetland Islands Local Authority",Calculations!$E$2="Eilean Siar Local Authority"),OR($F77=1,$F77=5)),0,prem_mort(VALUE(LEFT(Options!$B$24,2)),$C77,$E77,$F77,2016,$I77+$J77,1,$H77,$G77*$H77,Options!$B$8))) -> 0 | S77: 10781.84629 | T77: 10781.84629 | U77: 48410.48984 | V77: 48410.48984 | W77: 81181.8011 | X77: 81181.8011 | Y77: 0 | Z77: 0 | AA77: 16172769.44 | AB77: 16172769.44 | AC77: 72615734.76 | AD77: 72615734.76 | AE77: 121772701.7 | AF77: 121772701.7 | AG77: 0 | AH77: 0 | AI77: 1500
B78: Female 90+ | C78: 92.779343 | D78: 96.27934 | E78: female | F78: 1 | G78: =HLOOKUP(Calculations!$E$2,'Prevalence Rates'!$C$3:$BC$249,'Prevalence Rates'!$BD78,FALSE) -> 0 | H78: =HLOOKUP(Calculations!$E$2,'Population 2016'!$C$3:$BC$249,'Population 2016'!BD78,FALSE) -> 4825 | I78: 0 | J78: =HLOOKUP(Results!E$4,Targeting!$C$3:$F$249,Targeting!$G78,FALSE) -> 0 | K78: =IF(AND(OR(Calculations!$E$2="Orkney Health Board",Calculations!$E$2="Orkney Islands Local Authority"),$F78=1),0,IF(AND(OR(Calculations!$E$2="Shetland Health Board",Calculations!$E$2="Western Isles Health Board",Calculations!$E$2="Shetland Islands Local Authority",Calculations!$E$2="Eilean Siar Local Authority"),OR($F78=1,$F78=5)),0,new_ci(VALUE(LEFT(Options!$B$24,2)),$C78,$E78,$F78,2016,$I78,1,$H78,$G78*$H78,Options!$B$8))) -> 838.2474715 | L78: =IF(AND(OR(Calculations!$E$2="Orkney Health Board",Calculations!$E$2="Orkney Islands Local Authority"),$F78=1),0,IF(AND(OR(Calculations!$E$2="Shetland Health Board",Calculations!$E$2="Western Isles Health Board",Calculations!$E$2="Shetland Islands Local Authority",Calculations!$E$2="Eilean Siar Local Authority"),OR($F78=1,$F78=5)),0,new_ci(VALUE(LEFT(Options!$B$24,2)),$C78,$E78,$F78,2016,$I78+$J78,1,$H78,$G78*$H78,Options!$B$8))) -> 838.2474715 | M78: =IF(AND(OR(Calculations!$E$2="Orkney Health Board",Calculations!$E$2="Orkney Islands Local Authority"),$F78=1),0,IF(AND(OR(Calculations!$E$2="Shetland Health Board",Calculations!$E$2="Western Isles Health Board",Calculations!$E$2="Shetland Islands Local Authority",Calculations!$E$2="Eilean Siar Local Authority"),OR($F78=1,$F78=5)),0,new_yllv2(VALUE(LEFT(Options!$B$24,2)),$C78,$D78,$E78,$F78,2016,$I78,1,$H78,$G78*$H78,Options!$B$8))) -> 2095.616164 | N78: =IF(AND(OR(Calculations!$E$2="Orkney Health Board",Calculations!$E$2="Orkney Islands Local Authority"),$F78=1),0,IF(AND(OR(Calculations!$E$2="Shetland Health Board",Calculations!$E$2="Western Isles Health Board",Calculations!$E$2="Shetland Islands Local Authority",Calculations!$E$2="Eilean Siar Local Authority"),OR($F78=1,$F78=5)),0,new_yllv2(VALUE(LEFT(Options!$B$24,2)),$C78,$D78,$E78,$F78,2016,$I78+$J78,1,$H78,$G78*$H78,Options!$B$8))) -> 2095.616164 | O78: =IF(AND(OR(Calculations!$E$2="Orkney Health Board",Calculations!$E$2="Orkney Islands Local Authority"),$F78=1),0,IF(AND(OR(Calculations!$E$2="Shetland Health Board",Calculations!$E$2="Western Isles Health Board",Calculations!$E$2="Shetland Islands Local Authority",Calculations!$E$2="Eilean Siar Local Authority"),OR($F78=1,$F78=5)),0,hosp_count(VALUE(LEFT(Options!$B$24,2)),$C78,$E78,$F78,2016,$I78,1,$H78,$G78*$H78, Options!$B$8))) -> 4560.691784 | P78: =IF(AND(OR(Calculations!$E$2="Orkney Health Board",Calculations!$E$2="Orkney Islands Local Authority"),$F78=1),0,IF(AND(OR(Calculations!$E$2="Shetland Health Board",Calculations!$E$2="Western Isles Health Board",Calculations!$E$2="Shetland Islands Local Authority",Calculations!$E$2="Eilean Siar Local Authority"),OR($F78=1,$F78=5)),0,hosp_count(VALUE(LEFT(Options!$B$24,2)),$C78,$E78,$F78,2016,$I78+$J78,1,$H78,$G78*$H78, Options!$B$8))) -> 4560.691784 | Q78: =IF(AND(OR(Calculations!$E$2="Orkney Health Board",Calculations!$E$2="Orkney Islands Local Authority"),$F78=1),0,IF(AND(OR(Calculations!$E$2="Shetland Health Board",Calculations!$E$2="Western Isles Health Board",Calculations!$E$2="Shetland Islands Local Authority",Calculations!$E$2="Eilean Siar Local Authority"),OR($F78=1,$F78=5)),0,prem_mort(VALUE(LEFT(Options!$B$24,2)),$C78,$E78,$F78,2016,$I78,1,$H78,$G78*$H78,Options!$B$8))) -> 0 | R78: =IF(AND(OR(Calculations!$E$2="Orkney Health Board",Calculations!$E$2="Orkney Islands Local Authority"),$F78=1),0,IF(AND(OR(Calculations!$E$2="Shetland Health Board",Calculations!$E$2="Western Isles Health Board",Calculations!$E$2="Shetland Islands Local Authority",Calculations!$E$2="Eilean Siar Local Authority"),OR($F78=1,$F78=5)),0,prem_mort(VALUE(LEFT(Options!$B$24,2)),$C78,$E78,$F78,2016,$I78+$J78,1,$H78,$G78*$H78,Options!$B$8))) -> 0 | S78: 17373.00459 | T78: 17373.00459 | U78: 43432.45936 | V78: 43432.45936 | W78: 94522.10951 | X78: 94522.10951 | Y78: 0 | Z78: 0 | AA78: 17373004.59 | AB78: 17373004.59 | AC78: 43432459.36 | AD78: 43432459.36 | AE78: 94522109.51 | AF78: 94522109.51 | AG78: 0 | AH78: 0 | AI78: 1000
B79: Male 0-4 | C79: 2.0320823 | D79: 77.402082 | E79: male | F79: 1 | G79: =HLOOKUP(Calculations!$E$2,'Prevalence Rates'!$C$3:$BC$249,'Prevalence Rates'!$BD79,FALSE) -> 0 | H79: =HLOOKUP(Calculations!$E$2,'Population 2016'!$C$3:$BC$249,'Population 2016'!BD79,FALSE) -> 0 | I79: 0 | J79: =HLOOKUP(Results!E$4,Targeting!$C$3:$F$249,Targeting!$G79,FALSE) -> 0 | K79: =IF(AND(OR(Calculations!$E$2="Orkney Health Board",Calculations!$E$2="Orkney Islands Local Authority"),$F79=1),0,IF(AND(OR(Calculations!$E$2="Shetland Health Board",Calculations!$E$2="Western Isles Health Board",Calculations!$E$2="Shetland Islands Local Authority",Calculations!$E$2="Eilean Siar Local Authority"),OR($F79=1,$F79=5)),0,new_ci(VALUE(LEFT(Options!$B$24,2)),$C79,$E79,$F79,2016,$I79,1,$H79,$G79*$H79,Options!$B$8))) ->  | L79: =IF(AND(OR(Calculations!$E$2="Orkney Health Board",Calculations!$E$2="Orkney Islands Local Authority"),$F79=1),0,IF(AND(OR(Calculations!$E$2="Shetland Health Board",Calculations!$E$2="Western Isles Health Board",Calculations!$E$2="Shetland Islands Local Authority",Calculations!$E$2="Eilean Siar Local Authority"),OR($F79=1,$F79=5)),0,new_ci(VALUE(LEFT(Options!$B$24,2)),$C79,$E79,$F79,2016,$I79+$J79,1,$H79,$G79*$H79,Options!$B$8))) ->  | M79: =IF(AND(OR(Calculations!$E$2="Orkney Health Board",Calculations!$E$2="Orkney Islands Local Authority"),$F79=1),0,IF(AND(OR(Calculations!$E$2="Shetland Health Board",Calculations!$E$2="Western Isles Health Board",Calculations!$E$2="Shetland Islands Local Authority",Calculations!$E$2="Eilean Siar Local Authority"),OR($F79=1,$F79=5)),0,new_yllv2(VALUE(LEFT(Options!$B$24,2)),$C79,$D79,$E79,$F79,2016,$I79,1,$H79,$G79*$H79,Options!$B$8))) ->  | N79: =IF(AND(OR(Calculations!$E$2="Orkney Health Board",Calculations!$E$2="Orkney Islands Local Authority"),$F79=1),0,IF(AND(OR(Calculations!$E$2="Shetland Health Board",Calculations!$E$2="Western Isles Health Board",Calculations!$E$2="Shetland Islands Local Authority",Calculations!$E$2="Eilean Siar Local Authority"),OR($F79=1,$F79=5)),0,new_yllv2(VALUE(LEFT(Options!$B$24,2)),$C79,$D79,$E79,$F79,2016,$I79+$J79,1,$H79,$G79*$H79,Options!$B$8))) ->  | O79: =IF(AND(OR(Calculations!$E$2="Orkney Health Board",Calculations!$E$2="Orkney Islands Local Authority"),$F79=1),0,IF(AND(OR(Calculations!$E$2="Shetland Health Board",Calculations!$E$2="Western Isles Health Board",Calculations!$E$2="Shetland Islands Local Authority",Calculations!$E$2="Eilean Siar Local Authority"),OR($F79=1,$F79=5)),0,hosp_count(VALUE(LEFT(Options!$B$24,2)),$C79,$E79,$F79,2016,$I79,1,$H79,$G79*$H79, Options!$B$8))) ->  | P79: =IF(AND(OR(Calculations!$E$2="Orkney Health Board",Calculations!$E$2="Orkney Islands Local Authority"),$F79=1),0,IF(AND(OR(Calculations!$E$2="Shetland Health Board",Calculations!$E$2="Western Isles Health Board",Calculations!$E$2="Shetland Islands Local Authority",Calculations!$E$2="Eilean Siar Local Authority"),OR($F79=1,$F79=5)),0,hosp_count(VALUE(LEFT(Options!$B$24,2)),$C79,$E79,$F79,2016,$I79+$J79,1,$H79,$G79*$H79, Options!$B$8))) ->  | Q79: =IF(AND(OR(Calculations!$E$2="Orkney Health Board",Calculations!$E$2="Orkney Islands Local Authority"),$F79=1),0,IF(AND(OR(Calculations!$E$2="Shetland Health Board",Calculations!$E$2="Western Isles Health Board",Calculations!$E$2="Shetland Islands Local Authority",Calculations!$E$2="Eilean Siar Local Authority"),OR($F79=1,$F79=5)),0,prem_mort(VALUE(LEFT(Options!$B$24,2)),$C79,$E79,$F79,2016,$I79,1,$H79,$G79*$H79,Options!$B$8))) ->  | R79: =IF(AND(OR(Calculations!$E$2="Orkney Health Board",Calculations!$E$2="Orkney Islands Local Authority"),$F79=1),0,IF(AND(OR(Calculations!$E$2="Shetland Health Board",Calculations!$E$2="Western Isles Health Board",Calculations!$E$2="Shetland Islands Local Authority",Calculations!$E$2="Eilean Siar Local Authority"),OR($F79=1,$F79=5)),0,prem_mort(VALUE(LEFT(Options!$B$24,2)),$C79,$E79,$F79,2016,$I79+$J79,1,$H79,$G79*$H79,Options!$B$8))) ->  | AI79: 5000
B80: Male 5-9 | C80: 6.9784756 | D80: 77.398476 | E80: male | F80: 1 | G80: =HLOOKUP(Calculations!$E$2,'Prevalence Rates'!$C$3:$BC$249,'Prevalence Rates'!$BD80,FALSE) -> 0 | H80: =HLOOKUP(Calculations!$E$2,'Population 2016'!$C$3:$BC$249,'Population 2016'!BD80,FALSE) -> 0 | I80: 0 | J80: =HLOOKUP(Results!E$4,Targeting!$C$3:$F$249,Targeting!$G80,FALSE) -> 0 | K80: =IF(AND(OR(Calculations!$E$2="Orkney Health Board",Calculations!$E$2="Orkney Islands Local Authority"),$F80=1),0,IF(AND(OR(Calculations!$E$2="Shetland Health Board",Calculations!$E$2="Western Isles Health Board",Calculations!$E$2="Shetland Islands Local Authority",Calculations!$E$2="Eilean Siar Local Authority"),OR($F80=1,$F80=5)),0,new_ci(VALUE(LEFT(Options!$B$24,2)),$C80,$E80,$F80,2016,$I80,1,$H80,$G80*$H80,Options!$B$8))) ->  | L80: =IF(AND(OR(Calculations!$E$2="Orkney Health Board",Calculations!$E$2="Orkney Islands Local Authority"),$F80=1),0,IF(AND(OR(Calculations!$E$2="Shetland Health Board",Calculations!$E$2="Western Isles Health Board",Calculations!$E$2="Shetland Islands Local Authority",Calculations!$E$2="Eilean Siar Local Authority"),OR($F80=1,$F80=5)),0,new_ci(VALUE(LEFT(Options!$B$24,2)),$C80,$E80,$F80,2016,$I80+$J80,1,$H80,$G80*$H80,Options!$B$8))) ->  | M80: =IF(AND(OR(Calculations!$E$2="Orkney Health Board",Calculations!$E$2="Orkney Islands Local Authority"),$F80=1),0,IF(AND(OR(Calculations!$E$2="Shetland Health Board",Calculations!$E$2="Western Isles Health Board",Calculations!$E$2="Shetland Islands Local Authority",Calculations!$E$2="Eilean Siar Local Authority"),OR($F80=1,$F80=5)),0,new_yllv2(VALUE(LEFT(Options!$B$24,2)),$C80,$D80,$E80,$F80,2016,$I80,1,$H80,$G80*$H80,Options!$B$8))) ->  | N80: =IF(AND(OR(Calculations!$E$2="Orkney Health Board",Calculations!$E$2="Orkney Islands Local Authority"),$F80=1),0,IF(AND(OR(Calculations!$E$2="Shetland Health Board",Calculations!$E$2="Western Isles Health Board",Calculations!$E$2="Shetland Islands Local Authority",Calculations!$E$2="Eilean Siar Local Authority"),OR($F80=1,$F80=5)),0,new_yllv2(VALUE(LEFT(Options!$B$24,2)),$C80,$D80,$E80,$F80,2016,$I80+$J80,1,$H80,$G80*$H80,Options!$B$8))) ->  | O80: =IF(AND(OR(Calculations!$E$2="Orkney Health Board",Calculations!$E$2="Orkney Islands Local Authority"),$F80=1),0,IF(AND(OR(Calculations!$E$2="Shetland Health Board",Calculations!$E$2="Western Isles Health Board",Calculations!$E$2="Shetland Islands Local Authority",Calculations!$E$2="Eilean Siar Local Authority"),OR($F80=1,$F80=5)),0,hosp_count(VALUE(LEFT(Options!$B$24,2)),$C80,$E80,$F80,2016,$I80,1,$H80,$G80*$H80, Options!$B$8))) ->  | P80: =IF(AND(OR(Calculations!$E$2="Orkney Health Board",Calculations!$E$2="Orkney Islands Local Authority"),$F80=1),0,IF(AND(OR(Calculations!$E$2="Shetland Health Board",Calculations!$E$2="Western Isles Health Board",Calculations!$E$2="Shetland Islands Local Authority",Calculations!$E$2="Eilean Siar Local Authority"),OR($F80=1,$F80=5)),0,hosp_count(VALUE(LEFT(Options!$B$24,2)),$C80,$E80,$F80,2016,$I80+$J80,1,$H80,$G80*$H80, Options!$B$8))) ->  | Q80: =IF(AND(OR(Calculations!$E$2="Orkney Health Board",Calculations!$E$2="Orkney Islands Local Authority"),$F80=1),0,IF(AND(OR(Calculations!$E$2="Shetland Health Board",Calculations!$E$2="Western Isles Health Board",Calculations!$E$2="Shetland Islands Local Authority",Calculations!$E$2="Eilean Siar Local Authority"),OR($F80=1,$F80=5)),0,prem_mort(VALUE(LEFT(Options!$B$24,2)),$C80,$E80,$F80,2016,$I80,1,$H80,$G80*$H80,Options!$B$8))) ->  | R80: =IF(AND(OR(Calculations!$E$2="Orkney Health Board",Calculations!$E$2="Orkney Islands Local Authority"),$F80=1),0,IF(AND(OR(Calculations!$E$2="Shetland Health Board",Calculations!$E$2="Western Isles Health Board",Calculations!$E$2="Shetland Islands Local Authority",Calculations!$E$2="Eilean Siar Local Authority"),OR($F80=1,$F80=5)),0,prem_mort(VALUE(LEFT(Options!$B$24,2)),$C80,$E80,$F80,2016,$I80+$J80,1,$H80,$G80*$H80,Options!$B$8))) ->  | AI80: 5500
B81: Male 10-15 | C81: 12.471144 | D81: 77.92114 | E81: male | F81: 1 | G81: =HLOOKUP(Calculations!$E$2,'Prevalence Rates'!$C$3:$BC$249,'Prevalence Rates'!$BD81,FALSE) -> 0 | H81: =HLOOKUP(Calculations!$E$2,'Population 2016'!$C$3:$BC$249,'Population 2016'!BD81,FALSE) -> 0 | I81: 0 | J81: =HLOOKUP(Results!E$4,Targeting!$C$3:$F$249,Targeting!$G81,FALSE) -> 0 | K81: =IF(AND(OR(Calculations!$E$2="Orkney Health Board",Calculations!$E$2="Orkney Islands Local Authority"),$F81=1),0,IF(AND(OR(Calculations!$E$2="Shetland Health Board",Calculations!$E$2="Western Isles Health Board",Calculations!$E$2="Shetland Islands Local Authority",Calculations!$E$2="Eilean Siar Local Authority"),OR($F81=1,$F81=5)),0,new_ci(VALUE(LEFT(Options!$B$24,2)),$C81,$E81,$F81,2016,$I81,1,$H81,$G81*$H81,Options!$B$8))) ->  | L81: =IF(AND(OR(Calculations!$E$2="Orkney Health Board",Calculations!$E$2="Orkney Islands Local Authority"),$F81=1),0,IF(AND(OR(Calculations!$E$2="Shetland Health Board",Calculations!$E$2="Western Isles Health Board",Calculations!$E$2="Shetland Islands Local Authority",Calculations!$E$2="Eilean Siar Local Authority"),OR($F81=1,$F81=5)),0,new_ci(VALUE(LEFT(Options!$B$24,2)),$C81,$E81,$F81,2016,$I81+$J81,1,$H81,$G81*$H81,Options!$B$8))) ->  | M81: =IF(AND(OR(Calculations!$E$2="Orkney Health Board",Calculations!$E$2="Orkney Islands Local Authority"),$F81=1),0,IF(AND(OR(Calculations!$E$2="Shetland Health Board",Calculations!$E$2="Western Isles Health Board",Calculations!$E$2="Shetland Islands Local Authority",Calculations!$E$2="Eilean Siar Local Authority"),OR($F81=1,$F81=5)),0,new_yllv2(VALUE(LEFT(Options!$B$24,2)),$C81,$D81,$E81,$F81,2016,$I81,1,$H81,$G81*$H81,Options!$B$8))) ->  | N81: =IF(AND(OR(Calculations!$E$2="Orkney Health Board",Calculations!$E$2="Orkney Islands Local Authority"),$F81=1),0,IF(AND(OR(Calculations!$E$2="Shetland Health Board",Calculations!$E$2="Western Isles Health Board",Calculations!$E$2="Shetland Islands Local Authority",Calculations!$E$2="Eilean Siar Local Authority"),OR($F81=1,$F81=5)),0,new_yllv2(VALUE(LEFT(Options!$B$24,2)),$C81,$D81,$E81,$F81,2016,$I81+$J81,1,$H81,$G81*$H81,Options!$B$8))) ->  | O81: =IF(AND(OR(Calculations!$E$2="Orkney Health Board",Calculations!$E$2="Orkney Islands Local Authority"),$F81=1),0,IF(AND(OR(Calculations!$E$2="Shetland Health Board",Calculations!$E$2="Western Isles Health Board",Calculations!$E$2="Shetland Islands Local Authority",Calculations!$E$2="Eilean Siar Local Authority"),OR($F81=1,$F81=5)),0,hosp_count(VALUE(LEFT(Options!$B$24,2)),$C81,$E81,$F81,2016,$I81,1,$H81,$G81*$H81, Options!$B$8))) ->  | P81: =IF(AND(OR(Calculations!$E$2="Orkney Health Board",Calculations!$E$2="Orkney Islands Local Authority"),$F81=1),0,IF(AND(OR(Calculations!$E$2="Shetland Health Board",Calculations!$E$2="Western Isles Health Board",Calculations!$E$2="Shetland Islands Local Authority",Calculations!$E$2="Eilean Siar Local Authority"),OR($F81=1,$F81=5)),0,hosp_count(VALUE(LEFT(Options!$B$24,2)),$C81,$E81,$F81,2016,$I81+$J81,1,$H81,$G81*$H81, Options!$B$8))) ->  | Q81: =IF(AND(OR(Calculations!$E$2="Orkney Health Board",Calculations!$E$2="Orkney Islands Local Authority"),$F81=1),0,IF(AND(OR(Calculations!$E$2="Shetland Health Board",Calculations!$E$2="Western Isles Health Board",Calculations!$E$2="Shetland Islands Local Authority",Calculations!$E$2="Eilean Siar Local Authority"),OR($F81=1,$F81=5)),0,prem_mort(VALUE(LEFT(Options!$B$24,2)),$C81,$E81,$F81,2016,$I81,1,$H81,$G81*$H81,Options!$B$8))) ->  | R81: =IF(AND(OR(Calculations!$E$2="Orkney Health Board",Calculations!$E$2="Orkney Islands Local Authority"),$F81=1),0,IF(AND(OR(Calculations!$E$2="Shetland Health Board",Calculations!$E$2="Western Isles Health Board",Calculations!$E$2="Shetland Islands Local Authority",Calculations!$E$2="Eilean Siar Local Authority"),OR($F81=1,$F81=5)),0,prem_mort(VALUE(LEFT(Options!$B$24,2)),$C81,$E81,$F81,2016,$I81+$J81,1,$H81,$G81*$H81,Options!$B$8))) ->  | AI81: 6600
B82: Male 16-19 | C82: 17.556318 | D82: 77.07632 | E82: male | F82: 1 | G82: =HLOOKUP(Calculations!$E$2,'Prevalence Rates'!$C$3:$BC$249,'Prevalence Rates'!$BD82,FALSE) -> 0.2604340568 | H82: =HLOOKUP(Calculations!$E$2,'Population 2016'!$C$3:$BC$249,'Population 2016'!BD82,FALSE) -> 25359 | I82: 0 | J82: =HLOOKUP(Results!E$4,Targeting!$C$3:$F$249,Targeting!$G82,FALSE) -> 1722 | K82: =IF(AND(OR(Calculations!$E$2="Orkney Health Board",Calculations!$E$2="Orkney Islands Local Authority"),$F82=1),0,IF(AND(OR(Calculations!$E$2="Shetland Health Board",Calculations!$E$2="Western Isles Health Board",Calculations!$E$2="Shetland Islands Local Authority",Calculations!$E$2="Eilean Siar Local Authority"),OR($F82=1,$F82=5)),0,new_ci(VALUE(LEFT(Options!$B$24,2)),$C82,$E82,$F82,2016,$I82,1,$H82,$G82*$H82,Options!$B$8))) -> 19.17186973 | L82: =IF(AND(OR(Calculations!$E$2="Orkney Health Board",Calculations!$E$2="Orkney Islands Local Authority"),$F82=1),0,IF(AND(OR(Calculations!$E$2="Shetland Health Board",Calculations!$E$2="Western Isles Health Board",Calculations!$E$2="Shetland Islands Local Authority",Calculations!$E$2="Eilean Siar Local Authority"),OR($F82=1,$F82=5)),0,new_ci(VALUE(LEFT(Options!$B$24,2)),$C82,$E82,$F82,2016,$I82+$J82,1,$H82,$G82*$H82,Options!$B$8))) -> 18.52783863 | M82: =IF(AND(OR(Calculations!$E$2="Orkney Health Board",Calculations!$E$2="Orkney Islands Local Authority"),$F82=1),0,IF(AND(OR(Calculations!$E$2="Shetland Health Board",Calculations!$E$2="Western Isles Health Board",Calculations!$E$2="Shetland Islands Local Authority",Calculations!$E$2="Eilean Siar Local Authority"),OR($F82=1,$F82=5)),0,new_yllv2(VALUE(LEFT(Options!$B$24,2)),$C82,$D82,$E82,$F82,2016,$I82,1,$H82,$G82*$H82,Options!$B$8))) -> 1121.937855 | N82: =IF(AND(OR(Calculations!$E$2="Orkney Health Board",Calculations!$E$2="Orkney Islands Local Authority"),$F82=1),0,IF(AND(OR(Calculations!$E$2="Shetland Health Board",Calculations!$E$2="Western Isles Health Board",Calculations!$E$2="Shetland Islands Local Authority",Calculations!$E$2="Eilean Siar Local Authority"),OR($F82=1,$F82=5)),0,new_yllv2(VALUE(LEFT(Options!$B$24,2)),$C82,$D82,$E82,$F82,2016,$I82+$J82,1,$H82,$G82*$H82,Options!$B$8))) -> 1084.249153 | O82: =IF(AND(OR(Calculations!$E$2="Orkney Health Board",Calculations!$E$2="Orkney Islands Local Authority"),$F82=1),0,IF(AND(OR(Calculations!$E$2="Shetland Health Board",Calculations!$E$2="Western Isles Health Board",Calculations!$E$2="Shetland Islands Local Authority",Calculations!$E$2="Eilean Siar Local Authority"),OR($F82=1,$F82=5)),0,hosp_count(VALUE(LEFT(Options!$B$24,2)),$C82,$E82,$F82,2016,$I82,1,$H82,$G82*$H82, Options!$B$8))) -> 2447.125645 | P82: =IF(AND(OR(Calculations!$E$2="Orkney Health Board",Calculations!$E$2="Orkney Islands Local Authority"),$F82=1),0,IF(AND(OR(Calculations!$E$2="Shetland Health Board",Calculations!$E$2="Western Isles Health Board",Calculations!$E$2="Shetland Islands Local Authority",Calculations!$E$2="Eilean Siar Local Authority"),OR($F82=1,$F82=5)),0,hosp_count(VALUE(LEFT(Options!$B$24,2)),$C82,$E82,$F82,2016,$I82+$J82,1,$H82,$G82*$H82, Options!$B$8))) -> 2441.832194 | Q82: =IF(AND(OR(Calculations!$E$2="Orkney Health Board",Calculations!$E$2="Orkney Islands Local Authority"),$F82=1),0,IF(AND(OR(Calculations!$E$2="Shetland Health Board",Calculations!$E$2="Western Isles Health Board",Calculations!$E$2="Shetland Islands Local Authority",Calculations!$E$2="Eilean Siar Local Authority"),OR($F82=1,$F82=5)),0,prem_mort(VALUE(LEFT(Options!$B$24,2)),$C82,$E82,$F82,2016,$I82,1,$H82,$G82*$H82,Options!$B$8))) -> 19.17186973 | R82: =IF(AND(OR(Calculations!$E$2="Orkney Health Board",Calculations!$E$2="Orkney Islands Local Authority"),$F82=1),0,IF(AND(OR(Calculations!$E$2="Shetland Health Board",Calculations!$E$2="Western Isles Health Board",Calculations!$E$2="Shetland Islands Local Authority",Calculations!$E$2="Eilean Siar Local Authority"),OR($F82=1,$F82=5)),0,prem_mort(VALUE(LEFT(Options!$B$24,2)),$C82,$E82,$F82,2016,$I82+$J82,1,$H82,$G82*$H82,Options!$B$8))) -> 18.52783863 | S82: 75.60183653 | T82: 73.06218157 | U82: 4424.219625 | V82: 4275.599012 | W82: 9649.92959 | X82: 9629.055537 | Y82: 75.60183653 | Z82: 73.06218157 | AA82: 332648.0807 | AB82: 321473.5989 | AC82: 19466566.35 | AD82: 18812635.65 | AE82: 42459690.2 | AF82: 42367844.36 | AG82: 332648.0807 | AH82: 321473.5989 | AI82: 4400
B83: Male 20-24 | C83: 22.054632 | D83: 77.70463 | E83: male | F83: 1 | G83: =HLOOKUP(Calculations!$E$2,'Prevalence Rates'!$C$3:$BC$249,'Prevalence Rates'!$BD83,FALSE) -> 0.2604340568 | H83: =HLOOKUP(Calculations!$E$2,'Population 2016'!$C$3:$BC$249,'Population 2016'!BD83,FALSE) -> 37180 | I83: 0 | J83: =HLOOKUP(Results!E$4,Targeting!$C$3:$F$249,Targeting!$G83,FALSE) -> 2524 | K83: =IF(AND(OR(Calculations!$E$2="Orkney Health Board",Calculations!$E$2="Orkney Islands Local Authority"),$F83=1),0,IF(AND(OR(Calculations!$E$2="Shetland Health Board",Calculations!$E$2="Western Isles Health Board",Calculations!$E$2="Shetland Islands Local Authority",Calculations!$E$2="Eilean Siar Local Authority"),OR($F83=1,$F83=5)),0,new_ci(VALUE(LEFT(Options!$B$24,2)),$C83,$E83,$F83,2016,$I83,1,$H83,$G83*$H83,Options!$B$8))) -> 39.46950827 | L83: =IF(AND(OR(Calculations!$E$2="Orkney Health Board",Calculations!$E$2="Orkney Islands Local Authority"),$F83=1),0,IF(AND(OR(Calculations!$E$2="Shetland Health Board",Calculations!$E$2="Western Isles Health Board",Calculations!$E$2="Shetland Islands Local Authority",Calculations!$E$2="Eilean Siar Local Authority"),OR($F83=1,$F83=5)),0,new_ci(VALUE(LEFT(Options!$B$24,2)),$C83,$E83,$F83,2016,$I83+$J83,1,$H83,$G83*$H83,Options!$B$8))) -> 38.14427854 | M83: =IF(AND(OR(Calculations!$E$2="Orkney Health Board",Calculations!$E$2="Orkney Islands Local Authority"),$F83=1),0,IF(AND(OR(Calculations!$E$2="Shetland Health Board",Calculations!$E$2="Western Isles Health Board",Calculations!$E$2="Shetland Islands Local Authority",Calculations!$E$2="Eilean Siar Local Authority"),OR($F83=1,$F83=5)),0,new_yllv2(VALUE(LEFT(Options!$B$24,2)),$C83,$D83,$E83,$F83,2016,$I83,1,$H83,$G83*$H83,Options!$B$8))) -> 2157.008548 | N83: =IF(AND(OR(Calculations!$E$2="Orkney Health Board",Calculations!$E$2="Orkney Islands Local Authority"),$F83=1),0,IF(AND(OR(Calculations!$E$2="Shetland Health Board",Calculations!$E$2="Western Isles Health Board",Calculations!$E$2="Shetland Islands Local Authority",Calculations!$E$2="Eilean Siar Local Authority"),OR($F83=1,$F83=5)),0,new_yllv2(VALUE(LEFT(Options!$B$24,2)),$C83,$D83,$E83,$F83,2016,$I83+$J83,1,$H83,$G83*$H83,Options!$B$8))) -> 2084.584746 | O83: =IF(AND(OR(Calculations!$E$2="Orkney Health Board",Calculations!$E$2="Orkney Islands Local Authority"),$F83=1),0,IF(AND(OR(Calculations!$E$2="Shetland Health Board",Calculations!$E$2="Western Isles Health Board",Calculations!$E$2="Shetland Islands Local Authority",Calculations!$E$2="Eilean Siar Local Authority"),OR($F83=1,$F83=5)),0,hosp_count(VALUE(LEFT(Options!$B$24,2)),$C83,$E83,$F83,2016,$I83,1,$H83,$G83*$H83, Options!$B$8))) -> 4208.978207 | P83: =IF(AND(OR(Calculations!$E$2="Orkney Health Board",Calculations!$E$2="Orkney Islands Local Authority"),$F83=1),0,IF(AND(OR(Calculations!$E$2="Shetland Health Board",Calculations!$E$2="Western Isles Health Board",Calculations!$E$2="Shetland Islands Local Authority",Calculations!$E$2="Eilean Siar Local Authority"),OR($F83=1,$F83=5)),0,hosp_count(VALUE(LEFT(Options!$B$24,2)),$C83,$E83,$F83,2016,$I83+$J83,1,$H83,$G83*$H83, Options!$B$8))) -> 4199.876177 | Q83: =IF(AND(OR(Calculations!$E$2="Orkney Health Board",Calculations!$E$2="Orkney Islands Local Authority"),$F83=1),0,IF(AND(OR(Calculations!$E$2="Shetland Health Board",Calculations!$E$2="Western Isles Health Board",Calculations!$E$2="Shetland Islands Local Authority",Calculations!$E$2="Eilean Siar Local Authority"),OR($F83=1,$F83=5)),0,prem_mort(VALUE(LEFT(Options!$B$24,2)),$C83,$E83,$F83,2016,$I83,1,$H83,$G83*$H83,Options!$B$8))) -> 39.46950827 | R83: =IF(AND(OR(Calculations!$E$2="Orkney Health Board",Calculations!$E$2="Orkney Islands Local Authority"),$F83=1),0,IF(AND(OR(Calculations!$E$2="Shetland Health Board",Calculations!$E$2="Western Isles Health Board",Calculations!$E$2="Shetland Islands Local Authority",Calculations!$E$2="Eilean Siar Local Authority"),OR($F83=1,$F83=5)),0,prem_mort(VALUE(LEFT(Options!$B$24,2)),$C83,$E83,$F83,2016,$I83+$J83,1,$H83,$G83*$H83,Options!$B$8))) -> 38.14427854 | S83: 106.1579028 | T83: 102.593541 | U83: 5801.529177 | V83: 5606.736809 | W83: 11320.54386 | X83: 11296.06288 | Y83: 106.1579028 | Z83: 102.593541 | AA83: 636947.4169 | AB83: 615561.2459 | AC83: 34809175.06 | AD83: 33640420.86 | AE83: 67923263.16 | AF83: 67776377.26 | AG83: 636947.4169 | AH83: 615561.2459 | AI83: 6000
B84: Male 25-29 | C84: 26.959763 | D84: 77.78976 | E84: male | F84: 1 | G84: =HLOOKUP(Calculations!$E$2,'Prevalence Rates'!$C$3:$BC$249,'Prevalence Rates'!$BD84,FALSE) -> 0.2406340058 | H84: =HLOOKUP(Calculations!$E$2,'Population 2016'!$C$3:$BC$249,'Population 2016'!BD84,FALSE) -> 42600 | I84: 0 | J84: =HLOOKUP(Results!E$4,Targeting!$C$3:$F$249,Targeting!$G84,FALSE) -> 2892 | K84: =IF(AND(OR(Calculations!$E$2="Orkney Health Board",Calculations!$E$2="Orkney Islands Local Authority"),$F84=1),0,IF(AND(OR(Calculations!$E$2="Shetland Health Board",Calculations!$E$2="Western Isles Health Board",Calculations!$E$2="Shetland Islands Local Authority",Calculations!$E$2="Eilean Siar Local Authority"),OR($F84=1,$F84=5)),0,new_ci(VALUE(LEFT(Options!$B$24,2)),$C84,$E84,$F84,2016,$I84,1,$H84,$G84*$H84,Options!$B$8))) -> 65.47590906 | L84: =IF(AND(OR(Calculations!$E$2="Orkney Health Board",Calculations!$E$2="Orkney Islands Local Authority"),$F84=1),0,IF(AND(OR(Calculations!$E$2="Shetland Health Board",Calculations!$E$2="Western Isles Health Board",Calculations!$E$2="Shetland Islands Local Authority",Calculations!$E$2="Eilean Siar Local Authority"),OR($F84=1,$F84=5)),0,new_ci(VALUE(LEFT(Options!$B$24,2)),$C84,$E84,$F84,2016,$I84+$J84,1,$H84,$G84*$H84,Options!$B$8))) -> 63.24964746 | M84: =IF(AND(OR(Calculations!$E$2="Orkney Health Board",Calculations!$E$2="Orkney Islands Local Authority"),$F84=1),0,IF(AND(OR(Calculations!$E$2="Shetland Health Board",Calculations!$E$2="Western Isles Health Board",Calculations!$E$2="Shetland Islands Local Authority",Calculations!$E$2="Eilean Siar Local Authority"),OR($F84=1,$F84=5)),0,new_yllv2(VALUE(LEFT(Options!$B$24,2)),$C84,$D84,$E84,$F84,2016,$I84,1,$H84,$G84*$H84,Options!$B$8))) -> 3262.664352 | N84: =IF(AND(OR(Calculations!$E$2="Orkney Health Board",Calculations!$E$2="Orkney Islands Local Authority"),$F84=1),0,IF(AND(OR(Calculations!$E$2="Shetland Health Board",Calculations!$E$2="Western Isles Health Board",Calculations!$E$2="Shetland Islands Local Authority",Calculations!$E$2="Eilean Siar Local Authority"),OR($F84=1,$F84=5)),0,new_yllv2(VALUE(LEFT(Options!$B$24,2)),$C84,$D84,$E84,$F84,2016,$I84+$J84,1,$H84,$G84*$H84,Options!$B$8))) -> 3151.729743 | O84: =IF(AND(OR(Calculations!$E$2="Orkney Health Board",Calculations!$E$2="Orkney Islands Local Authority"),$F84=1),0,IF(AND(OR(Calculations!$E$2="Shetland Health Board",Calculations!$E$2="Western Isles Health Board",Calculations!$E$2="Shetland Islands Local Authority",Calculations!$E$2="Eilean Siar Local Authority"),OR($F84=1,$F84=5)),0,hosp_count(VALUE(LEFT(Options!$B$24,2)),$C84,$E84,$F84,2016,$I84,1,$H84,$G84*$H84, Options!$B$8))) -> 5739.727444 | P84: =IF(AND(OR(Calculations!$E$2="Orkney Health Board",Calculations!$E$2="Orkney Islands Local Authority"),$F84=1),0,IF(AND(OR(Calculations!$E$2="Shetland Health Board",Calculations!$E$2="Western Isles Health Board",Calculations!$E$2="Shetland Islands Local Authority",Calculations!$E$2="Eilean Siar Local Authority"),OR($F84=1,$F84=5)),0,hosp_count(VALUE(LEFT(Options!$B$24,2)),$C84,$E84,$F84,2016,$I84+$J84,1,$H84,$G84*$H84, Options!$B$8))) -> 5727.309986 | Q84: =IF(AND(OR(Calculations!$E$2="Orkney Health Board",Calculations!$E$2="Orkney Islands Local Authority"),$F84=1),0,IF(AND(OR(Calculations!$E$2="Shetland Health Board",Calculations!$E$2="Western Isles Health Board",Calculations!$E$2="Shetland Islands Local Authority",Calculations!$E$2="Eilean Siar Local Authority"),OR($F84=1,$F84=5)),0,prem_mort(VALUE(LEFT(Options!$B$24,2)),$C84,$E84,$F84,2016,$I84,1,$H84,$G84*$H84,Options!$B$8))) -> 65.47590906 | R84: =IF(AND(OR(Calculations!$E$2="Orkney Health Board",Calculations!$E$2="Orkney Islands Local Authority"),$F84=1),0,IF(AND(OR(Calculations!$E$2="Shetland Health Board",Calculations!$E$2="Western Isles Health Board",Calculations!$E$2="Shetland Islands Local Authority",Calculations!$E$2="Eilean Siar Local Authority"),OR($F84=1,$F84=5)),0,prem_mort(VALUE(LEFT(Options!$B$24,2)),$C84,$E84,$F84,2016,$I84+$J84,1,$H84,$G84*$H84,Options!$B$8))) -> 63.24964746 | S84: 153.699317 | T84: 148.4733508 | U84: 7658.836507 | V84: 7398.426627 | W84: 13473.5386 | X84: 13444.38964 | Y84: 153.699317 | Z84: 148.4733508 | AA84: 922195.9022 | AB84: 890840.105 | AC84: 45953019.04 | AD84: 44390559.76 | AE84: 80841231.6 | AF84: 80666337.83 | AG84: 922195.9022 | AH84: 890840.105 | AI84: 6000
B85: Male 30-34 | C85: 31.981522 | D85: 78.06152 | E85: male | F85: 1 | G85: =HLOOKUP(Calculations!$E$2,'Prevalence Rates'!$C$3:$BC$249,'Prevalence Rates'!$BD85,FALSE) -> 0.2406340058 | H85: =HLOOKUP(Calculations!$E$2,'Population 2016'!$C$3:$BC$249,'Population 2016'!BD85,FALSE) -> 38006 | I85: 0 | J85: =HLOOKUP(Results!E$4,Targeting!$C$3:$F$249,Targeting!$G85,FALSE) -> 2580 | K85: =IF(AND(OR(Calculations!$E$2="Orkney Health Board",Calculations!$E$2="Orkney Islands Local Authority"),$F85=1),0,IF(AND(OR(Calculations!$E$2="Shetland Health Board",Calculations!$E$2="Western Isles Health Board",Calculations!$E$2="Shetland Islands Local Authority",Calculations!$E$2="Eilean Siar Local Authority"),OR($F85=1,$F85=5)),0,new_ci(VALUE(LEFT(Options!$B$24,2)),$C85,$E85,$F85,2016,$I85,1,$H85,$G85*$H85,Options!$B$8))) -> 85.31250093 | L85: =IF(AND(OR(Calculations!$E$2="Orkney Health Board",Calculations!$E$2="Orkney Islands Local Authority"),$F85=1),0,IF(AND(OR(Calculations!$E$2="Shetland Health Board",Calculations!$E$2="Western Isles Health Board",Calculations!$E$2="Shetland Islands Local Authority",Calculations!$E$2="Eilean Siar Local Authority"),OR($F85=1,$F85=5)),0,new_ci(VALUE(LEFT(Options!$B$24,2)),$C85,$E85,$F85,2016,$I85+$J85,1,$H85,$G85*$H85,Options!$B$8))) -> 82.41336963 | M85: =IF(AND(OR(Calculations!$E$2="Orkney Health Board",Calculations!$E$2="Orkney Islands Local Authority"),$F85=1),0,IF(AND(OR(Calculations!$E$2="Shetland Health Board",Calculations!$E$2="Western Isles Health Board",Calculations!$E$2="Shetland Islands Local Authority",Calculations!$E$2="Eilean Siar Local Authority"),OR($F85=1,$F85=5)),0,new_yllv2(VALUE(LEFT(Options!$B$24,2)),$C85,$D85,$E85,$F85,2016,$I85,1,$H85,$G85*$H85,Options!$B$8))) -> 3845.887371 | N85: =IF(AND(OR(Calculations!$E$2="Orkney Health Board",Calculations!$E$2="Orkney Islands Local Authority"),$F85=1),0,IF(AND(OR(Calculations!$E$2="Shetland Health Board",Calculations!$E$2="Western Isles Health Board",Calculations!$E$2="Shetland Islands Local Authority",Calculations!$E$2="Eilean Siar Local Authority"),OR($F85=1,$F85=5)),0,new_yllv2(VALUE(LEFT(Options!$B$24,2)),$C85,$D85,$E85,$F85,2016,$I85+$J85,1,$H85,$G85*$H85,Options!$B$8))) -> 3715.194538 | O85: =IF(AND(OR(Calculations!$E$2="Orkney Health Board",Calculations!$E$2="Orkney Islands Local Authority"),$F85=1),0,IF(AND(OR(Calculations!$E$2="Shetland Health Board",Calculations!$E$2="Western Isles Health Board",Calculations!$E$2="Shetland Islands Local Authority",Calculations!$E$2="Eilean Siar Local Authority"),OR($F85=1,$F85=5)),0,hosp_count(VALUE(LEFT(Options!$B$24,2)),$C85,$E85,$F85,2016,$I85,1,$H85,$G85*$H85, Options!$B$8))) -> 6119.924679 | P85: =IF(AND(OR(Calculations!$E$2="Orkney Health Board",Calculations!$E$2="Orkney Islands Local Authority"),$F85=1),0,IF(AND(OR(Calculations!$E$2="Shetland Health Board",Calculations!$E$2="Western Isles Health Board",Calculations!$E$2="Shetland Islands Local Authority",Calculations!$E$2="Eilean Siar Local Authority"),OR($F85=1,$F85=5)),0,hosp_count(VALUE(LEFT(Options!$B$24,2)),$C85,$E85,$F85,2016,$I85+$J85,1,$H85,$G85*$H85, Options!$B$8))) -> 6106.685338 | Q85: =IF(AND(OR(Calculations!$E$2="Orkney Health Board",Calculations!$E$2="Orkney Islands Local Authority"),$F85=1),0,IF(AND(OR(Calculations!$E$2="Shetland Health Board",Calculations!$E$2="Western Isles Health Board",Calculations!$E$2="Shetland Islands Local Authority",Calculations!$E$2="Eilean Siar Local Authority"),OR($F85=1,$F85=5)),0,prem_mort(VALUE(LEFT(Options!$B$24,2)),$C85,$E85,$F85,2016,$I85,1,$H85,$G85*$H85,Options!$B$8))) -> 85.31250093 | R85: =IF(AND(OR(Calculations!$E$2="Orkney Health Board",Calculations!$E$2="Orkney Islands Local Authority"),$F85=1),0,IF(AND(OR(Calculations!$E$2="Shetland Health Board",Calculations!$E$2="Western Isles Health Board",Calculations!$E$2="Shetland Islands Local Authority",Calculations!$E$2="Eilean Siar Local Authority"),OR($F85=1,$F85=5)),0,prem_mort(VALUE(LEFT(Options!$B$24,2)),$C85,$E85,$F85,2016,$I85+$J85,1,$H85,$G85*$H85,Options!$B$8))) -> 82.41336963 | S85: 224.4711386 | T85: 216.8430501 | U85: 10119.15848 | V85: 9775.284266 | W85: 16102.52244 | X85: 16067.68757 | Y85: 224.4711386 | Z85: 216.8430501 | AA85: 1459062.401 | AB85: 1409479.826 | AC85: 65774530.11 | AD85: 63539347.73 | AE85: 104666395.9 | AF85: 104439969.2 | AG85: 1459062.401 | AH85: 1409479.826 | AI85: 6500
B86: Male 35-39 | C86: 36.92601 | D86: 78.33601 | E86: male | F86: 1 | G86: =HLOOKUP(Calculations!$E$2,'Prevalence Rates'!$C$3:$BC$249,'Prevalence Rates'!$BD86,FALSE) -> 0.3566666667 | H86: =HLOOKUP(Calculations!$E$2,'Population 2016'!$C$3:$BC$249,'Population 2016'!BD86,FALSE) -> 32984 | I86: 0 | J86: =HLOOKUP(Results!E$4,Targeting!$C$3:$F$249,Targeting!$G86,FALSE) -> 2239 | K86: =IF(AND(OR(Calculations!$E$2="Orkney Health Board",Calculations!$E$2="Orkney Islands Local Authority"),$F86=1),0,IF(AND(OR(Calculations!$E$2="Shetland Health Board",Calculations!$E$2="Western Isles Health Board",Calculations!$E$2="Shetland Islands Local Authority",Calculations!$E$2="Eilean Siar Local Authority"),OR($F86=1,$F86=5)),0,new_ci(VALUE(LEFT(Options!$B$24,2)),$C86,$E86,$F86,2016,$I86,1,$H86,$G86*$H86,Options!$B$8))) -> 107.4835732 | L86: =IF(AND(OR(Calculations!$E$2="Orkney Health Board",Calculations!$E$2="Orkney Islands Local Authority"),$F86=1),0,IF(AND(OR(Calculations!$E$2="Shetland Health Board",Calculations!$E$2="Western Isles Health Board",Calculations!$E$2="Shetland Islands Local Authority",Calculations!$E$2="Eilean Siar Local Authority"),OR($F86=1,$F86=5)),0,new_ci(VALUE(LEFT(Options!$B$24,2)),$C86,$E86,$F86,2016,$I86+$J86,1,$H86,$G86*$H86,Options!$B$8))) -> 104.091202 | M86: =IF(AND(OR(Calculations!$E$2="Orkney Health Board",Calculations!$E$2="Orkney Islands Local Authority"),$F86=1),0,IF(AND(OR(Calculations!$E$2="Shetland Health Board",Calculations!$E$2="Western Isles Health Board",Calculations!$E$2="Shetland Islands Local Authority",Calculations!$E$2="Eilean Siar Local Authority"),OR($F86=1,$F86=5)),0,new_yllv2(VALUE(LEFT(Options!$B$24,2)),$C86,$D86,$E86,$F86,2016,$I86,1,$H86,$G86*$H86,Options!$B$8))) -> 4343.411192 | N86: =IF(AND(OR(Calculations!$E$2="Orkney Health Board",Calculations!$E$2="Orkney Islands Local Authority"),$F86=1),0,IF(AND(OR(Calculations!$E$2="Shetland Health Board",Calculations!$E$2="Western Isles Health Board",Calculations!$E$2="Shetland Islands Local Authority",Calculations!$E$2="Eilean Siar Local Authority"),OR($F86=1,$F86=5)),0,new_yllv2(VALUE(LEFT(Options!$B$24,2)),$C86,$D86,$E86,$F86,2016,$I86+$J86,1,$H86,$G86*$H86,Options!$B$8))) -> 4206.325474 | O86: =IF(AND(OR(Calculations!$E$2="Orkney Health Board",Calculations!$E$2="Orkney Islands Local Authority"),$F86=1),0,IF(AND(OR(Calculations!$E$2="Shetland Health Board",Calculations!$E$2="Western Isles Health Board",Calculations!$E$2="Shetland Islands Local Authority",Calculations!$E$2="Eilean Siar Local Authority"),OR($F86=1,$F86=5)),0,hosp_count(VALUE(LEFT(Options!$B$24,2)),$C86,$E86,$F86,2016,$I86,1,$H86,$G86*$H86, Options!$B$8))) -> 6330.212896 | P86: =IF(AND(OR(Calculations!$E$2="Orkney Health Board",Calculations!$E$2="Orkney Islands Local Authority"),$F86=1),0,IF(AND(OR(Calculations!$E$2="Shetland Health Board",Calculations!$E$2="Western Isles Health Board",Calculations!$E$2="Shetland Islands Local Authority",Calculations!$E$2="Eilean Siar Local Authority"),OR($F86=1,$F86=5)),0,hosp_count(VALUE(LEFT(Options!$B$24,2)),$C86,$E86,$F86,2016,$I86+$J86,1,$H86,$G86*$H86, Options!$B$8))) -> 6316.550717 | Q86: =IF(AND(OR(Calculations!$E$2="Orkney Health Board",Calculations!$E$2="Orkney Islands Local Authority"),$F86=1),0,IF(AND(OR(Calculations!$E$2="Shetland Health Board",Calculations!$E$2="Western Isles Health Board",Calculations!$E$2="Shetland Islands Local Authority",Calculations!$E$2="Eilean Siar Local Authority"),OR($F86=1,$F86=5)),0,prem_mort(VALUE(LEFT(Options!$B$24,2)),$C86,$E86,$F86,2016,$I86,1,$H86,$G86*$H86,Options!$B$8))) -> 107.4835732 | R86: =IF(AND(OR(Calculations!$E$2="Orkney Health Board",Calculations!$E$2="Orkney Islands Local Authority"),$F86=1),0,IF(AND(OR(Calculations!$E$2="Shetland Health Board",Calculations!$E$2="Western Isles Health Board",Calculations!$E$2="Shetland Islands Local Authority",Calculations!$E$2="Eilean Siar Local Authority"),OR($F86=1,$F86=5)),0,prem_mort(VALUE(LEFT(Options!$B$24,2)),$C86,$E86,$F86,2016,$I86+$J86,1,$H86,$G86*$H86,Options!$B$8))) -> 104.091202 | S86: 325.865793 | T86: 315.5808938 | U86: 13168.2367 | V86: 12752.62392 | W86: 19191.76842 | X86: 19150.3478 | Y86: 325.865793 | Z86: 315.5808938 | AA86: 2281060.551 | AB86: 2209066.257 | AC86: 92177656.87 | AD86: 89268367.44 | AE86: 134342378.9 | AF86: 134052434.6 | AG86: 2281060.551 | AH86: 2209066.257 | AI86: 7000
B87: Male 40-44 | C87: 42.067703 | D87: 78.9077 | E87: male | F87: 1 | G87: =HLOOKUP(Calculations!$E$2,'Prevalence Rates'!$C$3:$BC$249,'Prevalence Rates'!$BD87,FALSE) -> 0.3566666667 | H87: =HLOOKUP(Calculations!$E$2,'Population 2016'!$C$3:$BC$249,'Population 2016'!BD87,FALSE) -> 31623 | I87: 0 | J87: =HLOOKUP(Results!E$4,Targeting!$C$3:$F$249,Targeting!$G87,FALSE) -> 2147 | K87: =IF(AND(OR(Calculations!$E$2="Orkney Health Board",Calculations!$E$2="Orkney Islands Local Authority"),$F87=1),0,IF(AND(OR(Calculations!$E$2="Shetland Health Board",Calculations!$E$2="Western Isles Health Board",Calculations!$E$2="Shetland Islands Local Authority",Calculations!$E$2="Eilean Siar Local Authority"),OR($F87=1,$F87=5)),0,new_ci(VALUE(LEFT(Options!$B$24,2)),$C87,$E87,$F87,2016,$I87,1,$H87,$G87*$H87,Options!$B$8))) -> 151.7973905 | L87: =IF(AND(OR(Calculations!$E$2="Orkney Health Board",Calculations!$E$2="Orkney Islands Local Authority"),$F87=1),0,IF(AND(OR(Calculations!$E$2="Shetland Health Board",Calculations!$E$2="Western Isles Health Board",Calculations!$E$2="Shetland Islands Local Authority",Calculations!$E$2="Eilean Siar Local Authority"),OR($F87=1,$F87=5)),0,new_ci(VALUE(LEFT(Options!$B$24,2)),$C87,$E87,$F87,2016,$I87+$J87,1,$H87,$G87*$H87,Options!$B$8))) -> 147.0101127 | M87: =IF(AND(OR(Calculations!$E$2="Orkney Health Board",Calculations!$E$2="Orkney Islands Local Authority"),$F87=1),0,IF(AND(OR(Calculations!$E$2="Shetland Health Board",Calculations!$E$2="Western Isles Health Board",Calculations!$E$2="Shetland Islands Local Authority",Calculations!$E$2="Eilean Siar Local Authority"),OR($F87=1,$F87=5)),0,new_yllv2(VALUE(LEFT(Options!$B$24,2)),$C87,$D87,$E87,$F87,2016,$I87,1,$H87,$G87*$H87,Options!$B$8))) -> 5440.418019 | N87: =IF(AND(OR(Calculations!$E$2="Orkney Health Board",Calculations!$E$2="Orkney Islands Local Authority"),$F87=1),0,IF(AND(OR(Calculations!$E$2="Shetland Health Board",Calculations!$E$2="Western Isles Health Board",Calculations!$E$2="Shetland Islands Local Authority",Calculations!$E$2="Eilean Siar Local Authority"),OR($F87=1,$F87=5)),0,new_yllv2(VALUE(LEFT(Options!$B$24,2)),$C87,$D87,$E87,$F87,2016,$I87+$J87,1,$H87,$G87*$H87,Options!$B$8))) -> 5268.841999 | O87: =IF(AND(OR(Calculations!$E$2="Orkney Health Board",Calculations!$E$2="Orkney Islands Local Authority"),$F87=1),0,IF(AND(OR(Calculations!$E$2="Shetland Health Board",Calculations!$E$2="Western Isles Health Board",Calculations!$E$2="Shetland Islands Local Authority",Calculations!$E$2="Eilean Siar Local Authority"),OR($F87=1,$F87=5)),0,hosp_count(VALUE(LEFT(Options!$B$24,2)),$C87,$E87,$F87,2016,$I87,1,$H87,$G87*$H87, Options!$B$8))) -> 7284.154202 | P87: =IF(AND(OR(Calculations!$E$2="Orkney Health Board",Calculations!$E$2="Orkney Islands Local Authority"),$F87=1),0,IF(AND(OR(Calculations!$E$2="Shetland Health Board",Calculations!$E$2="Western Isles Health Board",Calculations!$E$2="Shetland Islands Local Authority",Calculations!$E$2="Eilean Siar Local Authority"),OR($F87=1,$F87=5)),0,hosp_count(VALUE(LEFT(Options!$B$24,2)),$C87,$E87,$F87,2016,$I87+$J87,1,$H87,$G87*$H87, Options!$B$8))) -> 7268.430349 | Q87: =IF(AND(OR(Calculations!$E$2="Orkney Health Board",Calculations!$E$2="Orkney Islands Local Authority"),$F87=1),0,IF(AND(OR(Calculations!$E$2="Shetland Health Board",Calculations!$E$2="Western Isles Health Board",Calculations!$E$2="Shetland Islands Local Authority",Calculations!$E$2="Eilean Siar Local Authority"),OR($F87=1,$F87=5)),0,prem_mort(VALUE(LEFT(Options!$B$24,2)),$C87,$E87,$F87,2016,$I87,1,$H87,$G87*$H87,Options!$B$8))) -> 151.7973905 | R87: =IF(AND(OR(Calculations!$E$2="Orkney Health Board",Calculations!$E$2="Orkney Islands Local Authority"),$F87=1),0,IF(AND(OR(Calculations!$E$2="Shetland Health Board",Calculations!$E$2="Western Isles Health Board",Calculations!$E$2="Shetland Islands Local Authority",Calculations!$E$2="Eilean Siar Local Authority"),OR($F87=1,$F87=5)),0,prem_mort(VALUE(LEFT(Options!$B$24,2)),$C87,$E87,$F87,2016,$I87+$J87,1,$H87,$G87*$H87,Options!$B$8))) -> 147.0101127 | S87: 480.0221057 | T87: 464.8835111 | U87: 17203.99083 | V87: 16661.42364 | W87: 23034.35538 | X87: 22984.63254 | Y87: 480.0221057 | Z87: 464.8835111 | AA87: 3360154.74 | AB87: 3254184.578 | AC87: 120427935.8 | AD87: 116629965.5 | AE87: 161240487.7 | AF87: 160892427.8 | AG87: 3360154.74 | AH87: 3254184.578 | AI87: 7000
B88: Male 45-49 | C88: 47.038155 | D88: 79.41815 | E88: male | F88: 1 | G88: =HLOOKUP(Calculations!$E$2,'Prevalence Rates'!$C$3:$BC$249,'Prevalence Rates'!$BD88,FALSE) -> 0.3456998314 | H88: =HLOOKUP(Calculations!$E$2,'Population 2016'!$C$3:$BC$249,'Population 2016'!BD88,FALSE) -> 35878 | I88: 0 | J88: =HLOOKUP(Results!E$4,Targeting!$C$3:$F$249,Targeting!$G88,FALSE) -> 2436 | K88: =IF(AND(OR(Calculations!$E$2="Orkney Health Board",Calculations!$E$2="Orkney Islands Local Authority"),$F88=1),0,IF(AND(OR(Calculations!$E$2="Shetland Health Board",Calculations!$E$2="Western Isles Health Board",Calculations!$E$2="Shetland Islands Local Authority",Calculations!$E$2="Eilean Siar Local Authority"),OR($F88=1,$F88=5)),0,new_ci(VALUE(LEFT(Options!$B$24,2)),$C88,$E88,$F88,2016,$I88,1,$H88,$G88*$H88,Options!$B$8))) -> 250.3491493 | L88: =IF(AND(OR(Calculations!$E$2="Orkney Health Board",Calculations!$E$2="Orkney Islands Local Authority"),$F88=1),0,IF(AND(OR(Calculations!$E$2="Shetland Health Board",Calculations!$E$2="Western Isles Health Board",Calculations!$E$2="Shetland Islands Local Authority",Calculations!$E$2="Eilean Siar Local Authority"),OR($F88=1,$F88=5)),0,new_ci(VALUE(LEFT(Options!$B$24,2)),$C88,$E88,$F88,2016,$I88+$J88,1,$H88,$G88*$H88,Options!$B$8))) -> 242.4114428 | M88: =IF(AND(OR(Calculations!$E$2="Orkney Health Board",Calculations!$E$2="Orkney Islands Local Authority"),$F88=1),0,IF(AND(OR(Calculations!$E$2="Shetland Health Board",Calculations!$E$2="Western Isles Health Board",Calculations!$E$2="Shetland Islands Local Authority",Calculations!$E$2="Eilean Siar Local Authority"),OR($F88=1,$F88=5)),0,new_yllv2(VALUE(LEFT(Options!$B$24,2)),$C88,$D88,$E88,$F88,2016,$I88,1,$H88,$G88*$H88,Options!$B$8))) -> 7855.955054 | N88: =IF(AND(OR(Calculations!$E$2="Orkney Health Board",Calculations!$E$2="Orkney Islands Local Authority"),$F88=1),0,IF(AND(OR(Calculations!$E$2="Shetland Health Board",Calculations!$E$2="Western Isles Health Board",Calculations!$E$2="Shetland Islands Local Authority",Calculations!$E$2="Eilean Siar Local Authority"),OR($F88=1,$F88=5)),0,new_yllv2(VALUE(LEFT(Options!$B$24,2)),$C88,$D88,$E88,$F88,2016,$I88+$J88,1,$H88,$G88*$H88,Options!$B$8))) -> 7606.869864 | O88: =IF(AND(OR(Calculations!$E$2="Orkney Health Board",Calculations!$E$2="Orkney Islands Local Authority"),$F88=1),0,IF(AND(OR(Calculations!$E$2="Shetland Health Board",Calculations!$E$2="Western Isles Health Board",Calculations!$E$2="Shetland Islands Local Authority",Calculations!$E$2="Eilean Siar Local Authority"),OR($F88=1,$F88=5)),0,hosp_count(VALUE(LEFT(Options!$B$24,2)),$C88,$E88,$F88,2016,$I88,1,$H88,$G88*$H88, Options!$B$8))) -> 9858.835372 | P88: =IF(AND(OR(Calculations!$E$2="Orkney Health Board",Calculations!$E$2="Orkney Islands Local Authority"),$F88=1),0,IF(AND(OR(Calculations!$E$2="Shetland Health Board",Calculations!$E$2="Western Isles Health Board",Calculations!$E$2="Shetland Islands Local Authority",Calculations!$E$2="Eilean Siar Local Authority"),OR($F88=1,$F88=5)),0,hosp_count(VALUE(LEFT(Options!$B$24,2)),$C88,$E88,$F88,2016,$I88+$J88,1,$H88,$G88*$H88, Options!$B$8))) -> 9837.548093 | Q88: =IF(AND(OR(Calculations!$E$2="Orkney Health Board",Calculations!$E$2="Orkney Islands Local Authority"),$F88=1),0,IF(AND(OR(Calculations!$E$2="Shetland Health Board",Calculations!$E$2="Western Isles Health Board",Calculations!$E$2="Shetland Islands Local Authority",Calculations!$E$2="Eilean Siar Local Authority"),OR($F88=1,$F88=5)),0,prem_mort(VALUE(LEFT(Options!$B$24,2)),$C88,$E88,$F88,2016,$I88,1,$H88,$G88*$H88,Options!$B$8))) -> 250.3491493 | R88: =IF(AND(OR(Calculations!$E$2="Orkney Health Board",Calculations!$E$2="Orkney Islands Local Authority"),$F88=1),0,IF(AND(OR(Calculations!$E$2="Shetland Health Board",Calculations!$E$2="Western Isles Health Board",Calculations!$E$2="Shetland Islands Local Authority",Calculations!$E$2="Eilean Siar Local Authority"),OR($F88=1,$F88=5)),0,prem_mort(VALUE(LEFT(Options!$B$24,2)),$C88,$E88,$F88,2016,$I88+$J88,1,$H88,$G88*$H88,Options!$B$8))) -> 242.4114428 | S88: 697.7789992 | T88: 675.6548382 | U88: 21896.30151 | V88: 21202.04544 | W88: 27478.77633 | X88: 27419.44393 | Y88: 697.7789992 | Z88: 675.6548382 | AA88: 4884452.994 | AB88: 4729583.867 | AC88: 153274110.5 | AD88: 148414318.1 | AE88: 192351434.3 | AF88: 191936107.5 | AG88: 4884452.994 | AH88: 4729583.867 | AI88: 7000
B89: Male 50-54 | C89: 51.998646 | D89: 79.98865 | E89: male | F89: 1 | G89: =HLOOKUP(Calculations!$E$2,'Prevalence Rates'!$C$3:$BC$249,'Prevalence Rates'!$BD89,FALSE) -> 0.3456998314 | H89: =HLOOKUP(Calculations!$E$2,'Population 2016'!$C$3:$BC$249,'Population 2016'!BD89,FALSE) -> 36922 | I89: 0 | J89: =HLOOKUP(Results!E$4,Targeting!$C$3:$F$249,Targeting!$G89,FALSE) -> 2506 | K89: =IF(AND(OR(Calculations!$E$2="Orkney Health Board",Calculations!$E$2="Orkney Islands Local Authority"),$F89=1),0,IF(AND(OR(Calculations!$E$2="Shetland Health Board",Calculations!$E$2="Western Isles Health Board",Calculations!$E$2="Shetland Islands Local Authority",Calculations!$E$2="Eilean Siar Local Authority"),OR($F89=1,$F89=5)),0,new_ci(VALUE(LEFT(Options!$B$24,2)),$C89,$E89,$F89,2016,$I89,1,$H89,$G89*$H89,Options!$B$8))) -> 374.0248796 | L89: =IF(AND(OR(Calculations!$E$2="Orkney Health Board",Calculations!$E$2="Orkney Islands Local Authority"),$F89=1),0,IF(AND(OR(Calculations!$E$2="Shetland Health Board",Calculations!$E$2="Western Isles Health Board",Calculations!$E$2="Shetland Islands Local Authority",Calculations!$E$2="Eilean Siar Local Authority"),OR($F89=1,$F89=5)),0,new_ci(VALUE(LEFT(Options!$B$24,2)),$C89,$E89,$F89,2016,$I89+$J89,1,$H89,$G89*$H89,Options!$B$8))) -> 362.193605 | M89: =IF(AND(OR(Calculations!$E$2="Orkney Health Board",Calculations!$E$2="Orkney Islands Local Authority"),$F89=1),0,IF(AND(OR(Calculations!$E$2="Shetland Health Board",Calculations!$E$2="Western Isles Health Board",Calculations!$E$2="Shetland Islands Local Authority",Calculations!$E$2="Eilean Siar Local Authority"),OR($F89=1,$F89=5)),0,new_yllv2(VALUE(LEFT(Options!$B$24,2)),$C89,$D89,$E89,$F89,2016,$I89,1,$H89,$G89*$H89,Options!$B$8))) -> 10094.933 | N89: =IF(AND(OR(Calculations!$E$2="Orkney Health Board",Calculations!$E$2="Orkney Islands Local Authority"),$F89=1),0,IF(AND(OR(Calculations!$E$2="Shetland Health Board",Calculations!$E$2="Western Isles Health Board",Calculations!$E$2="Shetland Islands Local Authority",Calculations!$E$2="Eilean Siar Local Authority"),OR($F89=1,$F89=5)),0,new_yllv2(VALUE(LEFT(Options!$B$24,2)),$C89,$D89,$E89,$F89,2016,$I89+$J89,1,$H89,$G89*$H89,Options!$B$8))) -> 9775.606848 | O89: =IF(AND(OR(Calculations!$E$2="Orkney Health Board",Calculations!$E$2="Orkney Islands Local Authority"),$F89=1),0,IF(AND(OR(Calculations!$E$2="Shetland Health Board",Calculations!$E$2="Western Isles Health Board",Calculations!$E$2="Shetland Islands Local Authority",Calculations!$E$2="Eilean Siar Local Authority"),OR($F89=1,$F89=5)),0,hosp_count(VALUE(LEFT(Options!$B$24,2)),$C89,$E89,$F89,2016,$I89,1,$H89,$G89*$H89, Options!$B$8))) -> 12099.02518 | P89: =IF(AND(OR(Calculations!$E$2="Orkney Health Board",Calculations!$E$2="Orkney Islands Local Authority"),$F89=1),0,IF(AND(OR(Calculations!$E$2="Shetland Health Board",Calculations!$E$2="Western Isles Health Board",Calculations!$E$2="Shetland Islands Local Authority",Calculations!$E$2="Eilean Siar Local Authority"),OR($F89=1,$F89=5)),0,hosp_count(VALUE(LEFT(Options!$B$24,2)),$C89,$E89,$F89,2016,$I89+$J89,1,$H89,$G89*$H89, Options!$B$8))) -> 12072.91008 | Q89: =IF(AND(OR(Calculations!$E$2="Orkney Health Board",Calculations!$E$2="Orkney Islands Local Authority"),$F89=1),0,IF(AND(OR(Calculations!$E$2="Shetland Health Board",Calculations!$E$2="Western Isles Health Board",Calculations!$E$2="Shetland Islands Local Authority",Calculations!$E$2="Eilean Siar Local Authority"),OR($F89=1,$F89=5)),0,prem_mort(VALUE(LEFT(Options!$B$24,2)),$C89,$E89,$F89,2016,$I89,1,$H89,$G89*$H89,Options!$B$8))) -> 374.0248796 | R89: =IF(AND(OR(Calculations!$E$2="Orkney Health Board",Calculations!$E$2="Orkney Islands Local Authority"),$F89=1),0,IF(AND(OR(Calculations!$E$2="Shetland Health Board",Calculations!$E$2="Western Isles Health Board",Calculations!$E$2="Shetland Islands Local Authority",Calculations!$E$2="Eilean Siar Local Authority"),OR($F89=1,$F89=5)),0,prem_mort(VALUE(LEFT(Options!$B$24,2)),$C89,$E89,$F89,2016,$I89+$J89,1,$H89,$G89*$H89,Options!$B$8))) -> 362.193605 | S89: 1013.013595 | T89: 980.9696252 | U89: 27341.24098 | V89: 26476.37411 | W89: 32769.14897 | X89: 32698.41851 | Y89: 1013.013595 | Z89: 980.9696252 | AA89: 7091095.166 | AB89: 6866787.376 | AC89: 191388686.9 | AD89: 185334618.8 | AE89: 229384042.8 | AF89: 228888929.6 | AG89: 7091095.166 | AH89: 6866787.376 | AI89: 7000
B90: Male 55-59 | C90: 56.950867 | D90: 80.66087 | E90: male | F90: 1 | G90: =HLOOKUP(Calculations!$E$2,'Prevalence Rates'!$C$3:$BC$249,'Prevalence Rates'!$BD90,FALSE) -> 0.4700704225 | H90: =HLOOKUP(Calculations!$E$2,'Population 2016'!$C$3:$BC$249,'Population 2016'!BD90,FALSE) -> 33251 | I90: 0 | J90: =HLOOKUP(Results!E$4,Targeting!$C$3:$F$249,Targeting!$G90,FALSE) -> 2257 | K90: =IF(AND(OR(Calculations!$E$2="Orkney Health Board",Calculations!$E$2="Orkney Islands Local Authority"),$F90=1),0,IF(AND(OR(Calculations!$E$2="Shetland Health Board",Calculations!$E$2="Western Isles Health Board",Calculations!$E$2="Shetland Islands Local Authority",Calculations!$E$2="Eilean Siar Local Authority"),OR($F90=1,$F90=5)),0,new_ci(VALUE(LEFT(Options!$B$24,2)),$C90,$E90,$F90,2016,$I90,1,$H90,$G90*$H90,Options!$B$8))) -> 488.340455 | L90: =IF(AND(OR(Calculations!$E$2="Orkney Health Board",Calculations!$E$2="Orkney Islands Local Authority"),$F90=1),0,IF(AND(OR(Calculations!$E$2="Shetland Health Board",Calculations!$E$2="Western Isles Health Board",Calculations!$E$2="Shetland Islands Local Authority",Calculations!$E$2="Eilean Siar Local Authority"),OR($F90=1,$F90=5)),0,new_ci(VALUE(LEFT(Options!$B$24,2)),$C90,$E90,$F90,2016,$I90+$J90,1,$H90,$G90*$H90,Options!$B$8))) -> 474.0129005 | M90: =IF(AND(OR(Calculations!$E$2="Orkney Health Board",Calculations!$E$2="Orkney Islands Local Authority"),$F90=1),0,IF(AND(OR(Calculations!$E$2="Shetland Health Board",Calculations!$E$2="Western Isles Health Board",Calculations!$E$2="Shetland Islands Local Authority",Calculations!$E$2="Eilean Siar Local Authority"),OR($F90=1,$F90=5)),0,new_yllv2(VALUE(LEFT(Options!$B$24,2)),$C90,$D90,$E90,$F90,2016,$I90,1,$H90,$G90*$H90,Options!$B$8))) -> 11090.2132 | N90: =IF(AND(OR(Calculations!$E$2="Orkney Health Board",Calculations!$E$2="Orkney Islands Local Authority"),$F90=1),0,IF(AND(OR(Calculations!$E$2="Shetland Health Board",Calculations!$E$2="Western Isles Health Board",Calculations!$E$2="Shetland Islands Local Authority",Calculations!$E$2="Eilean Siar Local Authority"),OR($F90=1,$F90=5)),0,new_yllv2(VALUE(LEFT(Options!$B$24,2)),$C90,$D90,$E90,$F90,2016,$I90+$J90,1,$H90,$G90*$H90,Options!$B$8))) -> 10764.83439 | O90: =IF(AND(OR(Calculations!$E$2="Orkney Health Board",Calculations!$E$2="Orkney Islands Local Authority"),$F90=1),0,IF(AND(OR(Calculations!$E$2="Shetland Health Board",Calculations!$E$2="Western Isles Health Board",Calculations!$E$2="Shetland Islands Local Authority",Calculations!$E$2="Eilean Siar Local Authority"),OR($F90=1,$F90=5)),0,hosp_count(VALUE(LEFT(Options!$B$24,2)),$C90,$E90,$F90,2016,$I90,1,$H90,$G90*$H90, Options!$B$8))) -> 12990.03024 | P90: =IF(AND(OR(Calculations!$E$2="Orkney Health Board",Calculations!$E$2="Orkney Islands Local Authority"),$F90=1),0,IF(AND(OR(Calculations!$E$2="Shetland Health Board",Calculations!$E$2="Western Isles Health Board",Calculations!$E$2="Shetland Islands Local Authority",Calculations!$E$2="Eilean Siar Local Authority"),OR($F90=1,$F90=5)),0,hosp_count(VALUE(LEFT(Options!$B$24,2)),$C90,$E90,$F90,2016,$I90+$J90,1,$H90,$G90*$H90, Options!$B$8))) -> 12962.05905 | Q90: =IF(AND(OR(Calculations!$E$2="Orkney Health Board",Calculations!$E$2="Orkney Islands Local Authority"),$F90=1),0,IF(AND(OR(Calculations!$E$2="Shetland Health Board",Calculations!$E$2="Western Isles Health Board",Calculations!$E$2="Shetland Islands Local Authority",Calculations!$E$2="Eilean Siar Local Authority"),OR($F90=1,$F90=5)),0,prem_mort(VALUE(LEFT(Options!$B$24,2)),$C90,$E90,$F90,2016,$I90,1,$H90,$G90*$H90,Options!$B$8))) -> 488.340455 | R90: =IF(AND(OR(Calculations!$E$2="Orkney Health Board",Calculations!$E$2="Orkney Islands Local Authority"),$F90=1),0,IF(AND(OR(Calculations!$E$2="Shetland Health Board",Calculations!$E$2="Western Isles Health Board",Calculations!$E$2="Shetland Islands Local Authority",Calculations!$E$2="Eilean Siar Local Authority"),OR($F90=1,$F90=5)),0,prem_mort(VALUE(LEFT(Options!$B$24,2)),$C90,$E90,$F90,2016,$I90+$J90,1,$H90,$G90*$H90,Options!$B$8))) -> 474.0129005 | S90: 1468.648928 | T90: 1425.559834 | U90: 33353.02155 | V90: 32374.46811 | W90: 39066.58519 | X90: 38982.46384 | Y90: 1468.648928 | Z90: 1425.559834 | AA90: 9546218.03 | AB90: 9266138.922 | AC90: 216794640.1 | AD90: 210434042.7 | AE90: 253932803.7 | AF90: 253386015 | AG90: 9546218.03 | AH90: 9266138.922 | AI90: 6500
B91: Male 60-64 | C91: 61.942989 | D91: 81.61299 | E91: male | F91: 1 | G91: =HLOOKUP(Calculations!$E$2,'Prevalence Rates'!$C$3:$BC$249,'Prevalence Rates'!$BD91,FALSE) -> 0.4700704225 | H91: =HLOOKUP(Calculations!$E$2,'Population 2016'!$C$3:$BC$249,'Population 2016'!BD91,FALSE) -> 27358 | I91: 0 | J91: =HLOOKUP(Results!E$4,Targeting!$C$3:$F$249,Targeting!$G91,FALSE) -> 1857 | K91: =IF(AND(OR(Calculations!$E$2="Orkney Health Board",Calculations!$E$2="Orkney Islands Local Authority"),$F91=1),0,IF(AND(OR(Calculations!$E$2="Shetland Health Board",Calculations!$E$2="Western Isles Health Board",Calculations!$E$2="Shetland Islands Local Authority",Calculations!$E$2="Eilean Siar Local Authority"),OR($F91=1,$F91=5)),0,new_ci(VALUE(LEFT(Options!$B$24,2)),$C91,$E91,$F91,2016,$I91,1,$H91,$G91*$H91,Options!$B$8))) -> 583.5806404 | L91: =IF(AND(OR(Calculations!$E$2="Orkney Health Board",Calculations!$E$2="Orkney Islands Local Authority"),$F91=1),0,IF(AND(OR(Calculations!$E$2="Shetland Health Board",Calculations!$E$2="Western Isles Health Board",Calculations!$E$2="Shetland Islands Local Authority",Calculations!$E$2="Eilean Siar Local Authority"),OR($F91=1,$F91=5)),0,new_ci(VALUE(LEFT(Options!$B$24,2)),$C91,$E91,$F91,2016,$I91+$J91,1,$H91,$G91*$H91,Options!$B$8))) -> 566.5220102 | M91: =IF(AND(OR(Calculations!$E$2="Orkney Health Board",Calculations!$E$2="Orkney Islands Local Authority"),$F91=1),0,IF(AND(OR(Calculations!$E$2="Shetland Health Board",Calculations!$E$2="Western Isles Health Board",Calculations!$E$2="Shetland Islands Local Authority",Calculations!$E$2="Eilean Siar Local Authority"),OR($F91=1,$F91=5)),0,new_yllv2(VALUE(LEFT(Options!$B$24,2)),$C91,$D91,$E91,$F91,2016,$I91,1,$H91,$G91*$H91,Options!$B$8))) -> 10895.45114 | N91: =IF(AND(OR(Calculations!$E$2="Orkney Health Board",Calculations!$E$2="Orkney Islands Local Authority"),$F91=1),0,IF(AND(OR(Calculations!$E$2="Shetland Health Board",Calculations!$E$2="Western Isles Health Board",Calculations!$E$2="Shetland Islands Local Authority",Calculations!$E$2="Eilean Siar Local Authority"),OR($F91=1,$F91=5)),0,new_yllv2(VALUE(LEFT(Options!$B$24,2)),$C91,$D91,$E91,$F91,2016,$I91+$J91,1,$H91,$G91*$H91,Options!$B$8))) -> 10576.9665 | O91: =IF(AND(OR(Calculations!$E$2="Orkney Health Board",Calculations!$E$2="Orkney Islands Local Authority"),$F91=1),0,IF(AND(OR(Calculations!$E$2="Shetland Health Board",Calculations!$E$2="Western Isles Health Board",Calculations!$E$2="Shetland Islands Local Authority",Calculations!$E$2="Eilean Siar Local Authority"),OR($F91=1,$F91=5)),0,hosp_count(VALUE(LEFT(Options!$B$24,2)),$C91,$E91,$F91,2016,$I91,1,$H91,$G91*$H91, Options!$B$8))) -> 12759.83838 | P91: =IF(AND(OR(Calculations!$E$2="Orkney Health Board",Calculations!$E$2="Orkney Islands Local Authority"),$F91=1),0,IF(AND(OR(Calculations!$E$2="Shetland Health Board",Calculations!$E$2="Western Isles Health Board",Calculations!$E$2="Shetland Islands Local Authority",Calculations!$E$2="Eilean Siar Local Authority"),OR($F91=1,$F91=5)),0,hosp_count(VALUE(LEFT(Options!$B$24,2)),$C91,$E91,$F91,2016,$I91+$J91,1,$H91,$G91*$H91, Options!$B$8))) -> 12732.36281 | Q91: =IF(AND(OR(Calculations!$E$2="Orkney Health Board",Calculations!$E$2="Orkney Islands Local Authority"),$F91=1),0,IF(AND(OR(Calculations!$E$2="Shetland Health Board",Calculations!$E$2="Western Isles Health Board",Calculations!$E$2="Shetland Islands Local Authority",Calculations!$E$2="Eilean Siar Local Authority"),OR($F91=1,$F91=5)),0,prem_mort(VALUE(LEFT(Options!$B$24,2)),$C91,$E91,$F91,2016,$I91,1,$H91,$G91*$H91,Options!$B$8))) -> 583.5806404 | R91: =IF(AND(OR(Calculations!$E$2="Orkney Health Board",Calculations!$E$2="Orkney Islands Local Authority"),$F91=1),0,IF(AND(OR(Calculations!$E$2="Shetland Health Board",Calculations!$E$2="Western Isles Health Board",Calculations!$E$2="Shetland Islands Local Authority",Calculations!$E$2="Eilean Siar Local Authority"),OR($F91=1,$F91=5)),0,prem_mort(VALUE(LEFT(Options!$B$24,2)),$C91,$E91,$F91,2016,$I91+$J91,1,$H91,$G91*$H91,Options!$B$8))) -> 566.5220102 | S91: 2133.126107 | T91: 2070.772755 | U91: 39825.46656 | V91: 38661.3294 | W91: 46640.24555 | X91: 46539.81581 | Y91: 2133.126107 | Z91: 2070.772755 | AA91: 12798756.64 | AB91: 12424636.53 | AC91: 238952799.3 | AD91: 231967976.4 | AE91: 279841473.3 | AF91: 279238894.9 | AG91: 12798756.64 | AH91: 12424636.53 | AI91: 6000
B92: Male 65-69 | C92: 67.05442 | D92: 82.95442 | E92: male | F92: 1 | G92: =HLOOKUP(Calculations!$E$2,'Prevalence Rates'!$C$3:$BC$249,'Prevalence Rates'!$BD92,FALSE) -> 0 | H92: =HLOOKUP(Calculations!$E$2,'Population 2016'!$C$3:$BC$249,'Population 2016'!BD92,FALSE) -> 25567 | I92: 0 | J92: =HLOOKUP(Results!E$4,Targeting!$C$3:$F$249,Targeting!$G92,FALSE) -> 0 | K92: =IF(AND(OR(Calculations!$E$2="Orkney Health Board",Calculations!$E$2="Orkney Islands Local Authority"),$F92=1),0,IF(AND(OR(Calculations!$E$2="Shetland Health Board",Calculations!$E$2="Western Isles Health Board",Calculations!$E$2="Shetland Islands Local Authority",Calculations!$E$2="Eilean Siar Local Authority"),OR($F92=1,$F92=5)),0,new_ci(VALUE(LEFT(Options!$B$24,2)),$C92,$E92,$F92,2016,$I92,1,$H92,$G92*$H92,Options!$B$8))) -> 798.8591826 | L92: =IF(AND(OR(Calculations!$E$2="Orkney Health Board",Calculations!$E$2="Orkney Islands Local Authority"),$F92=1),0,IF(AND(OR(Calculations!$E$2="Shetland Health Board",Calculations!$E$2="Western Isles Health Board",Calculations!$E$2="Shetland Islands Local Authority",Calculations!$E$2="Eilean Siar Local Authority"),OR($F92=1,$F92=5)),0,new_ci(VALUE(LEFT(Options!$B$24,2)),$C92,$E92,$F92,2016,$I92+$J92,1,$H92,$G92*$H92,Options!$B$8))) -> 798.8591826 | M92: =IF(AND(OR(Calculations!$E$2="Orkney Health Board",Calculations!$E$2="Orkney Islands Local Authority"),$F92=1),0,IF(AND(OR(Calculations!$E$2="Shetland Health Board",Calculations!$E$2="Western Isles Health Board",Calculations!$E$2="Shetland Islands Local Authority",Calculations!$E$2="Eilean Siar Local Authority"),OR($F92=1,$F92=5)),0,new_yllv2(VALUE(LEFT(Options!$B$24,2)),$C92,$D92,$E92,$F92,2016,$I92,1,$H92,$G92*$H92,Options!$B$8))) -> 11903.00182 | N92: =IF(AND(OR(Calculations!$E$2="Orkney Health Board",Calculations!$E$2="Orkney Islands Local Authority"),$F92=1),0,IF(AND(OR(Calculations!$E$2="Shetland Health Board",Calculations!$E$2="Western Isles Health Board",Calculations!$E$2="Shetland Islands Local Authority",Calculations!$E$2="Eilean Siar Local Authority"),OR($F92=1,$F92=5)),0,new_yllv2(VALUE(LEFT(Options!$B$24,2)),$C92,$D92,$E92,$F92,2016,$I92+$J92,1,$H92,$G92*$H92,Options!$B$8))) -> 11903.00182 | O92: =IF(AND(OR(Calculations!$E$2="Orkney Health Board",Calculations!$E$2="Orkney Islands Local Authority"),$F92=1),0,IF(AND(OR(Calculations!$E$2="Shetland Health Board",Calculations!$E$2="Western Isles Health Board",Calculations!$E$2="Shetland Islands Local Authority",Calculations!$E$2="Eilean Siar Local Authority"),OR($F92=1,$F92=5)),0,hosp_count(VALUE(LEFT(Options!$B$24,2)),$C92,$E92,$F92,2016,$I92,1,$H92,$G92*$H92, Options!$B$8))) -> 14296.67907 | P92: =IF(AND(OR(Calculations!$E$2="Orkney Health Board",Calculations!$E$2="Orkney Islands Local Authority"),$F92=1),0,IF(AND(OR(Calculations!$E$2="Shetland Health Board",Calculations!$E$2="Western Isles Health Board",Calculations!$E$2="Shetland Islands Local Authority",Calculations!$E$2="Eilean Siar Local Authority"),OR($F92=1,$F92=5)),0,hosp_count(VALUE(LEFT(Options!$B$24,2)),$C92,$E92,$F92,2016,$I92+$J92,1,$H92,$G92*$H92, Options!$B$8))) -> 14296.67907 | Q92: =IF(AND(OR(Calculations!$E$2="Orkney Health Board",Calculations!$E$2="Orkney Islands Local Authority"),$F92=1),0,IF(AND(OR(Calculations!$E$2="Shetland Health Board",Calculations!$E$2="Western Isles Health Board",Calculations!$E$2="Shetland Islands Local Authority",Calculations!$E$2="Eilean Siar Local Authority"),OR($F92=1,$F92=5)),0,prem_mort(VALUE(LEFT(Options!$B$24,2)),$C92,$E92,$F92,2016,$I92,1,$H92,$G92*$H92,Options!$B$8))) -> 798.8591826 | R92: =IF(AND(OR(Calculations!$E$2="Orkney Health Board",Calculations!$E$2="Orkney Islands Local Authority"),$F92=1),0,IF(AND(OR(Calculations!$E$2="Shetland Health Board",Calculations!$E$2="Western Isles Health Board",Calculations!$E$2="Shetland Islands Local Authority",Calculations!$E$2="Eilean Siar Local Authority"),OR($F92=1,$F92=5)),0,prem_mort(VALUE(LEFT(Options!$B$24,2)),$C92,$E92,$F92,2016,$I92+$J92,1,$H92,$G92*$H92,Options!$B$8))) -> 798.8591826 | S92: 3124.57145 | T92: 3124.57145 | U92: 46556.11461 | V92: 46556.11461 | W92: 55918.48504 | X92: 55918.48504 | Y92: 3124.57145 | Z92: 3124.57145 | AA92: 17185142.98 | AB92: 17185142.98 | AC92: 256058630.3 | AD92: 256058630.3 | AE92: =W92*$AI92 -> 307551667.7 | AF92: =X92*$AI92 -> 307551667.7 | AG92: =Y92*$AI92 -> 17185142.98 | AH92: =Z92*$AI92 -> 17185142.98 | AI92: 5500
B93: Male 70-74 | C93: 71.891098 | D93: 84.3411 | E93: male | F93: 1 | G93: =HLOOKUP(Calculations!$E$2,'Prevalence Rates'!$C$3:$BC$249,'Prevalence Rates'!$BD93,FALSE) -> 0 | H93: =HLOOKUP(Calculations!$E$2,'Population 2016'!$C$3:$BC$249,'Population 2016'!BD93,FALSE) -> 18358 | I93: 0 | J93: =HLOOKUP(Results!E$4,Targeting!$C$3:$F$249,Targeting!$G93,FALSE) -> 0 | K93: =IF(AND(OR(Calculations!$E$2="Orkney Health Board",Calculations!$E$2="Orkney Islands Local Authority"),$F93=1),0,IF(AND(OR(Calculations!$E$2="Shetland Health Board",Calculations!$E$2="Western Isles Health Board",Calculations!$E$2="Shetland Islands Local Authority",Calculations!$E$2="Eilean Siar Local Authority"),OR($F93=1,$F93=5)),0,new_ci(VALUE(LEFT(Options!$B$24,2)),$C93,$E93,$F93,2016,$I93,1,$H93,$G93*$H93,Options!$B$8))) -> 820.698203 | L93: =IF(AND(OR(Calculations!$E$2="Orkney Health Board",Calculations!$E$2="Orkney Islands Local Authority"),$F93=1),0,IF(AND(OR(Calculations!$E$2="Shetland Health Board",Calculations!$E$2="Western Isles Health Board",Calculations!$E$2="Shetland Islands Local Authority",Calculations!$E$2="Eilean Siar Local Authority"),OR($F93=1,$F93=5)),0,new_ci(VALUE(LEFT(Options!$B$24,2)),$C93,$E93,$F93,2016,$I93+$J93,1,$H93,$G93*$H93,Options!$B$8))) -> 820.698203 | M93: =IF(AND(OR(Calculations!$E$2="Orkney Health Board",Calculations!$E$2="Orkney Islands Local Authority"),$F93=1),0,IF(AND(OR(Calculations!$E$2="Shetland Health Board",Calculations!$E$2="Western Isles Health Board",Calculations!$E$2="Shetland Islands Local Authority",Calculations!$E$2="Eilean Siar Local Authority"),OR($F93=1,$F93=5)),0,new_yllv2(VALUE(LEFT(Options!$B$24,2)),$C93,$D93,$E93,$F93,2016,$I93,1,$H93,$G93*$H93,Options!$B$8))) -> 9396.996065 | N93: =IF(AND(OR(Calculations!$E$2="Orkney Health Board",Calculations!$E$2="Orkney Islands Local Authority"),$F93=1),0,IF(AND(OR(Calculations!$E$2="Shetland Health Board",Calculations!$E$2="Western Isles Health Board",Calculations!$E$2="Shetland Islands Local Authority",Calculations!$E$2="Eilean Siar Local Authority"),OR($F93=1,$F93=5)),0,new_yllv2(VALUE(LEFT(Options!$B$24,2)),$C93,$D93,$E93,$F93,2016,$I93+$J93,1,$H93,$G93*$H93,Options!$B$8))) -> 9396.996065 | O93: =IF(AND(OR(Calculations!$E$2="Orkney Health Board",Calculations!$E$2="Orkney Islands Local Authority"),$F93=1),0,IF(AND(OR(Calculations!$E$2="Shetland Health Board",Calculations!$E$2="Western Isles Health Board",Calculations!$E$2="Shetland Islands Local Authority",Calculations!$E$2="Eilean Siar Local Authority"),OR($F93=1,$F93=5)),0,hosp_count(VALUE(LEFT(Options!$B$24,2)),$C93,$E93,$F93,2016,$I93,1,$H93,$G93*$H93, Options!$B$8))) -> 12188.20958 | P93: =IF(AND(OR(Calculations!$E$2="Orkney Health Board",Calculations!$E$2="Orkney Islands Local Authority"),$F93=1),0,IF(AND(OR(Calculations!$E$2="Shetland Health Board",Calculations!$E$2="Western Isles Health Board",Calculations!$E$2="Shetland Islands Local Authority",Calculations!$E$2="Eilean Siar Local Authority"),OR($F93=1,$F93=5)),0,hosp_count(VALUE(LEFT(Options!$B$24,2)),$C93,$E93,$F93,2016,$I93+$J93,1,$H93,$G93*$H93, Options!$B$8))) -> 12188.20958 | Q93: =IF(AND(OR(Calculations!$E$2="Orkney Health Board",Calculations!$E$2="Orkney Islands Local Authority"),$F93=1),0,IF(AND(OR(Calculations!$E$2="Shetland Health Board",Calculations!$E$2="Western Isles Health Board",Calculations!$E$2="Shetland Islands Local Authority",Calculations!$E$2="Eilean Siar Local Authority"),OR($F93=1,$F93=5)),0,prem_mort(VALUE(LEFT(Options!$B$24,2)),$C93,$E93,$F93,2016,$I93,1,$H93,$G93*$H93,Options!$B$8))) -> 820.698203 | R93: =IF(AND(OR(Calculations!$E$2="Orkney Health Board",Calculations!$E$2="Orkney Islands Local Authority"),$F93=1),0,IF(AND(OR(Calculations!$E$2="Shetland Health Board",Calculations!$E$2="Western Isles Health Board",Calculations!$E$2="Shetland Islands Local Authority",Calculations!$E$2="Eilean Siar Local Authority"),OR($F93=1,$F93=5)),0,prem_mort(VALUE(LEFT(Options!$B$24,2)),$C93,$E93,$F93,2016,$I93+$J93,1,$H93,$G93*$H93,Options!$B$8))) -> 820.698203 | S93: 4470.52077 | T93: 4470.52077 | U93: 51187.47176 | V93: 51187.47176 | W93: 66391.81602 | X93: 66391.81602 | Y93: 4470.52077 | Z93: 4470.52077 | AA93: 22352603.85 | AB93: 22352603.85 | AC93: 255937358.8 | AD93: 255937358.8 | AE93: 331959080.1 | AF93: 331959080.1 | AG93: 22352603.85 | AH93: 22352603.85 | AI93: 5000
B94: Male 75-79 | C94: 76.9077 | D94: 86.3577 | E94: male | F94: 1 | G94: =HLOOKUP(Calculations!$E$2,'Prevalence Rates'!$C$3:$BC$249,'Prevalence Rates'!$BD94,FALSE) -> 0 | H94: =HLOOKUP(Calculations!$E$2,'Population 2016'!$C$3:$BC$249,'Population 2016'!BD94,FALSE) -> 13914 | I94: 0 | J94: =HLOOKUP(Results!E$4,Targeting!$C$3:$F$249,Targeting!$G94,FALSE) -> 0 | K94: =IF(AND(OR(Calculations!$E$2="Orkney Health Board",Calculations!$E$2="Orkney Islands Local Authority"),$F94=1),0,IF(AND(OR(Calculations!$E$2="Shetland Health Board",Calculations!$E$2="Western Isles Health Board",Calculations!$E$2="Shetland Islands Local Authority",Calculations!$E$2="Eilean Siar Local Authority"),OR($F94=1,$F94=5)),0,new_ci(VALUE(LEFT(Options!$B$24,2)),$C94,$E94,$F94,2016,$I94,1,$H94,$G94*$H94,Options!$B$8))) -> 899.0124644 | L94: =IF(AND(OR(Calculations!$E$2="Orkney Health Board",Calculations!$E$2="Orkney Islands Local Authority"),$F94=1),0,IF(AND(OR(Calculations!$E$2="Shetland Health Board",Calculations!$E$2="Western Isles Health Board",Calculations!$E$2="Shetland Islands Local Authority",Calculations!$E$2="Eilean Siar Local Authority"),OR($F94=1,$F94=5)),0,new_ci(VALUE(LEFT(Options!$B$24,2)),$C94,$E94,$F94,2016,$I94+$J94,1,$H94,$G94*$H94,Options!$B$8))) -> 899.0124644 | M94: =IF(AND(OR(Calculations!$E$2="Orkney Health Board",Calculations!$E$2="Orkney Islands Local Authority"),$F94=1),0,IF(AND(OR(Calculations!$E$2="Shetland Health Board",Calculations!$E$2="Western Isles Health Board",Calculations!$E$2="Shetland Islands Local Authority",Calculations!$E$2="Eilean Siar Local Authority"),OR($F94=1,$F94=5)),0,new_yllv2(VALUE(LEFT(Options!$B$24,2)),$C94,$D94,$E94,$F94,2016,$I94,1,$H94,$G94*$H94,Options!$B$8))) -> 7596.655324 | N94: =IF(AND(OR(Calculations!$E$2="Orkney Health Board",Calculations!$E$2="Orkney Islands Local Authority"),$F94=1),0,IF(AND(OR(Calculations!$E$2="Shetland Health Board",Calculations!$E$2="Western Isles Health Board",Calculations!$E$2="Shetland Islands Local Authority",Calculations!$E$2="Eilean Siar Local Authority"),OR($F94=1,$F94=5)),0,new_yllv2(VALUE(LEFT(Options!$B$24,2)),$C94,$D94,$E94,$F94,2016,$I94+$J94,1,$H94,$G94*$H94,Options!$B$8))) -> 7596.655324 | O94: =IF(AND(OR(Calculations!$E$2="Orkney Health Board",Calculations!$E$2="Orkney Islands Local Authority"),$F94=1),0,IF(AND(OR(Calculations!$E$2="Shetland Health Board",Calculations!$E$2="Western Isles Health Board",Calculations!$E$2="Shetland Islands Local Authority",Calculations!$E$2="Eilean Siar Local Authority"),OR($F94=1,$F94=5)),0,hosp_count(VALUE(LEFT(Options!$B$24,2)),$C94,$E94,$F94,2016,$I94,1,$H94,$G94*$H94, Options!$B$8))) -> 11038.22627 | P94: =IF(AND(OR(Calculations!$E$2="Orkney Health Board",Calculations!$E$2="Orkney Islands Local Authority"),$F94=1),0,IF(AND(OR(Calculations!$E$2="Shetland Health Board",Calculations!$E$2="Western Isles Health Board",Calculations!$E$2="Shetland Islands Local Authority",Calculations!$E$2="Eilean Siar Local Authority"),OR($F94=1,$F94=5)),0,hosp_count(VALUE(LEFT(Options!$B$24,2)),$C94,$E94,$F94,2016,$I94+$J94,1,$H94,$G94*$H94, Options!$B$8))) -> 11038.22627 | Q94: =IF(AND(OR(Calculations!$E$2="Orkney Health Board",Calculations!$E$2="Orkney Islands Local Authority"),$F94=1),0,IF(AND(OR(Calculations!$E$2="Shetland Health Board",Calculations!$E$2="Western Isles Health Board",Calculations!$E$2="Shetland Islands Local Authority",Calculations!$E$2="Eilean Siar Local Authority"),OR($F94=1,$F94=5)),0,prem_mort(VALUE(LEFT(Options!$B$24,2)),$C94,$E94,$F94,2016,$I94,1,$H94,$G94*$H94,Options!$B$8))) -> 0 | R94: =IF(AND(OR(Calculations!$E$2="Orkney Health Board",Calculations!$E$2="Orkney Islands Local Authority"),$F94=1),0,IF(AND(OR(Calculations!$E$2="Shetland Health Board",Calculations!$E$2="Western Isles Health Board",Calculations!$E$2="Shetland Islands Local Authority",Calculations!$E$2="Eilean Siar Local Authority"),OR($F94=1,$F94=5)),0,prem_mort(VALUE(LEFT(Options!$B$24,2)),$C94,$E94,$F94,2016,$I94+$J94,1,$H94,$G94*$H94,Options!$B$8))) -> 0 | S94: 6461.20788 | T94: 6461.20788 | U94: 54597.20659 | V94: 54597.20659 | W94: 79331.79723 | X94: 79331.79723 | Y94: 0 | Z94: 0 | AA94: 25844831.52 | AB94: 25844831.52 | AC94: 218388826.3 | AD94: 218388826.3 | AE94: 317327188.9 | AF94: 317327188.9 | AG94: 0 | AH94: 0 | AI94: 4000
B95: Male 80-84 | C95: 81.797089 | D95: 88.62709 | E95: male | F95: 1 | G95: =HLOOKUP(Calculations!$E$2,'Prevalence Rates'!$C$3:$BC$249,'Prevalence Rates'!$BD95,FALSE) -> 0 | H95: =HLOOKUP(Calculations!$E$2,'Population 2016'!$C$3:$BC$249,'Population 2016'!BD95,FALSE) -> 9236 | I95: 0 | J95: =HLOOKUP(Results!E$4,Targeting!$C$3:$F$249,Targeting!$G95,FALSE) -> 0 | K95: =IF(AND(OR(Calculations!$E$2="Orkney Health Board",Calculations!$E$2="Orkney Islands Local Authority"),$F95=1),0,IF(AND(OR(Calculations!$E$2="Shetland Health Board",Calculations!$E$2="Western Isles Health Board",Calculations!$E$2="Shetland Islands Local Authority",Calculations!$E$2="Eilean Siar Local Authority"),OR($F95=1,$F95=5)),0,new_ci(VALUE(LEFT(Options!$B$24,2)),$C95,$E95,$F95,2016,$I95,1,$H95,$G95*$H95,Options!$B$8))) -> 850.5980261 | L95: =IF(AND(OR(Calculations!$E$2="Orkney Health Board",Calculations!$E$2="Orkney Islands Local Authority"),$F95=1),0,IF(AND(OR(Calculations!$E$2="Shetland Health Board",Calculations!$E$2="Western Isles Health Board",Calculations!$E$2="Shetland Islands Local Authority",Calculations!$E$2="Eilean Siar Local Authority"),OR($F95=1,$F95=5)),0,new_ci(VALUE(LEFT(Options!$B$24,2)),$C95,$E95,$F95,2016,$I95+$J95,1,$H95,$G95*$H95,Options!$B$8))) -> 850.5980261 | M95: =IF(AND(OR(Calculations!$E$2="Orkney Health Board",Calculations!$E$2="Orkney Islands Local Authority"),$F95=1),0,IF(AND(OR(Calculations!$E$2="Shetland Health Board",Calculations!$E$2="Western Isles Health Board",Calculations!$E$2="Shetland Islands Local Authority",Calculations!$E$2="Eilean Siar Local Authority"),OR($F95=1,$F95=5)),0,new_yllv2(VALUE(LEFT(Options!$B$24,2)),$C95,$D95,$E95,$F95,2016,$I95,1,$H95,$G95*$H95,Options!$B$8))) -> 4958.987343 | N95: =IF(AND(OR(Calculations!$E$2="Orkney Health Board",Calculations!$E$2="Orkney Islands Local Authority"),$F95=1),0,IF(AND(OR(Calculations!$E$2="Shetland Health Board",Calculations!$E$2="Western Isles Health Board",Calculations!$E$2="Shetland Islands Local Authority",Calculations!$E$2="Eilean Siar Local Authority"),OR($F95=1,$F95=5)),0,new_yllv2(VALUE(LEFT(Options!$B$24,2)),$C95,$D95,$E95,$F95,2016,$I95+$J95,1,$H95,$G95*$H95,Options!$B$8))) -> 4958.987343 | O95: =IF(AND(OR(Calculations!$E$2="Orkney Health Board",Calculations!$E$2="Orkney Islands Local Authority"),$F95=1),0,IF(AND(OR(Calculations!$E$2="Shetland Health Board",Calculations!$E$2="Western Isles Health Board",Calculations!$E$2="Shetland Islands Local Authority",Calculations!$E$2="Eilean Siar Local Authority"),OR($F95=1,$F95=5)),0,hosp_count(VALUE(LEFT(Options!$B$24,2)),$C95,$E95,$F95,2016,$I95,1,$H95,$G95*$H95, Options!$B$8))) -> 8715.71314 | P95: =IF(AND(OR(Calculations!$E$2="Orkney Health Board",Calculations!$E$2="Orkney Islands Local Authority"),$F95=1),0,IF(AND(OR(Calculations!$E$2="Shetland Health Board",Calculations!$E$2="Western Isles Health Board",Calculations!$E$2="Shetland Islands Local Authority",Calculations!$E$2="Eilean Siar Local Authority"),OR($F95=1,$F95=5)),0,hosp_count(VALUE(LEFT(Options!$B$24,2)),$C95,$E95,$F95,2016,$I95+$J95,1,$H95,$G95*$H95, Options!$B$8))) -> 8715.71314 | Q95: =IF(AND(OR(Calculations!$E$2="Orkney Health Board",Calculations!$E$2="Orkney Islands Local Authority"),$F95=1),0,IF(AND(OR(Calculations!$E$2="Shetland Health Board",Calculations!$E$2="Western Isles Health Board",Calculations!$E$2="Shetland Islands Local Authority",Calculations!$E$2="Eilean Siar Local Authority"),OR($F95=1,$F95=5)),0,prem_mort(VALUE(LEFT(Options!$B$24,2)),$C95,$E95,$F95,2016,$I95,1,$H95,$G95*$H95,Options!$B$8))) -> 0 | R95: =IF(AND(OR(Calculations!$E$2="Orkney Health Board",Calculations!$E$2="Orkney Islands Local Authority"),$F95=1),0,IF(AND(OR(Calculations!$E$2="Shetland Health Board",Calculations!$E$2="Western Isles Health Board",Calculations!$E$2="Shetland Islands Local Authority",Calculations!$E$2="Eilean Siar Local Authority"),OR($F95=1,$F95=5)),0,prem_mort(VALUE(LEFT(Options!$B$24,2)),$C95,$E95,$F95,2016,$I95+$J95,1,$H95,$G95*$H95,Options!$B$8))) -> 0 | S95: 9209.59318 | T95: 9209.59318 | U95: 53691.93745 | V95: 53691.93745 | W95: 94366.75119 | X95: 94366.75119 | Y95: 0 | Z95: 0 | AA95: 23023982.95 | AB95: 23023982.95 | AC95: 134229843.6 | AD95: 134229843.6 | AE95: 235916878 | AF95: 235916878 | AG95: 0 | AH95: 0 | AI95: 2500
B96: Male 85-89 | C96: 86.630753 | D96: 91.42075 | E96: male | F96: 1 | G96: =HLOOKUP(Calculations!$E$2,'Prevalence Rates'!$C$3:$BC$249,'Prevalence Rates'!$BD96,FALSE) -> 0 | H96: =HLOOKUP(Calculations!$E$2,'Population 2016'!$C$3:$BC$249,'Population 2016'!BD96,FALSE) -> 4449 | I96: 0 | J96: =HLOOKUP(Results!E$4,Targeting!$C$3:$F$249,Targeting!$G96,FALSE) -> 0 | K96: =IF(AND(OR(Calculations!$E$2="Orkney Health Board",Calculations!$E$2="Orkney Islands Local Authority"),$F96=1),0,IF(AND(OR(Calculations!$E$2="Shetland Health Board",Calculations!$E$2="Western Isles Health Board",Calculations!$E$2="Shetland Islands Local Authority",Calculations!$E$2="Eilean Siar Local Authority"),OR($F96=1,$F96=5)),0,new_ci(VALUE(LEFT(Options!$B$24,2)),$C96,$E96,$F96,2016,$I96,1,$H96,$G96*$H96,Options!$B$8))) -> 578.0052679 | L96: =IF(AND(OR(Calculations!$E$2="Orkney Health Board",Calculations!$E$2="Orkney Islands Local Authority"),$F96=1),0,IF(AND(OR(Calculations!$E$2="Shetland Health Board",Calculations!$E$2="Western Isles Health Board",Calculations!$E$2="Shetland Islands Local Authority",Calculations!$E$2="Eilean Siar Local Authority"),OR($F96=1,$F96=5)),0,new_ci(VALUE(LEFT(Options!$B$24,2)),$C96,$E96,$F96,2016,$I96+$J96,1,$H96,$G96*$H96,Options!$B$8))) -> 578.0052679 | M96: =IF(AND(OR(Calculations!$E$2="Orkney Health Board",Calculations!$E$2="Orkney Islands Local Authority"),$F96=1),0,IF(AND(OR(Calculations!$E$2="Shetland Health Board",Calculations!$E$2="Western Isles Health Board",Calculations!$E$2="Shetland Islands Local Authority",Calculations!$E$2="Eilean Siar Local Authority"),OR($F96=1,$F96=5)),0,new_yllv2(VALUE(LEFT(Options!$B$24,2)),$C96,$D96,$E96,$F96,2016,$I96,1,$H96,$G96*$H96,Options!$B$8))) -> 2190.638231 | N96: =IF(AND(OR(Calculations!$E$2="Orkney Health Board",Calculations!$E$2="Orkney Islands Local Authority"),$F96=1),0,IF(AND(OR(Calculations!$E$2="Shetland Health Board",Calculations!$E$2="Western Isles Health Board",Calculations!$E$2="Shetland Islands Local Authority",Calculations!$E$2="Eilean Siar Local Authority"),OR($F96=1,$F96=5)),0,new_yllv2(VALUE(LEFT(Options!$B$24,2)),$C96,$D96,$E96,$F96,2016,$I96+$J96,1,$H96,$G96*$H96,Options!$B$8))) -> 2190.638231 | O96: =IF(AND(OR(Calculations!$E$2="Orkney Health Board",Calculations!$E$2="Orkney Islands Local Authority"),$F96=1),0,IF(AND(OR(Calculations!$E$2="Shetland Health Board",Calculations!$E$2="Western Isles Health Board",Calculations!$E$2="Shetland Islands Local Authority",Calculations!$E$2="Eilean Siar Local Authority"),OR($F96=1,$F96=5)),0,hosp_count(VALUE(LEFT(Options!$B$24,2)),$C96,$E96,$F96,2016,$I96,1,$H96,$G96*$H96, Options!$B$8))) -> 4984.184367 | P96: =IF(AND(OR(Calculations!$E$2="Orkney Health Board",Calculations!$E$2="Orkney Islands Local Authority"),$F96=1),0,IF(AND(OR(Calculations!$E$2="Shetland Health Board",Calculations!$E$2="Western Isles Health Board",Calculations!$E$2="Shetland Islands Local Authority",Calculations!$E$2="Eilean Siar Local Authority"),OR($F96=1,$F96=5)),0,hosp_count(VALUE(LEFT(Options!$B$24,2)),$C96,$E96,$F96,2016,$I96+$J96,1,$H96,$G96*$H96, Options!$B$8))) -> 4984.184367 | Q96: =IF(AND(OR(Calculations!$E$2="Orkney Health Board",Calculations!$E$2="Orkney Islands Local Authority"),$F96=1),0,IF(AND(OR(Calculations!$E$2="Shetland Health Board",Calculations!$E$2="Western Isles Health Board",Calculations!$E$2="Shetland Islands Local Authority",Calculations!$E$2="Eilean Siar Local Authority"),OR($F96=1,$F96=5)),0,prem_mort(VALUE(LEFT(Options!$B$24,2)),$C96,$E96,$F96,2016,$I96,1,$H96,$G96*$H96,Options!$B$8))) -> 0 | R96: =IF(AND(OR(Calculations!$E$2="Orkney Health Board",Calculations!$E$2="Orkney Islands Local Authority"),$F96=1),0,IF(AND(OR(Calculations!$E$2="Shetland Health Board",Calculations!$E$2="Western Isles Health Board",Calculations!$E$2="Shetland Islands Local Authority",Calculations!$E$2="Eilean Siar Local Authority"),OR($F96=1,$F96=5)),0,prem_mort(VALUE(LEFT(Options!$B$24,2)),$C96,$E96,$F96,2016,$I96+$J96,1,$H96,$G96*$H96,Options!$B$8))) -> 0 | S96: 12991.80193 | T96: 12991.80193 | U96: 49238.89034 | V96: 49238.89034 | W96: 112029.3182 | X96: 112029.3182 | Y96: 0 | Z96: 0 | AA96: 19487702.9 | AB96: 19487702.9 | AC96: 73858335.51 | AD96: 73858335.51 | AE96: 168043977.3 | AF96: 168043977.3 | AG96: 0 | AH96: 0 | AI96: 1500
B97: Male 90+ | C97: 92.215477 | D97: 95.51548 | E97: male | F97: 1 | G97: =HLOOKUP(Calculations!$E$2,'Prevalence Rates'!$C$3:$BC$249,'Prevalence Rates'!$BD97,FALSE) -> 0 | H97: =HLOOKUP(Calculations!$E$2,'Population 2016'!$C$3:$BC$249,'Population 2016'!BD97,FALSE) -> 1916 | I97: 0 | J97: =HLOOKUP(Results!E$4,Targeting!$C$3:$F$249,Targeting!$G97,FALSE) -> 0 | K97: =IF(AND(OR(Calculations!$E$2="Orkney Health Board",Calculations!$E$2="Orkney Islands Local Authority"),$F97=1),0,IF(AND(OR(Calculations!$E$2="Shetland Health Board",Calculations!$E$2="Western Isles Health Board",Calculations!$E$2="Shetland Islands Local Authority",Calculations!$E$2="Eilean Siar Local Authority"),OR($F97=1,$F97=5)),0,new_ci(VALUE(LEFT(Options!$B$24,2)),$C97,$E97,$F97,2016,$I97,1,$H97,$G97*$H97,Options!$B$8))) -> 366.2630214 | L97: =IF(AND(OR(Calculations!$E$2="Orkney Health Board",Calculations!$E$2="Orkney Islands Local Authority"),$F97=1),0,IF(AND(OR(Calculations!$E$2="Shetland Health Board",Calculations!$E$2="Western Isles Health Board",Calculations!$E$2="Shetland Islands Local Authority",Calculations!$E$2="Eilean Siar Local Authority"),OR($F97=1,$F97=5)),0,new_ci(VALUE(LEFT(Options!$B$24,2)),$C97,$E97,$F97,2016,$I97+$J97,1,$H97,$G97*$H97,Options!$B$8))) -> 366.2630214 | M97: =IF(AND(OR(Calculations!$E$2="Orkney Health Board",Calculations!$E$2="Orkney Islands Local Authority"),$F97=1),0,IF(AND(OR(Calculations!$E$2="Shetland Health Board",Calculations!$E$2="Western Isles Health Board",Calculations!$E$2="Shetland Islands Local Authority",Calculations!$E$2="Eilean Siar Local Authority"),OR($F97=1,$F97=5)),0,new_yllv2(VALUE(LEFT(Options!$B$24,2)),$C97,$D97,$E97,$F97,2016,$I97,1,$H97,$G97*$H97,Options!$B$8))) -> 842.4060479 | N97: =IF(AND(OR(Calculations!$E$2="Orkney Health Board",Calculations!$E$2="Orkney Islands Local Authority"),$F97=1),0,IF(AND(OR(Calculations!$E$2="Shetland Health Board",Calculations!$E$2="Western Isles Health Board",Calculations!$E$2="Shetland Islands Local Authority",Calculations!$E$2="Eilean Siar Local Authority"),OR($F97=1,$F97=5)),0,new_yllv2(VALUE(LEFT(Options!$B$24,2)),$C97,$D97,$E97,$F97,2016,$I97+$J97,1,$H97,$G97*$H97,Options!$B$8))) -> 842.4060479 | O97: =IF(AND(OR(Calculations!$E$2="Orkney Health Board",Calculations!$E$2="Orkney Islands Local Authority"),$F97=1),0,IF(AND(OR(Calculations!$E$2="Shetland Health Board",Calculations!$E$2="Western Isles Health Board",Calculations!$E$2="Shetland Islands Local Authority",Calculations!$E$2="Eilean Siar Local Authority"),OR($F97=1,$F97=5)),0,hosp_count(VALUE(LEFT(Options!$B$24,2)),$C97,$E97,$F97,2016,$I97,1,$H97,$G97*$H97, Options!$B$8))) -> 2617.084529 | P97: =IF(AND(OR(Calculations!$E$2="Orkney Health Board",Calculations!$E$2="Orkney Islands Local Authority"),$F97=1),0,IF(AND(OR(Calculations!$E$2="Shetland Health Board",Calculations!$E$2="Western Isles Health Board",Calculations!$E$2="Shetland Islands Local Authority",Calculations!$E$2="Eilean Siar Local Authority"),OR($F97=1,$F97=5)),0,hosp_count(VALUE(LEFT(Options!$B$24,2)),$C97,$E97,$F97,2016,$I97+$J97,1,$H97,$G97*$H97, Options!$B$8))) -> 2617.084529 | Q97: =IF(AND(OR(Calculations!$E$2="Orkney Health Board",Calculations!$E$2="Orkney Islands Local Authority"),$F97=1),0,IF(AND(OR(Calculations!$E$2="Shetland Health Board",Calculations!$E$2="Western Isles Health Board",Calculations!$E$2="Shetland Islands Local Authority",Calculations!$E$2="Eilean Siar Local Authority"),OR($F97=1,$F97=5)),0,prem_mort(VALUE(LEFT(Options!$B$24,2)),$C97,$E97,$F97,2016,$I97,1,$H97,$G97*$H97,Options!$B$8))) -> 0 | R97: =IF(AND(OR(Calculations!$E$2="Orkney Health Board",Calculations!$E$2="Orkney Islands Local Authority"),$F97=1),0,IF(AND(OR(Calculations!$E$2="Shetland Health Board",Calculations!$E$2="Western Isles Health Board",Calculations!$E$2="Shetland Islands Local Authority",Calculations!$E$2="Eilean Siar Local Authority"),OR($F97=1,$F97=5)),0,prem_mort(VALUE(LEFT(Options!$B$24,2)),$C97,$E97,$F97,2016,$I97+$J97,1,$H97,$G97*$H97,Options!$B$8))) -> 0 | S97: 19116.02408 | T97: 19116.02408 | U97: 43966.91273 | V97: 43966.91273 | W97: 136591.0506 | X97: 136591.0506 | Y97: 0 | Z97: 0 | AA97: 19116024.08 | AB97: 19116024.08 | AC97: 43966912.73 | AD97: 43966912.73 | AE97: 136591050.6 | AF97: 136591050.6 | AG97: 0 | AH97: 0 | AI97: 1000
B98: Female 0-4 | C98: 2.0384007 | D98: 81.468401 | E98: female | F98: 2 | G98: =HLOOKUP(Calculations!$E$2,'Prevalence Rates'!$C$3:$BC$249,'Prevalence Rates'!$BD98,FALSE) -> 0 | H98: =HLOOKUP(Calculations!$E$2,'Population 2016'!$C$3:$BC$249,'Population 2016'!BD98,FALSE) -> 0 | I98: 0 | J98: =HLOOKUP(Results!E$4,Targeting!$C$3:$F$249,Targeting!$G98,FALSE) -> 0 | K98: =IF(AND(OR(Calculations!$E$2="Orkney Health Board",Calculations!$E$2="Orkney Islands Local Authority"),$F98=1),0,IF(AND(OR(Calculations!$E$2="Shetland Health Board",Calculations!$E$2="Western Isles Health Board",Calculations!$E$2="Shetland Islands Local Authority",Calculations!$E$2="Eilean Siar Local Authority"),OR($F98=1,$F98=5)),0,new_ci(VALUE(LEFT(Options!$B$24,2)),$C98,$E98,$F98,2016,$I98,1,$H98,$G98*$H98,Options!$B$8))) ->  | L98: =IF(AND(OR(Calculations!$E$2="Orkney Health Board",Calculations!$E$2="Orkney Islands Local Authority"),$F98=1),0,IF(AND(OR(Calculations!$E$2="Shetland Health Board",Calculations!$E$2="Western Isles Health Board",Calculations!$E$2="Shetland Islands Local Authority",Calculations!$E$2="Eilean Siar Local Authority"),OR($F98=1,$F98=5)),0,new_ci(VALUE(LEFT(Options!$B$24,2)),$C98,$E98,$F98,2016,$I98+$J98,1,$H98,$G98*$H98,Options!$B$8))) ->  | M98: =IF(AND(OR(Calculations!$E$2="Orkney Health Board",Calculations!$E$2="Orkney Islands Local Authority"),$F98=1),0,IF(AND(OR(Calculations!$E$2="Shetland Health Board",Calculations!$E$2="Western Isles Health Board",Calculations!$E$2="Shetland Islands Local Authority",Calculations!$E$2="Eilean Siar Local Authority"),OR($F98=1,$F98=5)),0,new_yllv2(VALUE(LEFT(Options!$B$24,2)),$C98,$D98,$E98,$F98,2016,$I98,1,$H98,$G98*$H98,Options!$B$8))) ->  | N98: =IF(AND(OR(Calculations!$E$2="Orkney Health Board",Calculations!$E$2="Orkney Islands Local Authority"),$F98=1),0,IF(AND(OR(Calculations!$E$2="Shetland Health Board",Calculations!$E$2="Western Isles Health Board",Calculations!$E$2="Shetland Islands Local Authority",Calculations!$E$2="Eilean Siar Local Authority"),OR($F98=1,$F98=5)),0,new_yllv2(VALUE(LEFT(Options!$B$24,2)),$C98,$D98,$E98,$F98,2016,$I98+$J98,1,$H98,$G98*$H98,Options!$B$8))) ->  | O98: =IF(AND(OR(Calculations!$E$2="Orkney Health Board",Calculations!$E$2="Orkney Islands Local Authority"),$F98=1),0,IF(AND(OR(Calculations!$E$2="Shetland Health Board",Calculations!$E$2="Western Isles Health Board",Calculations!$E$2="Shetland Islands Local Authority",Calculations!$E$2="Eilean Siar Local Authority"),OR($F98=1,$F98=5)),0,hosp_count(VALUE(LEFT(Options!$B$24,2)),$C98,$E98,$F98,2016,$I98,1,$H98,$G98*$H98, Options!$B$8))) ->  | P98: =IF(AND(OR(Calculations!$E$2="Orkney Health Board",Calculations!$E$2="Orkney Islands Local Authority"),$F98=1),0,IF(AND(OR(Calculations!$E$2="Shetland Health Board",Calculations!$E$2="Western Isles Health Board",Calculations!$E$2="Shetland Islands Local Authority",Calculations!$E$2="Eilean Siar Local Authority"),OR($F98=1,$F98=5)),0,hosp_count(VALUE(LEFT(Options!$B$24,2)),$C98,$E98,$F98,2016,$I98+$J98,1,$H98,$G98*$H98, Options!$B$8))) ->  | Q98: =IF(AND(OR(Calculations!$E$2="Orkney Health Board",Calculations!$E$2="Orkney Islands Local Authority"),$F98=1),0,IF(AND(OR(Calculations!$E$2="Shetland Health Board",Calculations!$E$2="Western Isles Health Board",Calculations!$E$2="Shetland Islands Local Authority",Calculations!$E$2="Eilean Siar Local Authority"),OR($F98=1,$F98=5)),0,prem_mort(VALUE(LEFT(Options!$B$24,2)),$C98,$E98,$F98,2016,$I98,1,$H98,$G98*$H98,Options!$B$8))) ->  | R98: =IF(AND(OR(Calculations!$E$2="Orkney Health Board",Calculations!$E$2="Orkney Islands Local Authority"),$F98=1),0,IF(AND(OR(Calculations!$E$2="Shetland Health Board",Calculations!$E$2="Western Isles Health Board",Calculations!$E$2="Shetland Islands Local Authority",Calculations!$E$2="Eilean Siar Local Authority"),OR($F98=1,$F98=5)),0,prem_mort(VALUE(LEFT(Options!$B$24,2)),$C98,$E98,$F98,2016,$I98+$J98,1,$H98,$G98*$H98,Options!$B$8))) ->  | AI98: 5000
B99: Female 5-9 | C99: 6.9792795 | D99: 81.43928 | E99: female | F99: 2 | G99: =HLOOKUP(Calculations!$E$2,'Prevalence Rates'!$C$3:$BC$249,'Prevalence Rates'!$BD99,FALSE) -> 0 | H99: =HLOOKUP(Calculations!$E$2,'Population 2016'!$C$3:$BC$249,'Population 2016'!BD99,FALSE) -> 0 | I99: 0 | J99: =HLOOKUP(Results!E$4,Targeting!$C$3:$F$249,Targeting!$G99,FALSE) -> 0 | K99: =IF(AND(OR(Calculations!$E$2="Orkney Health Board",Calculations!$E$2="Orkney Islands Local Authority"),$F99=1),0,IF(AND(OR(Calculations!$E$2="Shetland Health Board",Calculations!$E$2="Western Isles Health Board",Calculations!$E$2="Shetland Islands Local Authority",Calculations!$E$2="Eilean Siar Local Authority"),OR($F99=1,$F99=5)),0,new_ci(VALUE(LEFT(Options!$B$24,2)),$C99,$E99,$F99,2016,$I99,1,$H99,$G99*$H99,Options!$B$8))) ->  | L99: =IF(AND(OR(Calculations!$E$2="Orkney Health Board",Calculations!$E$2="Orkney Islands Local Authority"),$F99=1),0,IF(AND(OR(Calculations!$E$2="Shetland Health Board",Calculations!$E$2="Western Isles Health Board",Calculations!$E$2="Shetland Islands Local Authority",Calculations!$E$2="Eilean Siar Local Authority"),OR($F99=1,$F99=5)),0,new_ci(VALUE(LEFT(Options!$B$24,2)),$C99,$E99,$F99,2016,$I99+$J99,1,$H99,$G99*$H99,Options!$B$8))) ->  | M99: =IF(AND(OR(Calculations!$E$2="Orkney Health Board",Calculations!$E$2="Orkney Islands Local Authority"),$F99=1),0,IF(AND(OR(Calculations!$E$2="Shetland Health Board",Calculations!$E$2="Western Isles Health Board",Calculations!$E$2="Shetland Islands Local Authority",Calculations!$E$2="Eilean Siar Local Authority"),OR($F99=1,$F99=5)),0,new_yllv2(VALUE(LEFT(Options!$B$24,2)),$C99,$D99,$E99,$F99,2016,$I99,1,$H99,$G99*$H99,Options!$B$8))) ->  | N99: =IF(AND(OR(Calculations!$E$2="Orkney Health Board",Calculations!$E$2="Orkney Islands Local Authority"),$F99=1),0,IF(AND(OR(Calculations!$E$2="Shetland Health Board",Calculations!$E$2="Western Isles Health Board",Calculations!$E$2="Shetland Islands Local Authority",Calculations!$E$2="Eilean Siar Local Authority"),OR($F99=1,$F99=5)),0,new_yllv2(VALUE(LEFT(Options!$B$24,2)),$C99,$D99,$E99,$F99,2016,$I99+$J99,1,$H99,$G99*$H99,Options!$B$8))) ->  | O99: =IF(AND(OR(Calculations!$E$2="Orkney Health Board",Calculations!$E$2="Orkney Islands Local Authority"),$F99=1),0,IF(AND(OR(Calculations!$E$2="Shetland Health Board",Calculations!$E$2="Western Isles Health Board",Calculations!$E$2="Shetland Islands Local Authority",Calculations!$E$2="Eilean Siar Local Authority"),OR($F99=1,$F99=5)),0,hosp_count(VALUE(LEFT(Options!$B$24,2)),$C99,$E99,$F99,2016,$I99,1,$H99,$G99*$H99, Options!$B$8))) ->  | P99: =IF(AND(OR(Calculations!$E$2="Orkney Health Board",Calculations!$E$2="Orkney Islands Local Authority"),$F99=1),0,IF(AND(OR(Calculations!$E$2="Shetland Health Board",Calculations!$E$2="Western Isles Health Board",Calculations!$E$2="Shetland Islands Local Authority",Calculations!$E$2="Eilean Siar Local Authority"),OR($F99=1,$F99=5)),0,hosp_count(VALUE(LEFT(Options!$B$24,2)),$C99,$E99,$F99,2016,$I99+$J99,1,$H99,$G99*$H99, Options!$B$8))) ->  | Q99: =IF(AND(OR(Calculations!$E$2="Orkney Health Board",Calculations!$E$2="Orkney Islands Local Authority"),$F99=1),0,IF(AND(OR(Calculations!$E$2="Shetland Health Board",Calculations!$E$2="Western Isles Health Board",Calculations!$E$2="Shetland Islands Local Authority",Calculations!$E$2="Eilean Siar Local Authority"),OR($F99=1,$F99=5)),0,prem_mort(VALUE(LEFT(Options!$B$24,2)),$C99,$E99,$F99,2016,$I99,1,$H99,$G99*$H99,Options!$B$8))) ->  | R99: =IF(AND(OR(Calculations!$E$2="Orkney Health Board",Calculations!$E$2="Orkney Islands Local Authority"),$F99=1),0,IF(AND(OR(Calculations!$E$2="Shetland Health Board",Calculations!$E$2="Western Isles Health Board",Calculations!$E$2="Shetland Islands Local Authority",Calculations!$E$2="Eilean Siar Local Authority"),OR($F99=1,$F99=5)),0,prem_mort(VALUE(LEFT(Options!$B$24,2)),$C99,$E99,$F99,2016,$I99+$J99,1,$H99,$G99*$H99,Options!$B$8))) ->  | AI99: 5500
B100: Female 10-15 | C100: 12.478312 | D100: 81.94831 | E100: female | F100: 2 | G100: =HLOOKUP(Calculations!$E$2,'Prevalence Rates'!$C$3:$BC$249,'Prevalence Rates'!$BD100,FALSE) -> 0 | H100: =HLOOKUP(Calculations!$E$2,'Population 2016'!$C$3:$BC$249,'Population 2016'!BD100,FALSE) -> 0 | I100: 0 | J100: =HLOOKUP(Results!E$4,Targeting!$C$3:$F$249,Targeting!$G100,FALSE) -> 0 | K100: =IF(AND(OR(Calculations!$E$2="Orkney Health Board",Calculations!$E$2="Orkney Islands Local Authority"),$F100=1),0,IF(AND(OR(Calculations!$E$2="Shetland Health Board",Calculations!$E$2="Western Isles Health Board",Calculations!$E$2="Shetland Islands Local Authority",Calculations!$E$2="Eilean Siar Local Authority"),OR($F100=1,$F100=5)),0,new_ci(VALUE(LEFT(Options!$B$24,2)),$C100,$E100,$F100,2016,$I100,1,$H100,$G100*$H100,Options!$B$8))) ->  | L100: =IF(AND(OR(Calculations!$E$2="Orkney Health Board",Calculations!$E$2="Orkney Islands Local Authority"),$F100=1),0,IF(AND(OR(Calculations!$E$2="Shetland Health Board",Calculations!$E$2="Western Isles Health Board",Calculations!$E$2="Shetland Islands Local Authority",Calculations!$E$2="Eilean Siar Local Authority"),OR($F100=1,$F100=5)),0,new_ci(VALUE(LEFT(Options!$B$24,2)),$C100,$E100,$F100,2016,$I100+$J100,1,$H100,$G100*$H100,Options!$B$8))) ->  | M100: =IF(AND(OR(Calculations!$E$2="Orkney Health Board",Calculations!$E$2="Orkney Islands Local Authority"),$F100=1),0,IF(AND(OR(Calculations!$E$2="Shetland Health Board",Calculations!$E$2="Western Isles Health Board",Calculations!$E$2="Shetland Islands Local Authority",Calculations!$E$2="Eilean Siar Local Authority"),OR($F100=1,$F100=5)),0,new_yllv2(VALUE(LEFT(Options!$B$24,2)),$C100,$D100,$E100,$F100,2016,$I100,1,$H100,$G100*$H100,Options!$B$8))) ->  | N100: =IF(AND(OR(Calculations!$E$2="Orkney Health Board",Calculations!$E$2="Orkney Islands Local Authority"),$F100=1),0,IF(AND(OR(Calculations!$E$2="Shetland Health Board",Calculations!$E$2="Western Isles Health Board",Calculations!$E$2="Shetland Islands Local Authority",Calculations!$E$2="Eilean Siar Local Authority"),OR($F100=1,$F100=5)),0,new_yllv2(VALUE(LEFT(Options!$B$24,2)),$C100,$D100,$E100,$F100,2016,$I100+$J100,1,$H100,$G100*$H100,Options!$B$8))) ->  | O100: =IF(AND(OR(Calculations!$E$2="Orkney Health Board",Calculations!$E$2="Orkney Islands Local Authority"),$F100=1),0,IF(AND(OR(Calculations!$E$2="Shetland Health Board",Calculations!$E$2="Western Isles Health Board",Calculations!$E$2="Shetland Islands Local Authority",Calculations!$E$2="Eilean Siar Local Authority"),OR($F100=1,$F100=5)),0,hosp_count(VALUE(LEFT(Options!$B$24,2)),$C100,$E100,$F100,2016,$I100,1,$H100,$G100*$H100, Options!$B$8))) ->  | P100: =IF(AND(OR(Calculations!$E$2="Orkney Health Board",Calculations!$E$2="Orkney Islands Local Authority"),$F100=1),0,IF(AND(OR(Calculations!$E$2="Shetland Health Board",Calculations!$E$2="Western Isles Health Board",Calculations!$E$2="Shetland Islands Local Authority",Calculations!$E$2="Eilean Siar Local Authority"),OR($F100=1,$F100=5)),0,hosp_count(VALUE(LEFT(Options!$B$24,2)),$C100,$E100,$F100,2016,$I100+$J100,1,$H100,$G100*$H100, Options!$B$8))) ->  | Q100: =IF(AND(OR(Calculations!$E$2="Orkney Health Board",Calculations!$E$2="Orkney Islands Local Authority"),$F100=1),0,IF(AND(OR(Calculations!$E$2="Shetland Health Board",Calculations!$E$2="Western Isles Health Board",Calculations!$E$2="Shetland Islands Local Authority",Calculations!$E$2="Eilean Siar Local Authority"),OR($F100=1,$F100=5)),0,prem_mort(VALUE(LEFT(Options!$B$24,2)),$C100,$E100,$F100,2016,$I100,1,$H100,$G100*$H100,Options!$B$8))) ->  | R100: =IF(AND(OR(Calculations!$E$2="Orkney Health Board",Calculations!$E$2="Orkney Islands Local Authority"),$F100=1),0,IF(AND(OR(Calculations!$E$2="Shetland Health Board",Calculations!$E$2="Western Isles Health Board",Calculations!$E$2="Shetland Islands Local Authority",Calculations!$E$2="Eilean Siar Local Authority"),OR($F100=1,$F100=5)),0,prem_mort(VALUE(LEFT(Options!$B$24,2)),$C100,$E100,$F100,2016,$I100+$J100,1,$H100,$G100*$H100,Options!$B$8))) ->  | AI100: 6600
A101: SIMD Q2 | B101: Female 16-19 | C101: 17.570053 | D101: 81.10005 | E101: female | F101: 2 | G101: =HLOOKUP(Calculations!$E$2,'Prevalence Rates'!$C$3:$BC$249,'Prevalence Rates'!$BD101,FALSE) -> 0.1543985637 | H101: =HLOOKUP(Calculations!$E$2,'Population 2016'!$C$3:$BC$249,'Population 2016'!BD101,FALSE) -> 23121 | I101: 0 | J101: =HLOOKUP(Results!E$4,Targeting!$C$3:$F$249,Targeting!$G101,FALSE) -> 1570 | K101: =IF(AND(OR(Calculations!$E$2="Orkney Health Board",Calculations!$E$2="Orkney Islands Local Authority"),$F101=1),0,IF(AND(OR(Calculations!$E$2="Shetland Health Board",Calculations!$E$2="Western Isles Health Board",Calculations!$E$2="Shetland Islands Local Authority",Calculations!$E$2="Eilean Siar Local Authority"),OR($F101=1,$F101=5)),0,new_ci(VALUE(LEFT(Options!$B$24,2)),$C101,$E101,$F101,2016,$I101,1,$H101,$G101*$H101,Options!$B$8))) -> 5.147468798 | L101: =IF(AND(OR(Calculations!$E$2="Orkney Health Board",Calculations!$E$2="Orkney Islands Local Authority"),$F101=1),0,IF(AND(OR(Calculations!$E$2="Shetland Health Board",Calculations!$E$2="Western Isles Health Board",Calculations!$E$2="Shetland Islands Local Authority",Calculations!$E$2="Eilean Siar Local Authority"),OR($F101=1,$F101=5)),0,new_ci(VALUE(LEFT(Options!$B$24,2)),$C101,$E101,$F101,2016,$I101+$J101,1,$H101,$G101*$H101,Options!$B$8))) -> 4.995950924 | M101: =IF(AND(OR(Calculations!$E$2="Orkney Health Board",Calculations!$E$2="Orkney Islands Local Authority"),$F101=1),0,IF(AND(OR(Calculations!$E$2="Shetland Health Board",Calculations!$E$2="Western Isles Health Board",Calculations!$E$2="Shetland Islands Local Authority",Calculations!$E$2="Eilean Siar Local Authority"),OR($F101=1,$F101=5)),0,new_yllv2(VALUE(LEFT(Options!$B$24,2)),$C101,$D101,$E101,$F101,2016,$I101,1,$H101,$G101*$H101,Options!$B$8))) -> 321.8712085 | N101: =IF(AND(OR(Calculations!$E$2="Orkney Health Board",Calculations!$E$2="Orkney Islands Local Authority"),$F101=1),0,IF(AND(OR(Calculations!$E$2="Shetland Health Board",Calculations!$E$2="Western Isles Health Board",Calculations!$E$2="Shetland Islands Local Authority",Calculations!$E$2="Eilean Siar Local Authority"),OR($F101=1,$F101=5)),0,new_yllv2(VALUE(LEFT(Options!$B$24,2)),$C101,$D101,$E101,$F101,2016,$I101+$J101,1,$H101,$G101*$H101,Options!$B$8))) -> 312.3967963 | O101: =IF(AND(OR(Calculations!$E$2="Orkney Health Board",Calculations!$E$2="Orkney Islands Local Authority"),$F101=1),0,IF(AND(OR(Calculations!$E$2="Shetland Health Board",Calculations!$E$2="Western Isles Health Board",Calculations!$E$2="Shetland Islands Local Authority",Calculations!$E$2="Eilean Siar Local Authority"),OR($F101=1,$F101=5)),0,hosp_count(VALUE(LEFT(Options!$B$24,2)),$C101,$E101,$F101,2016,$I101,1,$H101,$G101*$H101, Options!$B$8))) -> 2679.139383 | P101: =IF(AND(OR(Calculations!$E$2="Orkney Health Board",Calculations!$E$2="Orkney Islands Local Authority"),$F101=1),0,IF(AND(OR(Calculations!$E$2="Shetland Health Board",Calculations!$E$2="Western Isles Health Board",Calculations!$E$2="Shetland Islands Local Authority",Calculations!$E$2="Eilean Siar Local Authority"),OR($F101=1,$F101=5)),0,hosp_count(VALUE(LEFT(Options!$B$24,2)),$C101,$E101,$F101,2016,$I101+$J101,1,$H101,$G101*$H101, Options!$B$8))) -> 2673.33191 | Q101: =IF(AND(OR(Calculations!$E$2="Orkney Health Board",Calculations!$E$2="Orkney Islands Local Authority"),$F101=1),0,IF(AND(OR(Calculations!$E$2="Shetland Health Board",Calculations!$E$2="Western Isles Health Board",Calculations!$E$2="Shetland Islands Local Authority",Calculations!$E$2="Eilean Siar Local Authority"),OR($F101=1,$F101=5)),0,prem_mort(VALUE(LEFT(Options!$B$24,2)),$C101,$E101,$F101,2016,$I101,1,$H101,$G101*$H101,Options!$B$8))) -> 5.147468798 | R101: =IF(AND(OR(Calculations!$E$2="Orkney Health Board",Calculations!$E$2="Orkney Islands Local Authority"),$F101=1),0,IF(AND(OR(Calculations!$E$2="Shetland Health Board",Calculations!$E$2="Western Isles Health Board",Calculations!$E$2="Shetland Islands Local Authority",Calculations!$E$2="Eilean Siar Local Authority"),OR($F101=1,$F101=5)),0,prem_mort(VALUE(LEFT(Options!$B$24,2)),$C101,$E101,$F101,2016,$I101+$J101,1,$H101,$G101*$H101,Options!$B$8))) -> 4.995950924 | S101: 22.26317546 | T101: 21.60784968 | U101: 1392.116295 | V101: 1351.138775 | W101: 11587.47192 | X101: 11562.35418 | Y101: 22.26317546 | Z101: 21.60784968 | AA101: 97957.97201 | AB101: 95074.53857 | AC101: 6125311.696 | AD101: 5945010.612 | AE101: 50984876.45 | AF101: 50874358.39 | AG101: 97957.97201 | AH101: 95074.53857 | AI101: 4400
B102: Female 20-24 | C102: 22.077057 | D102: 81.66706 | E102: female | F102: 2 | G102: =HLOOKUP(Calculations!$E$2,'Prevalence Rates'!$C$3:$BC$249,'Prevalence Rates'!$BD102,FALSE) -> 0.1543985637 | H102: =HLOOKUP(Calculations!$E$2,'Population 2016'!$C$3:$BC$249,'Population 2016'!BD102,FALSE) -> 36899 | I102: 0 | J102: =HLOOKUP(Results!E$4,Targeting!$C$3:$F$249,Targeting!$G102,FALSE) -> 2505 | K102: =IF(AND(OR(Calculations!$E$2="Orkney Health Board",Calculations!$E$2="Orkney Islands Local Authority"),$F102=1),0,IF(AND(OR(Calculations!$E$2="Shetland Health Board",Calculations!$E$2="Western Isles Health Board",Calculations!$E$2="Shetland Islands Local Authority",Calculations!$E$2="Eilean Siar Local Authority"),OR($F102=1,$F102=5)),0,new_ci(VALUE(LEFT(Options!$B$24,2)),$C102,$E102,$F102,2016,$I102,1,$H102,$G102*$H102,Options!$B$8))) -> 12.05206067 | L102: =IF(AND(OR(Calculations!$E$2="Orkney Health Board",Calculations!$E$2="Orkney Islands Local Authority"),$F102=1),0,IF(AND(OR(Calculations!$E$2="Shetland Health Board",Calculations!$E$2="Western Isles Health Board",Calculations!$E$2="Shetland Islands Local Authority",Calculations!$E$2="Eilean Siar Local Authority"),OR($F102=1,$F102=5)),0,new_ci(VALUE(LEFT(Options!$B$24,2)),$C102,$E102,$F102,2016,$I102+$J102,1,$H102,$G102*$H102,Options!$B$8))) -> 11.69740577 | M102: =IF(AND(OR(Calculations!$E$2="Orkney Health Board",Calculations!$E$2="Orkney Islands Local Authority"),$F102=1),0,IF(AND(OR(Calculations!$E$2="Shetland Health Board",Calculations!$E$2="Western Isles Health Board",Calculations!$E$2="Shetland Islands Local Authority",Calculations!$E$2="Eilean Siar Local Authority"),OR($F102=1,$F102=5)),0,new_yllv2(VALUE(LEFT(Options!$B$24,2)),$C102,$D102,$E102,$F102,2016,$I102,1,$H102,$G102*$H102,Options!$B$8))) -> 706.1302706 | N102: =IF(AND(OR(Calculations!$E$2="Orkney Health Board",Calculations!$E$2="Orkney Islands Local Authority"),$F102=1),0,IF(AND(OR(Calculations!$E$2="Shetland Health Board",Calculations!$E$2="Western Isles Health Board",Calculations!$E$2="Shetland Islands Local Authority",Calculations!$E$2="Eilean Siar Local Authority"),OR($F102=1,$F102=5)),0,new_yllv2(VALUE(LEFT(Options!$B$24,2)),$C102,$D102,$E102,$F102,2016,$I102+$J102,1,$H102,$G102*$H102,Options!$B$8))) -> 685.3510393 | O102: =IF(AND(OR(Calculations!$E$2="Orkney Health Board",Calculations!$E$2="Orkney Islands Local Authority"),$F102=1),0,IF(AND(OR(Calculations!$E$2="Shetland Health Board",Calculations!$E$2="Western Isles Health Board",Calculations!$E$2="Shetland Islands Local Authority",Calculations!$E$2="Eilean Siar Local Authority"),OR($F102=1,$F102=5)),0,hosp_count(VALUE(LEFT(Options!$B$24,2)),$C102,$E102,$F102,2016,$I102,1,$H102,$G102*$H102, Options!$B$8))) -> 4788.927841 | P102: =IF(AND(OR(Calculations!$E$2="Orkney Health Board",Calculations!$E$2="Orkney Islands Local Authority"),$F102=1),0,IF(AND(OR(Calculations!$E$2="Shetland Health Board",Calculations!$E$2="Western Isles Health Board",Calculations!$E$2="Shetland Islands Local Authority",Calculations!$E$2="Eilean Siar Local Authority"),OR($F102=1,$F102=5)),0,hosp_count(VALUE(LEFT(Options!$B$24,2)),$C102,$E102,$F102,2016,$I102+$J102,1,$H102,$G102*$H102, Options!$B$8))) -> 4778.549444 | Q102: =IF(AND(OR(Calculations!$E$2="Orkney Health Board",Calculations!$E$2="Orkney Islands Local Authority"),$F102=1),0,IF(AND(OR(Calculations!$E$2="Shetland Health Board",Calculations!$E$2="Western Isles Health Board",Calculations!$E$2="Shetland Islands Local Authority",Calculations!$E$2="Eilean Siar Local Authority"),OR($F102=1,$F102=5)),0,prem_mort(VALUE(LEFT(Options!$B$24,2)),$C102,$E102,$F102,2016,$I102,1,$H102,$G102*$H102,Options!$B$8))) -> 12.05206067 | R102: =IF(AND(OR(Calculations!$E$2="Orkney Health Board",Calculations!$E$2="Orkney Islands Local Authority"),$F102=1),0,IF(AND(OR(Calculations!$E$2="Shetland Health Board",Calculations!$E$2="Western Isles Health Board",Calculations!$E$2="Shetland Islands Local Authority",Calculations!$E$2="Eilean Siar Local Authority"),OR($F102=1,$F102=5)),0,prem_mort(VALUE(LEFT(Options!$B$24,2)),$C102,$E102,$F102,2016,$I102+$J102,1,$H102,$G102*$H102,Options!$B$8))) -> 11.69740577 | S102: 32.66229618 | T102: 31.70114575 | U102: 1913.684031 | V102: 1857.370225 | W102: 12978.47595 | X102: 12950.34945 | Y102: 32.66229618 | Z102: 31.70114575 | AA102: 195973.7771 | AB102: 190206.8745 | AC102: 11482104.19 | AD102: 11144221.35 | AE102: 77870855.7 | AF102: 77702096.71 | AG102: 195973.7771 | AH102: 190206.8745 | AI102: 6000
B103: Female 25-29 | C103: 26.975187 | D103: 81.64519 | E103: female | F103: 2 | G103: =HLOOKUP(Calculations!$E$2,'Prevalence Rates'!$C$3:$BC$249,'Prevalence Rates'!$BD103,FALSE) -> 0.2919179735 | H103: =HLOOKUP(Calculations!$E$2,'Population 2016'!$C$3:$BC$249,'Population 2016'!BD103,FALSE) -> 40610 | I103: 0 | J103: =HLOOKUP(Results!E$4,Targeting!$C$3:$F$249,Targeting!$G103,FALSE) -> 2757 | K103: =IF(AND(OR(Calculations!$E$2="Orkney Health Board",Calculations!$E$2="Orkney Islands Local Authority"),$F103=1),0,IF(AND(OR(Calculations!$E$2="Shetland Health Board",Calculations!$E$2="Western Isles Health Board",Calculations!$E$2="Shetland Islands Local Authority",Calculations!$E$2="Eilean Siar Local Authority"),OR($F103=1,$F103=5)),0,new_ci(VALUE(LEFT(Options!$B$24,2)),$C103,$E103,$F103,2016,$I103,1,$H103,$G103*$H103,Options!$B$8))) -> 20.11740017 | L103: =IF(AND(OR(Calculations!$E$2="Orkney Health Board",Calculations!$E$2="Orkney Islands Local Authority"),$F103=1),0,IF(AND(OR(Calculations!$E$2="Shetland Health Board",Calculations!$E$2="Western Isles Health Board",Calculations!$E$2="Shetland Islands Local Authority",Calculations!$E$2="Eilean Siar Local Authority"),OR($F103=1,$F103=5)),0,new_ci(VALUE(LEFT(Options!$B$24,2)),$C103,$E103,$F103,2016,$I103+$J103,1,$H103,$G103*$H103,Options!$B$8))) -> 19.55261879 | M103: =IF(AND(OR(Calculations!$E$2="Orkney Health Board",Calculations!$E$2="Orkney Islands Local Authority"),$F103=1),0,IF(AND(OR(Calculations!$E$2="Shetland Health Board",Calculations!$E$2="Western Isles Health Board",Calculations!$E$2="Shetland Islands Local Authority",Calculations!$E$2="Eilean Siar Local Authority"),OR($F103=1,$F103=5)),0,new_yllv2(VALUE(LEFT(Options!$B$24,2)),$C103,$D103,$E103,$F103,2016,$I103,1,$H103,$G103*$H103,Options!$B$8))) -> 1079.700927 | N103: =IF(AND(OR(Calculations!$E$2="Orkney Health Board",Calculations!$E$2="Orkney Islands Local Authority"),$F103=1),0,IF(AND(OR(Calculations!$E$2="Shetland Health Board",Calculations!$E$2="Western Isles Health Board",Calculations!$E$2="Shetland Islands Local Authority",Calculations!$E$2="Eilean Siar Local Authority"),OR($F103=1,$F103=5)),0,new_yllv2(VALUE(LEFT(Options!$B$24,2)),$C103,$D103,$E103,$F103,2016,$I103+$J103,1,$H103,$G103*$H103,Options!$B$8))) -> 1049.389109 | O103: =IF(AND(OR(Calculations!$E$2="Orkney Health Board",Calculations!$E$2="Orkney Islands Local Authority"),$F103=1),0,IF(AND(OR(Calculations!$E$2="Shetland Health Board",Calculations!$E$2="Western Isles Health Board",Calculations!$E$2="Shetland Islands Local Authority",Calculations!$E$2="Eilean Siar Local Authority"),OR($F103=1,$F103=5)),0,hosp_count(VALUE(LEFT(Options!$B$24,2)),$C103,$E103,$F103,2016,$I103,1,$H103,$G103*$H103, Options!$B$8))) -> 5961.621382 | P103: =IF(AND(OR(Calculations!$E$2="Orkney Health Board",Calculations!$E$2="Orkney Islands Local Authority"),$F103=1),0,IF(AND(OR(Calculations!$E$2="Shetland Health Board",Calculations!$E$2="Western Isles Health Board",Calculations!$E$2="Shetland Islands Local Authority",Calculations!$E$2="Eilean Siar Local Authority"),OR($F103=1,$F103=5)),0,hosp_count(VALUE(LEFT(Options!$B$24,2)),$C103,$E103,$F103,2016,$I103+$J103,1,$H103,$G103*$H103, Options!$B$8))) -> 5948.736578 | Q103: =IF(AND(OR(Calculations!$E$2="Orkney Health Board",Calculations!$E$2="Orkney Islands Local Authority"),$F103=1),0,IF(AND(OR(Calculations!$E$2="Shetland Health Board",Calculations!$E$2="Western Isles Health Board",Calculations!$E$2="Shetland Islands Local Authority",Calculations!$E$2="Eilean Siar Local Authority"),OR($F103=1,$F103=5)),0,prem_mort(VALUE(LEFT(Options!$B$24,2)),$C103,$E103,$F103,2016,$I103,1,$H103,$G103*$H103,Options!$B$8))) -> 20.11740017 | R103: =IF(AND(OR(Calculations!$E$2="Orkney Health Board",Calculations!$E$2="Orkney Islands Local Authority"),$F103=1),0,IF(AND(OR(Calculations!$E$2="Shetland Health Board",Calculations!$E$2="Western Isles Health Board",Calculations!$E$2="Shetland Islands Local Authority",Calculations!$E$2="Eilean Siar Local Authority"),OR($F103=1,$F103=5)),0,prem_mort(VALUE(LEFT(Options!$B$24,2)),$C103,$E103,$F103,2016,$I103+$J103,1,$H103,$G103*$H103,Options!$B$8))) -> 19.55261879 | S103: 49.53804522 | T103: 48.14730064 | U103: 2658.707036 | V103: 2584.06577 | W103: 14680.1807 | X103: 14648.45254 | Y103: 49.53804522 | Z103: 48.14730064 | AA103: 297228.2713 | AB103: 288883.8038 | AC103: 15952242.21 | AD103: 15504394.62 | AE103: 88081084.2 | AF103: 87890715.27 | AG103: 297228.2713 | AH103: 288883.8038 | AI103: 6000
B104: Female 30-34 | C104: 31.999905 | D104: 81.7999 | E104: female | F104: 2 | G104: =HLOOKUP(Calculations!$E$2,'Prevalence Rates'!$C$3:$BC$249,'Prevalence Rates'!$BD104,FALSE) -> 0.2919179735 | H104: =HLOOKUP(Calculations!$E$2,'Population 2016'!$C$3:$BC$249,'Population 2016'!BD104,FALSE) -> 38102 | I104: 0 | J104: =HLOOKUP(Results!E$4,Targeting!$C$3:$F$249,Targeting!$G104,FALSE) -> 2587 | K104: =IF(AND(OR(Calculations!$E$2="Orkney Health Board",Calculations!$E$2="Orkney Islands Local Authority"),$F104=1),0,IF(AND(OR(Calculations!$E$2="Shetland Health Board",Calculations!$E$2="Western Isles Health Board",Calculations!$E$2="Shetland Islands Local Authority",Calculations!$E$2="Eilean Siar Local Authority"),OR($F104=1,$F104=5)),0,new_ci(VALUE(LEFT(Options!$B$24,2)),$C104,$E104,$F104,2016,$I104,1,$H104,$G104*$H104,Options!$B$8))) -> 28.9357104 | L104: =IF(AND(OR(Calculations!$E$2="Orkney Health Board",Calculations!$E$2="Orkney Islands Local Authority"),$F104=1),0,IF(AND(OR(Calculations!$E$2="Shetland Health Board",Calculations!$E$2="Western Isles Health Board",Calculations!$E$2="Shetland Islands Local Authority",Calculations!$E$2="Eilean Siar Local Authority"),OR($F104=1,$F104=5)),0,new_ci(VALUE(LEFT(Options!$B$24,2)),$C104,$E104,$F104,2016,$I104+$J104,1,$H104,$G104*$H104,Options!$B$8))) -> 28.12338903 | M104: =IF(AND(OR(Calculations!$E$2="Orkney Health Board",Calculations!$E$2="Orkney Islands Local Authority"),$F104=1),0,IF(AND(OR(Calculations!$E$2="Shetland Health Board",Calculations!$E$2="Western Isles Health Board",Calculations!$E$2="Shetland Islands Local Authority",Calculations!$E$2="Eilean Siar Local Authority"),OR($F104=1,$F104=5)),0,new_yllv2(VALUE(LEFT(Options!$B$24,2)),$C104,$D104,$E104,$F104,2016,$I104,1,$H104,$G104*$H104,Options!$B$8))) -> 1412.062523 | N104: =IF(AND(OR(Calculations!$E$2="Orkney Health Board",Calculations!$E$2="Orkney Islands Local Authority"),$F104=1),0,IF(AND(OR(Calculations!$E$2="Shetland Health Board",Calculations!$E$2="Western Isles Health Board",Calculations!$E$2="Shetland Islands Local Authority",Calculations!$E$2="Eilean Siar Local Authority"),OR($F104=1,$F104=5)),0,new_yllv2(VALUE(LEFT(Options!$B$24,2)),$C104,$D104,$E104,$F104,2016,$I104+$J104,1,$H104,$G104*$H104,Options!$B$8))) -> 1372.421244 | O104: =IF(AND(OR(Calculations!$E$2="Orkney Health Board",Calculations!$E$2="Orkney Islands Local Authority"),$F104=1),0,IF(AND(OR(Calculations!$E$2="Shetland Health Board",Calculations!$E$2="Western Isles Health Board",Calculations!$E$2="Shetland Islands Local Authority",Calculations!$E$2="Eilean Siar Local Authority"),OR($F104=1,$F104=5)),0,hosp_count(VALUE(LEFT(Options!$B$24,2)),$C104,$E104,$F104,2016,$I104,1,$H104,$G104*$H104, Options!$B$8))) -> 6347.018148 | P104: =IF(AND(OR(Calculations!$E$2="Orkney Health Board",Calculations!$E$2="Orkney Islands Local Authority"),$F104=1),0,IF(AND(OR(Calculations!$E$2="Shetland Health Board",Calculations!$E$2="Western Isles Health Board",Calculations!$E$2="Shetland Islands Local Authority",Calculations!$E$2="Eilean Siar Local Authority"),OR($F104=1,$F104=5)),0,hosp_count(VALUE(LEFT(Options!$B$24,2)),$C104,$E104,$F104,2016,$I104+$J104,1,$H104,$G104*$H104, Options!$B$8))) -> 6333.298972 | Q104: =IF(AND(OR(Calculations!$E$2="Orkney Health Board",Calculations!$E$2="Orkney Islands Local Authority"),$F104=1),0,IF(AND(OR(Calculations!$E$2="Shetland Health Board",Calculations!$E$2="Western Isles Health Board",Calculations!$E$2="Shetland Islands Local Authority",Calculations!$E$2="Eilean Siar Local Authority"),OR($F104=1,$F104=5)),0,prem_mort(VALUE(LEFT(Options!$B$24,2)),$C104,$E104,$F104,2016,$I104,1,$H104,$G104*$H104,Options!$B$8))) -> 28.9357104 | R104: =IF(AND(OR(Calculations!$E$2="Orkney Health Board",Calculations!$E$2="Orkney Islands Local Authority"),$F104=1),0,IF(AND(OR(Calculations!$E$2="Shetland Health Board",Calculations!$E$2="Western Isles Health Board",Calculations!$E$2="Shetland Islands Local Authority",Calculations!$E$2="Eilean Siar Local Authority"),OR($F104=1,$F104=5)),0,prem_mort(VALUE(LEFT(Options!$B$24,2)),$C104,$E104,$F104,2016,$I104+$J104,1,$H104,$G104*$H104,Options!$B$8))) -> 28.12338903 | S104: 75.94275995 | T104: 73.8107948 | U104: 3706.006306 | V104: 3601.966417 | W104: 16657.96585 | X104: 16621.9594 | Y104: 75.94275995 | Z104: 73.8107948 | AA104: 493627.9397 | AB104: 479770.1662 | AC104: 24089040.99 | AD104: 23412781.71 | AE104: 108276778 | AF104: 108042736.1 | AG104: 493627.9397 | AH104: 479770.1662 | AI104: 6500
B105: Female 35-39 | C105: 36.918118 | D105: 81.89812 | E105: female | F105: 2 | G105: =HLOOKUP(Calculations!$E$2,'Prevalence Rates'!$C$3:$BC$249,'Prevalence Rates'!$BD105,FALSE) -> 0.2598290598 | H105: =HLOOKUP(Calculations!$E$2,'Population 2016'!$C$3:$BC$249,'Population 2016'!BD105,FALSE) -> 33014 | I105: 0 | J105: =HLOOKUP(Results!E$4,Targeting!$C$3:$F$249,Targeting!$G105,FALSE) -> 2241 | K105: =IF(AND(OR(Calculations!$E$2="Orkney Health Board",Calculations!$E$2="Orkney Islands Local Authority"),$F105=1),0,IF(AND(OR(Calculations!$E$2="Shetland Health Board",Calculations!$E$2="Western Isles Health Board",Calculations!$E$2="Shetland Islands Local Authority",Calculations!$E$2="Eilean Siar Local Authority"),OR($F105=1,$F105=5)),0,new_ci(VALUE(LEFT(Options!$B$24,2)),$C105,$E105,$F105,2016,$I105,1,$H105,$G105*$H105,Options!$B$8))) -> 38.08633612 | L105: =IF(AND(OR(Calculations!$E$2="Orkney Health Board",Calculations!$E$2="Orkney Islands Local Authority"),$F105=1),0,IF(AND(OR(Calculations!$E$2="Shetland Health Board",Calculations!$E$2="Western Isles Health Board",Calculations!$E$2="Shetland Islands Local Authority",Calculations!$E$2="Eilean Siar Local Authority"),OR($F105=1,$F105=5)),0,new_ci(VALUE(LEFT(Options!$B$24,2)),$C105,$E105,$F105,2016,$I105+$J105,1,$H105,$G105*$H105,Options!$B$8))) -> 37.00604146 | M105: =IF(AND(OR(Calculations!$E$2="Orkney Health Board",Calculations!$E$2="Orkney Islands Local Authority"),$F105=1),0,IF(AND(OR(Calculations!$E$2="Shetland Health Board",Calculations!$E$2="Western Isles Health Board",Calculations!$E$2="Shetland Islands Local Authority",Calculations!$E$2="Eilean Siar Local Authority"),OR($F105=1,$F105=5)),0,new_yllv2(VALUE(LEFT(Options!$B$24,2)),$C105,$D105,$E105,$F105,2016,$I105,1,$H105,$G105*$H105,Options!$B$8))) -> 1675.037139 | N105: =IF(AND(OR(Calculations!$E$2="Orkney Health Board",Calculations!$E$2="Orkney Islands Local Authority"),$F105=1),0,IF(AND(OR(Calculations!$E$2="Shetland Health Board",Calculations!$E$2="Western Isles Health Board",Calculations!$E$2="Shetland Islands Local Authority",Calculations!$E$2="Eilean Siar Local Authority"),OR($F105=1,$F105=5)),0,new_yllv2(VALUE(LEFT(Options!$B$24,2)),$C105,$D105,$E105,$F105,2016,$I105+$J105,1,$H105,$G105*$H105,Options!$B$8))) -> 1627.525777 | O105: =IF(AND(OR(Calculations!$E$2="Orkney Health Board",Calculations!$E$2="Orkney Islands Local Authority"),$F105=1),0,IF(AND(OR(Calculations!$E$2="Shetland Health Board",Calculations!$E$2="Western Isles Health Board",Calculations!$E$2="Shetland Islands Local Authority",Calculations!$E$2="Eilean Siar Local Authority"),OR($F105=1,$F105=5)),0,hosp_count(VALUE(LEFT(Options!$B$24,2)),$C105,$E105,$F105,2016,$I105,1,$H105,$G105*$H105, Options!$B$8))) -> 6223.679334 | P105: =IF(AND(OR(Calculations!$E$2="Orkney Health Board",Calculations!$E$2="Orkney Islands Local Authority"),$F105=1),0,IF(AND(OR(Calculations!$E$2="Shetland Health Board",Calculations!$E$2="Western Isles Health Board",Calculations!$E$2="Shetland Islands Local Authority",Calculations!$E$2="Eilean Siar Local Authority"),OR($F105=1,$F105=5)),0,hosp_count(VALUE(LEFT(Options!$B$24,2)),$C105,$E105,$F105,2016,$I105+$J105,1,$H105,$G105*$H105, Options!$B$8))) -> 6210.221419 | Q105: =IF(AND(OR(Calculations!$E$2="Orkney Health Board",Calculations!$E$2="Orkney Islands Local Authority"),$F105=1),0,IF(AND(OR(Calculations!$E$2="Shetland Health Board",Calculations!$E$2="Western Isles Health Board",Calculations!$E$2="Shetland Islands Local Authority",Calculations!$E$2="Eilean Siar Local Authority"),OR($F105=1,$F105=5)),0,prem_mort(VALUE(LEFT(Options!$B$24,2)),$C105,$E105,$F105,2016,$I105,1,$H105,$G105*$H105,Options!$B$8))) -> 38.08633612 | R105: =IF(AND(OR(Calculations!$E$2="Orkney Health Board",Calculations!$E$2="Orkney Islands Local Authority"),$F105=1),0,IF(AND(OR(Calculations!$E$2="Shetland Health Board",Calculations!$E$2="Western Isles Health Board",Calculations!$E$2="Shetland Islands Local Authority",Calculations!$E$2="Eilean Siar Local Authority"),OR($F105=1,$F105=5)),0,prem_mort(VALUE(LEFT(Options!$B$24,2)),$C105,$E105,$F105,2016,$I105+$J105,1,$H105,$G105*$H105,Options!$B$8))) -> 37.00604146 | S105: 115.3641974 | T105: 112.0919654 | U105: 5073.717632 | V105: 4929.804863 | W105: 18851.63668 | X105: 18810.87242 | Y105: 115.3641974 | Z105: 112.0919654 | AA105: 807549.3817 | AB105: 784643.7578 | AC105: 35516023.42 | AD105: 34508634.04 | AE105: 131961456.8 | AF105: 131676106.9 | AG105: 807549.3817 | AH105: 784643.7578 | AI105: 7000
B106: Female 40-44 | C106: 42.077438 | D106: 82.30744 | E106: female | F106: 2 | G106: =HLOOKUP(Calculations!$E$2,'Prevalence Rates'!$C$3:$BC$249,'Prevalence Rates'!$BD106,FALSE) -> 0.2598290598 | H106: =HLOOKUP(Calculations!$E$2,'Population 2016'!$C$3:$BC$249,'Population 2016'!BD106,FALSE) -> 33442 | I106: 0 | J106: =HLOOKUP(Results!E$4,Targeting!$C$3:$F$249,Targeting!$G106,FALSE) -> 2270 | K106: =IF(AND(OR(Calculations!$E$2="Orkney Health Board",Calculations!$E$2="Orkney Islands Local Authority"),$F106=1),0,IF(AND(OR(Calculations!$E$2="Shetland Health Board",Calculations!$E$2="Western Isles Health Board",Calculations!$E$2="Shetland Islands Local Authority",Calculations!$E$2="Eilean Siar Local Authority"),OR($F106=1,$F106=5)),0,new_ci(VALUE(LEFT(Options!$B$24,2)),$C106,$E106,$F106,2016,$I106,1,$H106,$G106*$H106,Options!$B$8))) -> 59.81366403 | L106: =IF(AND(OR(Calculations!$E$2="Orkney Health Board",Calculations!$E$2="Orkney Islands Local Authority"),$F106=1),0,IF(AND(OR(Calculations!$E$2="Shetland Health Board",Calculations!$E$2="Western Isles Health Board",Calculations!$E$2="Shetland Islands Local Authority",Calculations!$E$2="Eilean Siar Local Authority"),OR($F106=1,$F106=5)),0,new_ci(VALUE(LEFT(Options!$B$24,2)),$C106,$E106,$F106,2016,$I106+$J106,1,$H106,$G106*$H106,Options!$B$8))) -> 58.11769823 | M106: =IF(AND(OR(Calculations!$E$2="Orkney Health Board",Calculations!$E$2="Orkney Islands Local Authority"),$F106=1),0,IF(AND(OR(Calculations!$E$2="Shetland Health Board",Calculations!$E$2="Western Isles Health Board",Calculations!$E$2="Shetland Islands Local Authority",Calculations!$E$2="Eilean Siar Local Authority"),OR($F106=1,$F106=5)),0,new_yllv2(VALUE(LEFT(Options!$B$24,2)),$C106,$D106,$E106,$F106,2016,$I106,1,$H106,$G106*$H106,Options!$B$8))) -> 2346.49016 | N106: =IF(AND(OR(Calculations!$E$2="Orkney Health Board",Calculations!$E$2="Orkney Islands Local Authority"),$F106=1),0,IF(AND(OR(Calculations!$E$2="Shetland Health Board",Calculations!$E$2="Western Isles Health Board",Calculations!$E$2="Shetland Islands Local Authority",Calculations!$E$2="Eilean Siar Local Authority"),OR($F106=1,$F106=5)),0,new_yllv2(VALUE(LEFT(Options!$B$24,2)),$C106,$D106,$E106,$F106,2016,$I106+$J106,1,$H106,$G106*$H106,Options!$B$8))) -> 2279.957418 | O106: =IF(AND(OR(Calculations!$E$2="Orkney Health Board",Calculations!$E$2="Orkney Islands Local Authority"),$F106=1),0,IF(AND(OR(Calculations!$E$2="Shetland Health Board",Calculations!$E$2="Western Isles Health Board",Calculations!$E$2="Shetland Islands Local Authority",Calculations!$E$2="Eilean Siar Local Authority"),OR($F106=1,$F106=5)),0,hosp_count(VALUE(LEFT(Options!$B$24,2)),$C106,$E106,$F106,2016,$I106,1,$H106,$G106*$H106, Options!$B$8))) -> 7177.98054 | P106: =IF(AND(OR(Calculations!$E$2="Orkney Health Board",Calculations!$E$2="Orkney Islands Local Authority"),$F106=1),0,IF(AND(OR(Calculations!$E$2="Shetland Health Board",Calculations!$E$2="Western Isles Health Board",Calculations!$E$2="Shetland Islands Local Authority",Calculations!$E$2="Eilean Siar Local Authority"),OR($F106=1,$F106=5)),0,hosp_count(VALUE(LEFT(Options!$B$24,2)),$C106,$E106,$F106,2016,$I106+$J106,1,$H106,$G106*$H106, Options!$B$8))) -> 7162.459431 | Q106: =IF(AND(OR(Calculations!$E$2="Orkney Health Board",Calculations!$E$2="Orkney Islands Local Authority"),$F106=1),0,IF(AND(OR(Calculations!$E$2="Shetland Health Board",Calculations!$E$2="Western Isles Health Board",Calculations!$E$2="Shetland Islands Local Authority",Calculations!$E$2="Eilean Siar Local Authority"),OR($F106=1,$F106=5)),0,prem_mort(VALUE(LEFT(Options!$B$24,2)),$C106,$E106,$F106,2016,$I106,1,$H106,$G106*$H106,Options!$B$8))) -> 59.81366403 | R106: =IF(AND(OR(Calculations!$E$2="Orkney Health Board",Calculations!$E$2="Orkney Islands Local Authority"),$F106=1),0,IF(AND(OR(Calculations!$E$2="Shetland Health Board",Calculations!$E$2="Western Isles Health Board",Calculations!$E$2="Shetland Islands Local Authority",Calculations!$E$2="Eilean Siar Local Authority"),OR($F106=1,$F106=5)),0,prem_mort(VALUE(LEFT(Options!$B$24,2)),$C106,$E106,$F106,2016,$I106+$J106,1,$H106,$G106*$H106,Options!$B$8))) -> 58.11769823 | S106: 178.8579153 | T106: 173.7865505 | U106: 7016.596375 | V106: 6817.646725 | W106: 21463.96908 | X106: 21417.55706 | Y106: 178.8579153 | Z106: 173.7865505 | AA106: 1252005.407 | AB106: 1216505.854 | AC106: 49116174.62 | AD106: 47723527.07 | AE106: 150247783.6 | AF106: 149922899.4 | AG106: 1252005.407 | AH106: 1216505.854 | AI106: 7000
B107: Female 45-49 | C107: 47.025772 | D107: 82.58577 | E107: female | F107: 2 | G107: =HLOOKUP(Calculations!$E$2,'Prevalence Rates'!$C$3:$BC$249,'Prevalence Rates'!$BD107,FALSE) -> 0.2412342216 | H107: =HLOOKUP(Calculations!$E$2,'Population 2016'!$C$3:$BC$249,'Population 2016'!BD107,FALSE) -> 39170 | I107: 0 | J107: =HLOOKUP(Results!E$4,Targeting!$C$3:$F$249,Targeting!$G107,FALSE) -> 2659 | K107: =IF(AND(OR(Calculations!$E$2="Orkney Health Board",Calculations!$E$2="Orkney Islands Local Authority"),$F107=1),0,IF(AND(OR(Calculations!$E$2="Shetland Health Board",Calculations!$E$2="Western Isles Health Board",Calculations!$E$2="Shetland Islands Local Authority",Calculations!$E$2="Eilean Siar Local Authority"),OR($F107=1,$F107=5)),0,new_ci(VALUE(LEFT(Options!$B$24,2)),$C107,$E107,$F107,2016,$I107,1,$H107,$G107*$H107,Options!$B$8))) -> 106.6692111 | L107: =IF(AND(OR(Calculations!$E$2="Orkney Health Board",Calculations!$E$2="Orkney Islands Local Authority"),$F107=1),0,IF(AND(OR(Calculations!$E$2="Shetland Health Board",Calculations!$E$2="Western Isles Health Board",Calculations!$E$2="Shetland Islands Local Authority",Calculations!$E$2="Eilean Siar Local Authority"),OR($F107=1,$F107=5)),0,new_ci(VALUE(LEFT(Options!$B$24,2)),$C107,$E107,$F107,2016,$I107+$J107,1,$H107,$G107*$H107,Options!$B$8))) -> 103.6269431 | M107: =IF(AND(OR(Calculations!$E$2="Orkney Health Board",Calculations!$E$2="Orkney Islands Local Authority"),$F107=1),0,IF(AND(OR(Calculations!$E$2="Shetland Health Board",Calculations!$E$2="Western Isles Health Board",Calculations!$E$2="Shetland Islands Local Authority",Calculations!$E$2="Eilean Siar Local Authority"),OR($F107=1,$F107=5)),0,new_yllv2(VALUE(LEFT(Options!$B$24,2)),$C107,$D107,$E107,$F107,2016,$I107,1,$H107,$G107*$H107,Options!$B$8))) -> 3686.487722 | N107: =IF(AND(OR(Calculations!$E$2="Orkney Health Board",Calculations!$E$2="Orkney Islands Local Authority"),$F107=1),0,IF(AND(OR(Calculations!$E$2="Shetland Health Board",Calculations!$E$2="Western Isles Health Board",Calculations!$E$2="Shetland Islands Local Authority",Calculations!$E$2="Eilean Siar Local Authority"),OR($F107=1,$F107=5)),0,new_yllv2(VALUE(LEFT(Options!$B$24,2)),$C107,$D107,$E107,$F107,2016,$I107+$J107,1,$H107,$G107*$H107,Options!$B$8))) -> 3581.346946 | O107: =IF(AND(OR(Calculations!$E$2="Orkney Health Board",Calculations!$E$2="Orkney Islands Local Authority"),$F107=1),0,IF(AND(OR(Calculations!$E$2="Shetland Health Board",Calculations!$E$2="Western Isles Health Board",Calculations!$E$2="Shetland Islands Local Authority",Calculations!$E$2="Eilean Siar Local Authority"),OR($F107=1,$F107=5)),0,hosp_count(VALUE(LEFT(Options!$B$24,2)),$C107,$E107,$F107,2016,$I107,1,$H107,$G107*$H107, Options!$B$8))) -> 9521.815112 | P107: =IF(AND(OR(Calculations!$E$2="Orkney Health Board",Calculations!$E$2="Orkney Islands Local Authority"),$F107=1),0,IF(AND(OR(Calculations!$E$2="Shetland Health Board",Calculations!$E$2="Western Isles Health Board",Calculations!$E$2="Shetland Islands Local Authority",Calculations!$E$2="Eilean Siar Local Authority"),OR($F107=1,$F107=5)),0,hosp_count(VALUE(LEFT(Options!$B$24,2)),$C107,$E107,$F107,2016,$I107+$J107,1,$H107,$G107*$H107, Options!$B$8))) -> 9501.21678 | Q107: =IF(AND(OR(Calculations!$E$2="Orkney Health Board",Calculations!$E$2="Orkney Islands Local Authority"),$F107=1),0,IF(AND(OR(Calculations!$E$2="Shetland Health Board",Calculations!$E$2="Western Isles Health Board",Calculations!$E$2="Shetland Islands Local Authority",Calculations!$E$2="Eilean Siar Local Authority"),OR($F107=1,$F107=5)),0,prem_mort(VALUE(LEFT(Options!$B$24,2)),$C107,$E107,$F107,2016,$I107,1,$H107,$G107*$H107,Options!$B$8))) -> 106.6692111 | R107: =IF(AND(OR(Calculations!$E$2="Orkney Health Board",Calculations!$E$2="Orkney Islands Local Authority"),$F107=1),0,IF(AND(OR(Calculations!$E$2="Shetland Health Board",Calculations!$E$2="Western Isles Health Board",Calculations!$E$2="Shetland Islands Local Authority",Calculations!$E$2="Eilean Siar Local Authority"),OR($F107=1,$F107=5)),0,prem_mort(VALUE(LEFT(Options!$B$24,2)),$C107,$E107,$F107,2016,$I107+$J107,1,$H107,$G107*$H107,Options!$B$8))) -> 103.6269431 | S107: 272.3237455 | T107: 264.5569137 | U107: 9411.508098 | V107: 9143.086409 | W107: 24308.94846 | X107: 24256.36145 | Y107: 272.3237455 | Z107: 264.5569137 | AA107: 1906266.218 | AB107: 1851898.396 | AC107: 65880556.69 | AD107: 64001604.86 | AE107: 170162639.2 | AF107: 169794530.1 | AG107: 1906266.218 | AH107: 1851898.396 | AI107: 7000
B108: Female 50-54 | C108: 51.990826 | D108: 82.98083 | E108: female | F108: 2 | G108: =HLOOKUP(Calculations!$E$2,'Prevalence Rates'!$C$3:$BC$249,'Prevalence Rates'!$BD108,FALSE) -> 0.2412342216 | H108: =HLOOKUP(Calculations!$E$2,'Population 2016'!$C$3:$BC$249,'Population 2016'!BD108,FALSE) -> 40518 | I108: 0 | J108: =HLOOKUP(Results!E$4,Targeting!$C$3:$F$249,Targeting!$G108,FALSE) -> 2751 | K108: =IF(AND(OR(Calculations!$E$2="Orkney Health Board",Calculations!$E$2="Orkney Islands Local Authority"),$F108=1),0,IF(AND(OR(Calculations!$E$2="Shetland Health Board",Calculations!$E$2="Western Isles Health Board",Calculations!$E$2="Shetland Islands Local Authority",Calculations!$E$2="Eilean Siar Local Authority"),OR($F108=1,$F108=5)),0,new_ci(VALUE(LEFT(Options!$B$24,2)),$C108,$E108,$F108,2016,$I108,1,$H108,$G108*$H108,Options!$B$8))) -> 168.1970065 | L108: =IF(AND(OR(Calculations!$E$2="Orkney Health Board",Calculations!$E$2="Orkney Islands Local Authority"),$F108=1),0,IF(AND(OR(Calculations!$E$2="Shetland Health Board",Calculations!$E$2="Western Isles Health Board",Calculations!$E$2="Shetland Islands Local Authority",Calculations!$E$2="Eilean Siar Local Authority"),OR($F108=1,$F108=5)),0,new_ci(VALUE(LEFT(Options!$B$24,2)),$C108,$E108,$F108,2016,$I108+$J108,1,$H108,$G108*$H108,Options!$B$8))) -> 163.4027612 | M108: =IF(AND(OR(Calculations!$E$2="Orkney Health Board",Calculations!$E$2="Orkney Islands Local Authority"),$F108=1),0,IF(AND(OR(Calculations!$E$2="Shetland Health Board",Calculations!$E$2="Western Isles Health Board",Calculations!$E$2="Shetland Islands Local Authority",Calculations!$E$2="Eilean Siar Local Authority"),OR($F108=1,$F108=5)),0,new_yllv2(VALUE(LEFT(Options!$B$24,2)),$C108,$D108,$E108,$F108,2016,$I108,1,$H108,$G108*$H108,Options!$B$8))) -> 5044.228898 | N108: =IF(AND(OR(Calculations!$E$2="Orkney Health Board",Calculations!$E$2="Orkney Islands Local Authority"),$F108=1),0,IF(AND(OR(Calculations!$E$2="Shetland Health Board",Calculations!$E$2="Western Isles Health Board",Calculations!$E$2="Shetland Islands Local Authority",Calculations!$E$2="Eilean Siar Local Authority"),OR($F108=1,$F108=5)),0,new_yllv2(VALUE(LEFT(Options!$B$24,2)),$C108,$D108,$E108,$F108,2016,$I108+$J108,1,$H108,$G108*$H108,Options!$B$8))) -> 4900.449463 | O108: =IF(AND(OR(Calculations!$E$2="Orkney Health Board",Calculations!$E$2="Orkney Islands Local Authority"),$F108=1),0,IF(AND(OR(Calculations!$E$2="Shetland Health Board",Calculations!$E$2="Western Isles Health Board",Calculations!$E$2="Shetland Islands Local Authority",Calculations!$E$2="Eilean Siar Local Authority"),OR($F108=1,$F108=5)),0,hosp_count(VALUE(LEFT(Options!$B$24,2)),$C108,$E108,$F108,2016,$I108,1,$H108,$G108*$H108, Options!$B$8))) -> 11159.71138 | P108: =IF(AND(OR(Calculations!$E$2="Orkney Health Board",Calculations!$E$2="Orkney Islands Local Authority"),$F108=1),0,IF(AND(OR(Calculations!$E$2="Shetland Health Board",Calculations!$E$2="Western Isles Health Board",Calculations!$E$2="Shetland Islands Local Authority",Calculations!$E$2="Eilean Siar Local Authority"),OR($F108=1,$F108=5)),0,hosp_count(VALUE(LEFT(Options!$B$24,2)),$C108,$E108,$F108,2016,$I108+$J108,1,$H108,$G108*$H108, Options!$B$8))) -> 11135.5655 | Q108: =IF(AND(OR(Calculations!$E$2="Orkney Health Board",Calculations!$E$2="Orkney Islands Local Authority"),$F108=1),0,IF(AND(OR(Calculations!$E$2="Shetland Health Board",Calculations!$E$2="Western Isles Health Board",Calculations!$E$2="Shetland Islands Local Authority",Calculations!$E$2="Eilean Siar Local Authority"),OR($F108=1,$F108=5)),0,prem_mort(VALUE(LEFT(Options!$B$24,2)),$C108,$E108,$F108,2016,$I108,1,$H108,$G108*$H108,Options!$B$8))) -> 168.1970065 | R108: =IF(AND(OR(Calculations!$E$2="Orkney Health Board",Calculations!$E$2="Orkney Islands Local Authority"),$F108=1),0,IF(AND(OR(Calculations!$E$2="Shetland Health Board",Calculations!$E$2="Western Isles Health Board",Calculations!$E$2="Shetland Islands Local Authority",Calculations!$E$2="Eilean Siar Local Authority"),OR($F108=1,$F108=5)),0,prem_mort(VALUE(LEFT(Options!$B$24,2)),$C108,$E108,$F108,2016,$I108+$J108,1,$H108,$G108*$H108,Options!$B$8))) -> 163.4027612 | S108: 415.1167543 | T108: 403.2843705 | U108: 12449.35312 | V108: 12094.49988 | W108: 27542.60176 | X108: 27483.00878 | Y108: 415.1167543 | Z108: 403.2843705 | AA108: 2905817.28 | AB108: 2822990.593 | AC108: 87145471.85 | AD108: 84661499.19 | AE108: 192798212.3 | AF108: 192381061.5 | AG108: 2905817.28 | AH108: 2822990.593 | AI108: 7000
B109: Female 55-59 | C109: 56.953041 | D109: 83.47304 | E109: female | F109: 2 | G109: =HLOOKUP(Calculations!$E$2,'Prevalence Rates'!$C$3:$BC$249,'Prevalence Rates'!$BD109,FALSE) -> 0.4969325153 | H109: =HLOOKUP(Calculations!$E$2,'Population 2016'!$C$3:$BC$249,'Population 2016'!BD109,FALSE) -> 37275 | I109: 0 | J109: =HLOOKUP(Results!E$4,Targeting!$C$3:$F$249,Targeting!$G109,FALSE) -> 2530 | K109: =IF(AND(OR(Calculations!$E$2="Orkney Health Board",Calculations!$E$2="Orkney Islands Local Authority"),$F109=1),0,IF(AND(OR(Calculations!$E$2="Shetland Health Board",Calculations!$E$2="Western Isles Health Board",Calculations!$E$2="Shetland Islands Local Authority",Calculations!$E$2="Eilean Siar Local Authority"),OR($F109=1,$F109=5)),0,new_ci(VALUE(LEFT(Options!$B$24,2)),$C109,$E109,$F109,2016,$I109,1,$H109,$G109*$H109,Options!$B$8))) -> 235.7202507 | L109: =IF(AND(OR(Calculations!$E$2="Orkney Health Board",Calculations!$E$2="Orkney Islands Local Authority"),$F109=1),0,IF(AND(OR(Calculations!$E$2="Shetland Health Board",Calculations!$E$2="Western Isles Health Board",Calculations!$E$2="Shetland Islands Local Authority",Calculations!$E$2="Eilean Siar Local Authority"),OR($F109=1,$F109=5)),0,new_ci(VALUE(LEFT(Options!$B$24,2)),$C109,$E109,$F109,2016,$I109+$J109,1,$H109,$G109*$H109,Options!$B$8))) -> 229.5441743 | M109: =IF(AND(OR(Calculations!$E$2="Orkney Health Board",Calculations!$E$2="Orkney Islands Local Authority"),$F109=1),0,IF(AND(OR(Calculations!$E$2="Shetland Health Board",Calculations!$E$2="Western Isles Health Board",Calculations!$E$2="Shetland Islands Local Authority",Calculations!$E$2="Eilean Siar Local Authority"),OR($F109=1,$F109=5)),0,new_yllv2(VALUE(LEFT(Options!$B$24,2)),$C109,$D109,$E109,$F109,2016,$I109,1,$H109,$G109*$H109,Options!$B$8))) -> 6015.580562 | N109: =IF(AND(OR(Calculations!$E$2="Orkney Health Board",Calculations!$E$2="Orkney Islands Local Authority"),$F109=1),0,IF(AND(OR(Calculations!$E$2="Shetland Health Board",Calculations!$E$2="Western Isles Health Board",Calculations!$E$2="Shetland Islands Local Authority",Calculations!$E$2="Eilean Siar Local Authority"),OR($F109=1,$F109=5)),0,new_yllv2(VALUE(LEFT(Options!$B$24,2)),$C109,$D109,$E109,$F109,2016,$I109+$J109,1,$H109,$G109*$H109,Options!$B$8))) -> 5857.967099 | O109: =IF(AND(OR(Calculations!$E$2="Orkney Health Board",Calculations!$E$2="Orkney Islands Local Authority"),$F109=1),0,IF(AND(OR(Calculations!$E$2="Shetland Health Board",Calculations!$E$2="Western Isles Health Board",Calculations!$E$2="Shetland Islands Local Authority",Calculations!$E$2="Eilean Siar Local Authority"),OR($F109=1,$F109=5)),0,hosp_count(VALUE(LEFT(Options!$B$24,2)),$C109,$E109,$F109,2016,$I109,1,$H109,$G109*$H109, Options!$B$8))) -> 11631.35715 | P109: =IF(AND(OR(Calculations!$E$2="Orkney Health Board",Calculations!$E$2="Orkney Islands Local Authority"),$F109=1),0,IF(AND(OR(Calculations!$E$2="Shetland Health Board",Calculations!$E$2="Western Isles Health Board",Calculations!$E$2="Shetland Islands Local Authority",Calculations!$E$2="Eilean Siar Local Authority"),OR($F109=1,$F109=5)),0,hosp_count(VALUE(LEFT(Options!$B$24,2)),$C109,$E109,$F109,2016,$I109+$J109,1,$H109,$G109*$H109, Options!$B$8))) -> 11606.32627 | Q109: =IF(AND(OR(Calculations!$E$2="Orkney Health Board",Calculations!$E$2="Orkney Islands Local Authority"),$F109=1),0,IF(AND(OR(Calculations!$E$2="Shetland Health Board",Calculations!$E$2="Western Isles Health Board",Calculations!$E$2="Shetland Islands Local Authority",Calculations!$E$2="Eilean Siar Local Authority"),OR($F109=1,$F109=5)),0,prem_mort(VALUE(LEFT(Options!$B$24,2)),$C109,$E109,$F109,2016,$I109,1,$H109,$G109*$H109,Options!$B$8))) -> 235.7202507 | R109: =IF(AND(OR(Calculations!$E$2="Orkney Health Board",Calculations!$E$2="Orkney Islands Local Authority"),$F109=1),0,IF(AND(OR(Calculations!$E$2="Shetland Health Board",Calculations!$E$2="Western Isles Health Board",Calculations!$E$2="Shetland Islands Local Authority",Calculations!$E$2="Eilean Siar Local Authority"),OR($F109=1,$F109=5)),0,prem_mort(VALUE(LEFT(Options!$B$24,2)),$C109,$E109,$F109,2016,$I109+$J109,1,$H109,$G109*$H109,Options!$B$8))) -> 229.5441743 | S109: 632.3816249 | T109: 615.8126743 | U109: 16138.37844 | V109: 15715.53883 | W109: 31204.17746 | X109: 31137.02554 | Y109: 632.3816249 | Z109: 615.8126743 | AA109: 4110480.562 | AB109: 4002782.383 | AC109: 104899459.8 | AD109: 102151002.4 | AE109: 202827153.5 | AF109: 202390666 | AG109: 4110480.562 | AH109: 4002782.383 | AI109: 6500
